Workbook

Sheet Information
E1: Information
B2: Style guidelines
D4: An input to the model that it is expected the user will change (change at will)
D6: A piece of real data (this data should not be changed unless more accurate information is available)
D8: An estimate used in the absence of real data (only change if you have a better estimate, or real data )
D10: An input to this part of the model, which is linked to a source on this or another worksheet within this workbook
D12: An input to the model that has, none the less, been calculated from other inputs (e.g. interpolated input values)
D14: A key result from this part of the model (in particular one that will be used elsewhere in the model)
B17: Parameter description
B18: Parameter | E18: Description
B19: Annual inflation rate | E19: This parameter is the yearly forecasted inflation rate over the reference period.
B20: Broadband take-up | E20: The percentage of households that will take-up broadband services in the intervention area.
B21: Co-financing rate of the priority axis | E21: This is the co-financing rate for the relevant priority axis under which this broadband intervention project falls and can be read from the approved Operational Programme.
B22: Community assistance | E22: The amount of EU grant sought by the project promoter to implement the intervention project.
B23: Critical variables | E23: Critical variables are those variables for which an absolute variation of 1% around the best estimate gives rise to a corresponding variation of not less than 1% (one percentage point) in the NPV (i.e. elasticity is unity or greater). Source: Guide to Cost-Benefit Analysis of investment projects from European Commission
B24: Current (localised) GVA per employee | E24: The average current GVA per employee in the intervention project area
B25: Current local health budget | E25: The current health budget in the intervention area
B26: ELIGIBLE Capital expenditure | E26: ELIGIBLE capex is the difference between total project capex and INELIGIBLE capex. ELIGIBLE capex can only be considered up until 2023 (the eligibility period).
B27: Financial discount rate used in the model | E27: The financial discount rate that will be used to calculate discounted expenditures and revenues in the financial analysis.
B28: First year of infrastructure roll-out | E28: The year when broadband infrastructure roll-out starts.
B29: From Nothing/Basic/Fast to Superfast broadband (greater than 30Mbit/s) | E29: This category represents premises with either no broadband, basic broadband (2Mbit/s) or fast broadband (10Mbit/s) currently but will get Superfast (above 30Mbit/s) broadband due to this project.
B30: From Nothing/Basic/Fast to Ultrafast (greater than 100Mbit/s) | E30: This category represents premises with either no broadband, basic broadband (2Mbit/s) or fast broadband (10Mbit/s) currently but will get Ultrafast (above 100Mbit/s) broadband due to this project.
B31: From Superfast broadband to Ultrafast broadband | E31: This category represents premises with Superfast broadband currently but will get Ultrafast broadband due to this project.
B32: INELIGIBLE Capital expenditure | E32: Ineligible costs comprise (i) expenditure outside the eligibility period, (ii) expenditure ineligible under national rules (Article 56(4) of Regulation (EC) No 1083/2006), (iii) expenditure ineligible under EU regulation
B33: No. of business employees covered by intervention project | E33: The number of business employees that will be able to access broadband services in the intervention area. This does not mean the number of connected business employees as the number of connected business employees is the result of broadband take-up multiplied by the number of business employess covered by the intervention project.
B34: No. of estimated jobs created | E34: This is the estimated number of jobs created during the reference period due to a new broadband infrastructure in place.
B35: No. of households covered by intervention project | E35: The number of households that will be able to access broadband services in the intervention area. This does not mean the number of connected households as the number of connected households is the result of broadband take-up multiplied by the number of households covered by the intervention project.
B36: Number of job years per EUR million | E36: This parameter has been derived after extensive research to get an estimated number of jobs that can be created with having a broadband infrastructure in place
B37: Number of roll-out years | E37: The roll-out duration of the broadband infrastructure.
B38: Operational expenditure | E38: The operational cost required to maintain the broadband infrastructure of the proposed project over the reference period. These figures should exclude depreciation and VAT.
B39: Price level of financial analysis | E39: This switch gives the beneficiary the choice of choosing to use real or nominal discount rate for the financial analysis.
B40: Replacement costs | E40: This is the cost for refreshing the network active equipment over the reference period. These figures should exclude depreciation and VAT.
B41: Residual value | E41: This indicates the value that remains after the reference period comes to an end.
B42: Revenues | E42: The incremental wholesale revenues generated by the broadband infrastructure over the reference period. These figures should exclude depreciation and VAT.
B43: Social discount rate used in the model | E43: The social discount rate that will be used to calculate discounted socio-economic benefits and costs. The economic analysis is always carried out using real discount rate. The social discount rate is determined by the classification of the country where the project is taking place. The EC recommends a social discount rate of 5% is used for major projects in a cohesion country and a lower discount rate of 3% is used for other Member States. Cohesion Member States: Bulgaria, Croatia, Cyprus, Czech Republic, Estonia, Greece, Hungary, Latvia, Lithuania, Malta, Poland, Portugal, Romania, Slovakia, Slovenia Other Member States: Austria, Belgium, Denmark, Finland, France, Germany, Ireland, Italy, Luxembourg, Netherlands, Spain, Sweden, UK
B44: Total number of households in the intervention area | E44: Total number of households in intervention project area.

Sheet Inputs
C1: Inputs
B3: Generic input parameters | C3: Unit | D3: Value | M3: Business model switch
B4: First year of infrastructure roll-out | C4: Year | D4: 2019 | M4: Owner | N4: Public
B5: Number of roll-out years | C5: Year | D5: 4 | M5: Operator | N5: Private
B6: Currency used in the model | D6: EUR | F6: Note: Currency code must be inserted here
B7: =Currency&" to EUR conversion ratio" -> EUR to EUR conversion ratio | C7: # | D7: 1 | M7: Model flags - DO NOT CHANGE
B8: Price level of financial analysis | D8: Constant | M8: Owner | N8: Operator
B9: Member state classification | D9: Other | M9: Public | N9: Public | P9: =IF(AND($N$4="Public",$N$5="Public"),1,0) -> 0 | R9: =IF(P9=1,"Note: Please refer to Section 3 of the guidance note for specific recommendations regarding the inputting of data for this sheet","") -> 
B10: ="Financial discount rate used in the model - "&IF($D$8="Constant","Real","Nominal")&" discount rate" -> Financial discount rate used in the model - Real discount rate | C10: % | D10: 0.04 | M10: Public | N10: Private | P10: =IF(AND($N$4="Public",$N$5="Private"),1,0) -> 1 | R10: =IF(P10=1,"Note: Please refer to Section 3 of the guidance note for specific recommendations regarding the inputting of data for this sheet","") -> Note: Please refer to Section 3 of the guidance note for specific recommendations regarding the inputting of data for this sheet
B11: Social discount rate used in the model | C11: % | D11: =IF(D9="Cohesion",0.05,0.03) -> 0.03 | F11: Note: 5% for major projects in Cohesion countries, 3% for other member states | M11: Private | N11: Public | P11: =IF(AND($N$4="Private",$N$5="Public"),1,0) -> 0 | R11: =IF(P11=1,"THIS BUSINESS MODEL IS UNLIKELY AND WILL NEED TO BE JUSTIFIED IN THE FUNDING APPLICATION","") -> 
B12: Co-financing rate of the priority axis | C12: % | D12: 0.85 | M12: Private | N12: Private | P12: =IF(AND($N$4="Private",$N$5="Private"),1,0) -> 0 | R12: =IF(P12=1,"Note: Please refer to Section 3 of the guidance note for specific recommendations regarding the inputting of data for this sheet","") -> 
B13: Total number of households in the intervention area | C13: # | D13: 90000
B14: Total number of premises in the intervention area | C14: # | D14: 100000
B15: Reference period | C15: Year | D15: 20
B16: Correction factor parameters | C16: Unit | D16: Value
B17: CAPEX Correction factor due to fiscal corrections / shadow pricing | C17: # | D17: 1
B18: OPEX Correction factor due to fiscal corrections / shadow pricing | C18: # | D18: 1
B19: Socio-economic parameters | C19: Unit | D19: Value
B20: Current (localised) GVA per employee | C20: =$D$6 -> EUR | D20: 10000
B24: Inflation | C24: Unit | D24: =$D$4 -> 2019 | E24: =D24+1 -> 2020 | F24: =E24+1 -> 2021 | G24: =F24+1 -> 2022 | H24: =G24+1 -> 2023 | I24: =H24+1 -> 2024 | J24: =I24+1 -> 2025 | K24: =J24+1 -> 2026 | L24: =K24+1 -> 2027 | M24: =L24+1 -> 2028 | N24: =M24+1 -> 2029 | O24: =N24+1 -> 2030 | P24: =O24+1 -> 2031 | Q24: =P24+1 -> 2032 | R24: =Q24+1 -> 2033 | S24: =R24+1 -> 2034 | T24: =S24+1 -> 2035 | U24: =T24+1 -> 2036 | V24: =U24+1 -> 2037 | W24: =V24+1 -> 2038
B25: Annual Inflation rate | C25: % | D25: 0 | E25: 0.028 | F25: 0.025 | G25: 0.025 | H25: 0.025 | I25: 0.025 | J25: 0.025 | K25: 0.025 | L25: 0.025 | M25: 0.025 | N25: 0.025 | O25: 0.025 | P25: 0.025 | Q25: 0.025 | R25: 0.025 | S25: 0.025 | T25: 0.025 | U25: 0.025 | V25: 0.025 | W25: 0.025
B26: Value after applying inflation rate | C26: % | D26: =1/(1+D25) -> 1 | E26: =D26/(1+E25) -> 0.9727626459 | F26: =E26/(1+F25) -> 0.9490367277 | G26: 0.9258894905 | H26: 0.90330682 | I26: 0.8812749463 | J26: =I26/(1+J25) -> 0.8597804354 | K26: 0.8388101809 | L26: 0.818351396 | M26: 0.7983916058 | N26: 0.7789186399 | O26: 0.7599206242 | P26: 0.7413859749 | Q26: 0.7233033901 | R26: 0.705661844 | S26: 0.6884505795 | T26: 0.671659102 | U26: 0.6552771727 | V26: 0.6392948026 | W26: 0.6237022464
B29: OWNER
B30: ="Cashflow projections "&IF($D$8="Constant","(constant "&D4,"(current")&" prices)" -> Cashflow projections (constant 2019 prices)
B31: ELIGIBLE capital expenditure | D31: =D24 -> 2019 | E31: =E24 -> 2020 | F31: 2021 | G31: 2022 | H31: 2023 | I31: 2024 | J31: 2025 | K31: 2026 | L31: 2027 | M31: 2028 | N31: 2029 | O31: 2030 | P31: 2031 | Q31: 2032 | R31: 2033 | S31: 2034 | T31: 2035 | U31: 2036 | V31: 2037 | W31: 2038
B33: 1. Planning/design fees | C33: =Currency -> EUR | D33: 2000000 | E33: 3000000 | F33: 3000000 | G33: 1000000 | H33: 0 | I33: 0 | J33: 0 | K33: 0 | L33: 0 | M33: 0 | N33: 0 | O33: 0 | P33: 0 | Q33: 0 | R33: 0 | S33: 0 | T33: 0 | U33: 0 | V33: 0 | W33: 0
B34: 2. Land purchase | C34: EUR | D34: =IF(D$31>2023,0,"") ->  | E34: =IF(E$31>2023,0,"") ->  | I34: 0 | J34: =IF(J$31>2023,0,"") -> 0 | K34: =IF(K$31>2023,0,"") -> 0 | L34: 0 | M34: 0 | N34: 0 | O34: 0 | P34: 0 | Q34: 0 | R34: 0 | S34: 0 | T34: 0 | U34: 0 | V34: 0 | W34: 0
B35: 3. Building and construction
B36: a. Backhaul network infrastructure | C36: EUR | D36: 0 | E36: 0 | F36: 0 | G36: 0 | H36: 0 | I36: 0 | J36: 0 | K36: 0 | L36: 0 | M36: 0 | N36: 0 | O36: 0 | P36: 0 | Q36: 0 | R36: 0 | S36: 0 | T36: 0 | U36: 0 | V36: 0 | W36: 0
B37: b. Access network infrastructure | C37: EUR | D37: 0 | E37: 0 | F37: 0 | G37: 0 | H37: 0 | I37: 0 | J37: 0 | K37: 0 | L37: 0 | M37: 0 | N37: 0 | O37: 0 | P37: 0 | Q37: 0 | R37: 0 | S37: 0 | T37: 0 | U37: 0 | V37: 0 | W37: 0
B38: 4. Plant and machinery
B39: a. Backhaul equipment infrastructure | C39: EUR | D39: =IF(D$31>2023,0,"") ->  | E39: =IF(E$31>2023,0,"") ->  | I39: 0 | J39: =IF(J$31>2023,0,"") -> 0 | K39: =IF(K$31>2023,0,"") -> 0 | L39: 0 | M39: 0 | N39: 0 | O39: 0 | P39: 0 | Q39: 0 | R39: 0 | S39: 0 | T39: 0 | U39: 0 | V39: 0 | W39: 0
B40: b. Access equipment infrastructure | C40: EUR | D40: =IF(D$31>2023,0,"") ->  | I40: 0 | J40: =IF(J$31>2023,0,"") -> 0 | K40: 0 | L40: 0 | M40: 0 | N40: 0 | O40: 0 | P40: 0 | Q40: 0 | R40: 0 | S40: 0 | T40: 0 | U40: 0 | V40: 0 | W40: 0
B41: 5. Contingencies | C41: EUR | I41: 0 | J41: 0 | K41: 0 | L41: 0 | M41: 0 | N41: 0 | O41: 0 | P41: 0 | Q41: 0 | R41: 0 | S41: 0 | T41: 0 | U41: 0 | V41: 0 | W41: 0
B42: 6. Price adjustment | C42: EUR | I42: 0 | J42: 0 | K42: 0 | L42: 0 | M42: 0 | N42: 0 | O42: 0 | P42: 0 | Q42: 0 | R42: 0 | S42: 0 | T42: 0 | U42: 0 | V42: 0 | W42: 0
B43: 7. Publicity | C43: EUR | D43: 200000 | E43: 300000 | F43: 400000 | G43: 500000 | I43: 0 | J43: 0 | K43: 0 | L43: 0 | M43: 0 | N43: 0 | O43: 0 | P43: 0 | Q43: 0 | R43: 0 | S43: 0 | T43: 0 | U43: 0 | V43: 0 | W43: 0
B44: 8. Supervision during contrusction implementation | C44: EUR | I44: 0 | J44: 0 | K44: 0 | L44: 0 | M44: 0 | N44: 0 | O44: 0 | P44: 0 | Q44: 0 | R44: 0 | S44: 0 | T44: 0 | U44: 0 | V44: 0 | W44: 0
B45: 9. Technical assistance | C45: EUR | I45: 0 | J45: 0 | K45: 0 | L45: 0 | M45: 0 | N45: 0 | O45: 0 | P45: 0 | Q45: 0 | R45: 0 | S45: 0 | T45: 0 | U45: 0 | V45: 0 | W45: 0
B46: 10. Sub-TOTAL | C46: EUR | D46: =SUM(D33:D45) -> 2200000 | E46: =SUM(E33:E45) -> 3300000 | F46: 3400000 | G46: =SUM(G33:G45) -> 1500000 | H46: 0 | I46: 0 | J46: 0 | K46: 0 | L46: 0 | M46: 0 | N46: 0 | O46: 0 | P46: 0 | Q46: 0 | R46: 0 | S46: 0 | T46: 0 | U46: 0 | V46: 0 | W46: 0
B47: 11. VAT | C47: EUR | D47: =IF(D$31>2023,0,"") ->  | E47: =IF(E$31>2023,0,"") ->  | I47: 0 | J47: =IF(J$31>2023,0,"") -> 0 | K47: =IF(K$31>2023,0,"") -> 0 | L47: 0 | M47: 0 | N47: 0 | O47: 0 | P47: 0 | Q47: 0 | R47: 0 | S47: 0 | T47: 0 | U47: 0 | V47: 0 | W47: 0
B48: 12. TOTAL | C48: EUR | D48: =SUM(D46:D47) -> 2200000 | E48: =SUM(E46:E47) -> 3300000 | F48: 3400000 | G48: 1500000 | H48: 0 | I48: 0 | J48: 0 | K48: 0 | L48: 0 | M48: 0 | N48: 0 | O48: 0 | P48: 0 | Q48: 0 | R48: 0 | S48: 0 | T48: 0 | U48: 0 | V48: 0 | W48: 0
B50: INELIGIBLE capital expenditure | D50: =D31 -> 2019 | E50: =E31 -> 2020 | F50: 2021 | G50: 2022 | H50: 2023 | I50: 2024 | J50: 2025 | K50: 2026 | L50: 2027 | M50: 2028 | N50: 2029 | O50: 2030 | P50: 2031 | Q50: 2032 | R50: 2033 | S50: 2034 | T50: 2035 | U50: 2036 | V50: 2037 | W50: 2038
B52: 1. Planning/design fees | C52: =Currency -> EUR
B53: 2. Land purchase | C53: EUR
B54: 3. Building and construction
B55: a. Backhaul network infrastructure | C55: EUR
B56: b. Access network infrastructure | C56: EUR | D56: 500000 | E56: 1000000 | F56: 1000000 | G56: 1000000
B57: 4. Plant and machinery
B58: a. Backhaul equipment infrastructure | C58: EUR
B59: b. Access equipment infrastructure | C59: EUR
B60: 5. Contingencies | C60: EUR
B61: 6. Price adjustment | C61: EUR
B62: 7. Publicity | C62: EUR
B63: 8. Supervision during contrusction implementation | C63: EUR
B64: 9. Technical assistance | C64: EUR
B65: 10. Sub-TOTAL | C65: EUR | D65: =SUM(D52:D64) -> 500000 | E65: 1000000 | F65: 1000000 | G65: 1000000 | H65: 0 | I65: 0 | J65: 0 | K65: 0 | L65: 0 | M65: 0 | N65: 0 | O65: 0 | P65: 0 | Q65: 0 | R65: 0 | S65: 0 | T65: 0 | U65: 0 | V65: 0 | W65: 0
B66: 11. VAT | C66: EUR | D66: =+D48*0.2 -> 440000 | E66: =+E48*0.2 -> 660000 | F66: 680000 | G66: 300000
B67: 12. TOTAL | C67: EUR | D67: =SUM(D65:D66) -> 940000 | E67: =SUM(E65:E66) -> 1660000 | F67: 1680000 | G67: 1300000 | H67: 0 | I67: 0 | J67: 0 | K67: 0 | L67: 0 | M67: 0 | N67: 0 | O67: 0 | P67: 0 | Q67: 0 | R67: 0 | S67: 0 | T67: 0 | U67: 0 | V67: 0 | W67: 0
B70: Total capital expenditure
B71: ELIGIBLE capital expenditure | C71: EUR | D71: =D48 -> 2200000 | E71: =E48 -> 3300000 | F71: 3400000 | G71: 1500000 | H71: 0 | I71: 0 | J71: 0 | K71: 0 | L71: 0 | M71: 0 | N71: 0 | O71: 0 | P71: 0 | Q71: 0 | R71: 0 | S71: 0 | T71: 0 | U71: 0 | V71: 0 | W71: 0
B72: INELIGIBLE capital expenditure | C72: EUR | D72: =D67 -> 940000 | E72: =E67 -> 1660000 | F72: 1680000 | G72: 1300000 | H72: 0 | I72: 0 | J72: 0 | K72: 0 | L72: 0 | M72: 0 | N72: 0 | O72: 0 | P72: 0 | Q72: 0 | R72: 0 | S72: 0 | T72: 0 | U72: 0 | V72: 0 | W72: 0
B73: Total capital expenditure | C73: EUR | D73: =SUM(D71:D72) -> 3140000 | E73: =SUM(E71:E72) -> 4960000 | F73: 5080000 | G73: 2800000 | H73: 0 | I73: 0 | J73: 0 | K73: 0 | L73: 0 | M73: 0 | N73: 0 | O73: 0 | P73: 0 | Q73: 0 | R73: 0 | S73: 0 | T73: 0 | U73: 0 | V73: 0 | W73: 0
B75: Replacement costs
B77: Replacement costs | C77: =Currency -> EUR | D77: 0 | E77: 0 | F77: 0 | G77: 0 | H77: 0 | I77: 0 | J77: 0 | K77: 0 | L77: 0 | M77: 0 | N77: 0 | O77: 0 | P77: 0 | Q77: 0 | R77: 0 | S77: 0 | T77: 0 | U77: 0 | V77: 0 | W77: 0
B79: Operational expenditure | D79: =$D$4 -> 2019 | E79: =D79+1 -> 2020 | F79: =E79+1 -> 2021 | G79: 2022 | H79: 2023 | I79: 2024 | J79: 2025 | K79: 2026 | L79: 2027 | M79: 2028 | N79: 2029 | O79: 2030 | P79: 2031 | Q79: 2032 | R79: 2033 | S79: 2034 | T79: 2035 | U79: 2036 | V79: 2037 | W79: 2038
B80: Maintenance | C80: EUR
B81: Marketing | C81: EUR
B82: Audit | C82: EUR
B83: Administrative | C83: EUR | D83: 0 | E83: 0 | F83: 0 | G83: 0 | H83: 500000 | I83: 500000 | J83: 500000 | K83: 500000 | L83: 500000 | M83: 500000 | N83: 500000 | O83: 500000 | P83: 500000 | Q83: 500000 | R83: 500000 | S83: 500000 | T83: 500000 | U83: 500000 | V83: 500000 | W83: 500000
B84: <spare 1> | C84: EUR
B85: <spare 2> | C85: EUR
B88: Operational expenditure total | C88: =Currency -> EUR | D88: =SUM(D80:D86) -> 0 | E88: 0 | F88: 0 | G88: 0 | H88: 500000 | I88: 500000 | J88: 500000 | K88: 500000 | L88: 500000 | M88: 500000 | N88: 500000 | O88: 500000 | P88: 500000 | Q88: 500000 | R88: 500000 | S88: 500000 | T88: 500000 | U88: 500000 | V88: 500000 | W88: 500000
B90: Revenues (fill in only if applicable) | D90: =$D$4 -> 2019 | E90: =D90+1 -> 2020 | F90: =E90+1 -> 2021 | G90: =F90+1 -> 2022 | H90: =G90+1 -> 2023 | I90: =H90+1 -> 2024 | J90: =I90+1 -> 2025 | K90: =J90+1 -> 2026 | L90: =K90+1 -> 2027 | M90: =L90+1 -> 2028 | N90: =M90+1 -> 2029 | O90: =N90+1 -> 2030 | P90: =O90+1 -> 2031 | Q90: =P90+1 -> 2032 | R90: =Q90+1 -> 2033 | S90: =R90+1 -> 2034 | T90: =S90+1 -> 2035 | U90: =T90+1 -> 2036 | V90: =U90+1 -> 2037 | W90: =V90+1 -> 2038
B91: Revenue from operator (rent) | C91: EUR | D91: 0 | E91: 0 | F91: 0 | G91: 0 | H91: 0 | I91: 0 | J91: 0 | K91: 0 | L91: 0 | M91: 0 | N91: 0 | O91: 0 | P91: 0 | Q91: 0 | R91: 0 | S91: 0 | T91: 0 | U91: 0 | V91: 0 | W91: 0
B92: <spare> | C92: EUR
B93: <spare> | C93: EUR
B94: <spare> | C94: EUR
B95: Revenues total | C95: =Currency -> EUR | D95: =SUM(D91:D94) -> 0 | E95: 0 | F95: 0 | G95: 0 | H95: 0 | I95: 0 | J95: 0 | K95: 0 | L95: 0 | M95: 0 | N95: 0 | O95: 0 | P95: 0 | Q95: 0 | R95: 0 | S95: 0 | T95: 0 | U95: 0 | V95: 0 | W95: 0
B97: Residual value | C97: =Currency -> EUR | D97: 0 | E97: 0 | F97: 0 | G97: 0 | H97: 0 | I97: 0 | J97: 0 | K97: 0 | L97: 0 | M97: 0 | N97: 0 | O97: 0 | P97: 0 | Q97: 0 | R97: 0 | S97: 0 | T97: 0 | U97: 0 | V97: 0 | W97: 0
B99: Residual value (Economic analysis) | C99: =Currency -> EUR
B103: OPERATOR
B104: ="Cashflow projections "&IF($D$8="Constant","(constant "&D4,"(current")&" prices)" -> Cashflow projections (constant 2019 prices)
B105: ELIGIBLE capital expenditure | D105: =D24 -> 2019 | E105: 2020 | F105: 2021 | G105: 2022 | H105: 2023 | I105: 2024 | J105: 2025 | K105: 2026 | L105: 2027 | M105: 2028 | N105: 2029 | O105: 2030 | P105: 2031 | Q105: 2032 | R105: 2033 | S105: 2034 | T105: 2035 | U105: 2036 | V105: 2037 | W105: 2038
B107: 1. Planning/design fees | C107: =Currency -> EUR | D107: =IF(D$105>2023,0,"") ->  | E107: =IF(E$105>2023,0,"") ->  | I107: 0 | J107: =IF(J$105>2023,0,"") -> 0 | K107: 0 | L107: 0 | M107: 0 | N107: 0 | O107: 0 | P107: 0 | Q107: 0 | R107: 0 | S107: 0 | T107: 0 | U107: 0 | V107: 0 | W107: 0
B108: 2. Land purchase | C108: EUR | D108: =IF(D$105>2023,0,"") ->  | I108: 0 | J108: 0 | K108: 0 | L108: 0 | M108: 0 | N108: 0 | O108: 0 | P108: 0 | Q108: 0 | R108: 0 | S108: 0 | T108: 0 | U108: 0 | V108: 0 | W108: 0
B109: 3. Building and construction
B110: a. Backhaul network infrastructure | C110: EUR | D110: =IF(D$105>2023,0,"") ->  | E110: =IF(E$105>2023,0,"") ->  | I110: 0 | J110: 0 | K110: 0 | L110: 0 | M110: 0 | N110: 0 | O110: 0 | P110: 0 | Q110: 0 | R110: 0 | S110: 0 | T110: 0 | U110: 0 | V110: 0 | W110: 0
B111: b. Access network infrastructure | C111: EUR | D111: 5000000 | E111: 20000000 | F111: 25000000 | G111: 15000000 | H111: 0 | I111: 0 | J111: 0 | K111: 0 | L111: 0 | M111: 0 | N111: 0 | O111: 0 | P111: 0 | Q111: 0 | R111: 0 | S111: 0 | T111: 0 | U111: 0 | V111: 0 | W111: 0
B112: 4. Plant and machinery
B113: a. Backhaul equipment infrastructure | C113: EUR | D113: =IF(D$105>2023,0,"") ->  | E113: =IF(E$105>2023,0,"") ->  | I113: 0 | J113: 0 | K113: 0 | L113: 0 | M113: 0 | N113: 0 | O113: 0 | P113: 0 | Q113: 0 | R113: 0 | S113: 0 | T113: 0 | U113: 0 | V113: 0 | W113: 0
B114: b. Access equipment infrastructure | C114: EUR | D114: =IF(D$105>2023,0,"") ->  | I114: 0 | J114: 0 | K114: 0 | L114: 0 | M114: 0 | N114: 0 | O114: 0 | P114: 0 | Q114: 0 | R114: 0 | S114: 0 | T114: 0 | U114: 0 | V114: 0 | W114: 0
B115: 5. Contingencies | C115: EUR | I115: 0 | J115: 0 | K115: 0 | L115: 0 | M115: 0 | N115: 0 | O115: 0 | P115: 0 | Q115: 0 | R115: 0 | S115: 0 | T115: 0 | U115: 0 | V115: 0 | W115: 0
B116: 6. Price adjustment | C116: EUR | I116: 0 | J116: 0 | K116: 0 | L116: 0 | M116: 0 | N116: 0 | O116: 0 | P116: 0 | Q116: 0 | R116: 0 | S116: 0 | T116: 0 | U116: 0 | V116: 0 | W116: 0
B117: 7. Publicity | C117: EUR | I117: 0 | J117: 0 | K117: 0 | L117: 0 | M117: 0 | N117: 0 | O117: 0 | P117: 0 | Q117: 0 | R117: 0 | S117: 0 | T117: 0 | U117: 0 | V117: 0 | W117: 0
B118: 8. Supervision during contrusction implementation | C118: EUR | D118: =+D111*0.1 -> 500000 | E118: =+E111*0.1 -> 2000000 | F118: 2500000 | G118: 1500000 | I118: 0 | J118: 0 | K118: 0 | L118: 0 | M118: 0 | N118: 0 | O118: 0 | P118: 0 | Q118: 0 | R118: 0 | S118: 0 | T118: 0 | U118: 0 | V118: 0 | W118: 0
B119: 9. Technical assistance | C119: EUR | I119: 0 | J119: 0 | K119: 0 | L119: 0 | M119: 0 | N119: 0 | O119: 0 | P119: 0 | Q119: 0 | R119: 0 | S119: 0 | T119: 0 | U119: 0 | V119: 0 | W119: 0
B120: 10. Sub-TOTAL | C120: EUR | D120: =SUM(D107:D119) -> 5500000 | E120: =SUM(E107:E119) -> 22000000 | F120: 27500000 | G120: 16500000 | H120: 0 | I120: 0 | J120: 0 | K120: 0 | L120: 0 | M120: 0 | N120: 0 | O120: 0 | P120: 0 | Q120: 0 | R120: 0 | S120: 0 | T120: 0 | U120: 0 | V120: 0 | W120: 0
B121: 11. VAT | C121: EUR | D121: =IF(D$105>2023,0,"") ->  | I121: 0 | J121: 0 | K121: 0 | L121: 0 | M121: 0 | N121: 0 | O121: 0 | P121: 0 | Q121: 0 | R121: 0 | S121: 0 | T121: 0 | U121: 0 | V121: 0 | W121: 0
B122: 12. TOTAL | C122: EUR | D122: =SUM(D120:D121) -> 5500000 | E122: =SUM(E120:E121) -> 22000000 | F122: 27500000 | G122: 16500000 | H122: 0 | I122: 0 | J122: 0 | K122: 0 | L122: 0 | M122: 0 | N122: 0 | O122: 0 | P122: 0 | Q122: 0 | R122: 0 | S122: 0 | T122: 0 | U122: 0 | V122: 0 | W122: 0
B124: INELIGIBLE capital expenditure | D124: =D105 -> 2019 | E124: =E105 -> 2020 | F124: 2021 | G124: 2022 | H124: 2023 | I124: 2024 | J124: 2025 | K124: 2026 | L124: 2027 | M124: 2028 | N124: 2029 | O124: 2030 | P124: 2031 | Q124: 2032 | R124: 2033 | S124: 2034 | T124: 2035 | U124: 2036 | V124: 2037 | W124: 2038
B126: 1. Planning/design fees | C126: =Currency -> EUR
B127: 2. Land purchase | C127: EUR
B128: 3. Building and construction
B129: a. Backhaul network infrastructure | C129: EUR
B130: b. Access network infrastructure | C130: EUR
B131: 4. Plant and machinery
B132: a. Backhaul equipment infrastructure | C132: EUR
B133: b. Access equipment infrastructure | C133: EUR
B134: 5. Contingencies | C134: EUR
B135: 6. Price adjustment | C135: EUR
B136: 7. Publicity | C136: EUR
B137: 8. Supervision during contrusction implementation | C137: EUR
B138: 9. Technical assistance | C138: EUR
B139: 10. Sub-TOTAL | C139: EUR | D139: =SUM(D126:D138) -> 0 | E139: 0 | F139: 0 | G139: 0 | H139: 0 | I139: 0 | J139: 0 | K139: 0 | L139: 0 | M139: 0 | N139: 0 | O139: 0 | P139: 0 | Q139: 0 | R139: 0 | S139: 0 | T139: 0 | U139: 0 | V139: 0 | W139: 0
B140: 11. VAT | C140: EUR | D140: =+D122*0.2 -> 1100000 | E140: =+E122*0.2 -> 4400000 | F140: 5500000 | G140: 3300000
B141: 12. TOTAL | C141: EUR | D141: =SUM(D139:D140) -> 1100000 | E141: =SUM(E139:E140) -> 4400000 | F141: 5500000 | G141: 3300000 | H141: 0 | I141: 0 | J141: 0 | K141: 0 | L141: 0 | M141: 0 | N141: 0 | O141: 0 | P141: 0 | Q141: 0 | R141: 0 | S141: 0 | T141: 0 | U141: 0 | V141: 0 | W141: 0
B144: Total capital expenditure
B145: ELIGIBLE capital expenditure | C145: EUR | D145: =D122 -> 5500000 | E145: =E122 -> 22000000 | F145: 27500000 | G145: 16500000 | H145: 0 | I145: 0 | J145: 0 | K145: 0 | L145: 0 | M145: 0 | N145: 0 | O145: 0 | P145: 0 | Q145: 0 | R145: 0 | S145: 0 | T145: 0 | U145: 0 | V145: 0 | W145: 0
B146: INELIGIBLE capital expenditure | C146: EUR | D146: =D141 -> 1100000 | E146: =E141 -> 4400000 | F146: 5500000 | G146: 3300000 | H146: 0 | I146: 0 | J146: 0 | K146: 0 | L146: 0 | M146: 0 | N146: 0 | O146: 0 | P146: 0 | Q146: 0 | R146: 0 | S146: 0 | T146: 0 | U146: 0 | V146: 0 | W146: 0
B147: Total capital expenditure | C147: EUR | D147: =SUM(D145:D146) -> 6600000 | E147: =SUM(E145:E146) -> 26400000 | F147: 33000000 | G147: 19800000 | H147: 0 | I147: 0 | J147: 0 | K147: 0 | L147: 0 | M147: 0 | N147: 0 | O147: 0 | P147: 0 | Q147: 0 | R147: 0 | S147: 0 | T147: 0 | U147: 0 | V147: 0 | W147: 0
B149: Replacement costs
B151: Replacement costs | C151: =Currency -> EUR | D151: 0 | E151: 0 | F151: 0 | G151: 0 | H151: 0 | I151: 0 | J151: 0 | K151: 0 | L151: 0 | M151: 0 | N151: 0 | O151: =+SUM($D$293:$G$293)*0.02 -> 2035600 | P151: =+SUM($D$293:$G$293)*0.02 -> 2035600 | Q151: 2035600 | R151: 2035600 | S151: 2035600 | T151: 2035600 | U151: 2035600 | V151: 2035600 | W151: 2035600
B153: Operational expenditure | D153: =$D$4 -> 2019 | E153: =D153+1 -> 2020 | F153: =E153+1 -> 2021 | G153: 2022 | H153: 2023 | I153: 2024 | J153: 2025 | K153: 2026 | L153: 2027 | M153: 2028 | N153: 2029 | O153: 2030 | P153: 2031 | Q153: 2032 | R153: 2033 | S153: 2034 | T153: 2035 | U153: 2036 | V153: 2037 | W153: 2038
B154: Maintenance | C154: EUR | D154: 0 | E154: =+D122*0.05 -> 275000 | F154: =+E154+E122*0.05 -> 1375000 | G154: =+F154+F122*0.05 -> 2750000 | H154: =+G154+0.05*G122 -> 3575000 | I154: =+H154 -> 3575000 | J154: =+I154 -> 3575000 | K154: =+J154 -> 3575000 | L154: 3575000 | M154: 3575000 | N154: 3575000 | O154: 3575000 | P154: 3575000 | Q154: 3575000 | R154: 3575000 | S154: 3575000 | T154: 3575000 | U154: 3575000 | V154: 3575000 | W154: 3575000
B155: Marketing | C155: EUR | D155: 0 | E155: =+E154*0.3 -> 82500 | F155: =+F154*0.3 -> 412500 | G155: 825000 | H155: 1072500 | I155: 1072500 | J155: 1072500 | K155: 1072500 | L155: 1072500 | M155: 1072500 | N155: 1072500 | O155: 1072500 | P155: 1072500 | Q155: 1072500 | R155: 1072500 | S155: 1072500 | T155: 1072500 | U155: 1072500 | V155: 1072500 | W155: 1072500
B156: Passive infrastrucutre rental (e.g. ducts, poles) | C156: EUR | D156: =+D154*3 -> 0 | E156: =+E154*2.5/4 -> 171875 | F156: =+F154*2.5/6 -> 572916.6667 | G156: =+G154*2.5/5.5 -> 1250000 | H156: =+H154*2.5/5.5 -> 1625000 | I156: =+I154*2.5/34.5 -> 259057.971 | J156: =+J154*2.5/2.9 -> 3081896.552 | K156: =+K154*2.5/2.3 -> 3885869.565 | L156: =+L154*2.5/1.5 -> 5958333.333 | M156: =+M154*2.5/1.2 -> 7447916.667 | N156: =+N154*2.5 -> 8937500 | O156: 8937500 | P156: 8937500 | Q156: 8937500 | R156: 8937500 | S156: 8937500 | T156: 8937500 | U156: 8937500 | V156: 8937500 | W156: 8937500
B157: Energy costs | C157: EUR | D157: =+D154*0.5 -> 0 | E157: =+E154*0.6 -> 165000 | F157: =+F154*0.6 -> 825000 | G157: =+G154*0.6 -> 1650000 | H157: 2145000 | I157: 2145000 | J157: 2145000 | K157: 2145000 | L157: 2145000 | M157: 2145000 | N157: 2145000 | O157: 2145000 | P157: 2145000 | Q157: 2145000 | R157: 2145000 | S157: 2145000 | T157: 2145000 | U157: 2145000 | V157: 2145000 | W157: 2145000
B158: Rent paid by the operator (to Owner) | C158: EUR | D158: =D91 -> 0 | E158: 0 | F158: 0 | G158: 0 | H158: 0 | I158: 0 | J158: 0 | K158: 0 | L158: 0 | M158: 0 | N158: 0 | O158: 0 | P158: 0 | Q158: 0 | R158: 0 | S158: 0 | T158: 0 | U158: 0 | V158: 0 | W158: 0
B159: <spare 1> | C159: EUR
B160: <spare 2> | C160: EUR
B162: Operational expenditure total | C162: =Currency -> EUR | D162: =SUM(D154:D160) -> 0 | E162: 694375 | F162: 3185416.667 | G162: 6475000 | H162: 8417500 | I162: 7051557.971 | J162: 9874396.552 | K162: 10678369.57 | L162: 12750833.33 | M162: 14240416.67 | N162: 15730000 | O162: 15730000 | P162: 15730000 | Q162: 15730000 | R162: 15730000 | S162: 15730000 | T162: 15730000 | U162: 15730000 | V162: 15730000 | W162: 15730000
B164: Revenues (primary project revenues - links to CONSOLIDATED) | D164: =$D$4 -> 2019 | E164: =D164+1 -> 2020 | F164: =E164+1 -> 2021 | G164: =F164+1 -> 2022 | H164: =G164+1 -> 2023 | I164: =H164+1 -> 2024 | J164: =I164+1 -> 2025 | K164: =J164+1 -> 2026 | L164: =K164+1 -> 2027 | M164: =L164+1 -> 2028 | N164: =M164+1 -> 2029 | O164: =N164+1 -> 2030 | P164: =O164+1 -> 2031 | Q164: =P164+1 -> 2032 | R164: =Q164+1 -> 2033 | S164: =R164+1 -> 2034 | T164: =S164+1 -> 2035 | U164: =T164+1 -> 2036 | V164: =U164+1 -> 2037 | W164: =V164+1 -> 2038
B165: Fast/Superfast Revenues | C165: EUR | D165: =+D361*20*12 -> 0 | E165: =+E361*18*12 -> 259200 | F165: =+F361*18*12 -> 570240 | G165: 1101600 | H165: 1555200 | I165: 1620000 | J165: 1879200 | K165: 2203200 | L165: 2527200 | M165: 2851200 | N165: 3175200 | O165: 3499200 | P165: 3823200 | Q165: 4147200 | R165: 4471200 | S165: 4795200 | T165: 5119200 | U165: 5119200 | V165: 5119200 | W165: 5119200
B166: Ultrafast revenues | C166: EUR | D166: =+D362*30*12 -> 0 | E166: =+E362*24*12 -> 345600 | F166: =+F362*24*12 -> 760320 | G166: 1468800 | H166: 2073600 | I166: 2160000 | J166: 2505600 | K166: 2937600 | L166: 3369600 | M166: 3801600 | N166: 4233600 | O166: 4665600 | P166: 5097600 | Q166: 5529600 | R166: 5961600 | S166: 6393600 | T166: 6825600 | U166: 6825600 | V166: 6825600 | W166: 6825600
B167: Business revenue | C167: EUR | D167: =+D363*100*12 -> 0 | E167: =+E363*30*12 -> 1296000 | F167: =+F363*30*12 -> 2678400 | G167: 3996000 | H167: 4752000 | I167: 4860000 | J167: 5292000 | K167: 5832000 | L167: 6372000 | M167: 6912000 | N167: 7452000 | O167: 7992000 | P167: 8532000 | Q167: 9072000 | R167: 9612000 | S167: 10152000 | T167: 10692000 | U167: 10692000 | V167: 10692000 | W167: 10692000
B168: <spare> | C168: EUR
B169: <spare> | C169: EUR
B171: Revenues total | C171: =Currency -> EUR | D171: =SUM(D165:D170) -> 0 | E171: 1900800 | F171: 4008960 | G171: 6566400 | H171: 8380800 | I171: 8640000 | J171: 9676800 | K171: 10972800 | L171: 12268800 | M171: 13564800 | N171: 14860800 | O171: 16156800 | P171: 17452800 | Q171: 18748800 | R171: 20044800 | S171: 21340800 | T171: 22636800 | U171: 22636800 | V171: 22636800 | W171: 22636800
B173: Residual value | C173: =Currency -> EUR | D173: 0 | E173: 0 | F173: 0 | G173: 0 | H173: 0 | I173: 0 | J173: 0 | K173: 0 | L173: 0 | M173: 0 | N173: 0 | O173: 0 | P173: 0 | Q173: 0 | R173: 0 | S173: 0 | T173: 0 | U173: 0 | V173: 0 | W173: 5000000
B175: Residual value (Economic analysis) | C175: =Currency -> EUR
B179: SOURCES OF FINANCE
B181: Public sources - OWNER | C181: Unit | D181: =$D$4 -> 2019 | E181: =D181+1 -> 2020 | F181: =E181+1 -> 2021 | G181: =F181+1 -> 2022 | H181: =G181+1 -> 2023 | I181: =H181+1 -> 2024 | J181: =I181+1 -> 2025 | K181: =J181+1 -> 2026 | L181: =K181+1 -> 2027 | M181: =L181+1 -> 2028 | N181: =M181+1 -> 2029 | O181: =N181+1 -> 2030 | P181: =O181+1 -> 2031 | Q181: =P181+1 -> 2032 | R181: =Q181+1 -> 2033 | S181: =R181+1 -> 2034 | T181: =S181+1 -> 2035 | U181: =T181+1 -> 2036 | V181: =U181+1 -> 2037 | W181: =V181+1 -> 2038
B182: Public contribution
B183: ERDF grant | C183: =Currency -> EUR | D183: =+D268*0.15 -> 1155000 | E183: =+E268*0.15 -> 3795000 | F183: 4635000 | G183: 2700000 | H183: =+H268*0.5 -> 0 | I183: 0 | J183: 0 | K183: 0 | L183: 0 | M183: 0 | N183: 0 | O183: 0 | P183: 0 | Q183: 0 | R183: 0 | S183: 0 | T183: 0 | U183: 0 | V183: 0 | W183: 0
B184: EIB loan | C184: EUR | D184: 0 | E184: 0 | F184: 0 | G184: 0
B185: Other public contribution | C185: =Currency -> EUR | D185: =+D268*0.75+D72-D66 -> 6275000 | E185: =+E268*0.75+E72-E66 -> 19975000 | F185: 24175000 | G185: 14500000 | H185: =+H268*0.2+H72 -> 0 | I185: 0 | J185: 0 | K185: 0 | L185: 0 | M185: 0 | N185: 0 | O185: 0 | P185: 0
B186: <spare> | C186: =Currency -> EUR
B187: <spare> | C187: EUR
B188: <spare> | C188: EUR
B189: <spare> | C189: EUR
B190: <spare> | C190: EUR
B191: Total public contribution | C191: EUR | D191: =SUM(D183:D190) -> 7430000 | E191: =SUM(E183:E190) -> 23770000 | F191: 28810000 | G191: 17200000 | H191: 0 | I191: 0 | J191: 0 | K191: 0 | L191: 0 | M191: 0 | N191: 0 | O191: 0 | P191: 0 | Q191: 0 | R191: 0 | S191: 0 | T191: 0 | U191: 0 | V191: 0 | W191: 0
B193: Expenditures
B194: Interest payments | C194: =Currency -> EUR | D194: 0 | E194: 0 | F194: 0 | G194: 0 | H194: 0 | I194: 0 | J194: 0 | K194: 0 | L194: 0 | M194: 0 | N194: 0 | O194: 0 | P194: 0 | Q194: 0 | R194: 0 | S194: 0 | T194: 0 | U194: 0 | V194: 0 | W194: 0
B195: Principal repayments | C195: =Currency -> EUR | D195: 0 | E195: 0 | F195: 0 | G195: 0 | H195: 0 | I195: 0 | J195: 0 | K195: 0 | L195: 0 | M195: 0 | N195: 0 | O195: 0 | P195: 0 | Q195: 0 | R195: 0 | S195: 0 | T195: 0 | U195: 0 | V195: 0 | W195: 0
B196: Loan fees | C196: =Currency -> EUR | D196: 0 | E196: 0 | F196: 0 | G196: 0 | H196: 0 | I196: 0 | J196: 0 | K196: 0 | L196: 0 | M196: 0 | N196: 0 | O196: 0 | P196: 0 | Q196: 0 | R196: 0 | S196: 0 | T196: 0 | U196: 0 | V196: 0 | W196: 0
B197: Total expenditure | C197: =Currency -> EUR | D197: =SUM(D194:D196) -> 0 | E197: 0 | F197: 0 | G197: 0 | H197: 0 | I197: 0 | J197: 0 | K197: 0 | L197: 0 | M197: 0 | N197: 0 | O197: 0 | P197: 0 | Q197: 0 | R197: 0 | S197: 0 | T197: 0 | U197: 0 | V197: 0 | W197: 0
B199: Public sources - OPERATOR | C199: Unit | D199: =$D$4 -> 2019 | E199: =D199+1 -> 2020 | F199: =E199+1 -> 2021 | G199: =F199+1 -> 2022 | H199: =G199+1 -> 2023 | I199: =H199+1 -> 2024 | J199: =I199+1 -> 2025 | K199: =J199+1 -> 2026 | L199: =K199+1 -> 2027 | M199: =L199+1 -> 2028 | N199: =M199+1 -> 2029 | O199: =N199+1 -> 2030 | P199: =O199+1 -> 2031 | Q199: =P199+1 -> 2032 | R199: =Q199+1 -> 2033 | S199: =R199+1 -> 2034 | T199: =S199+1 -> 2035 | U199: =T199+1 -> 2036 | V199: =U199+1 -> 2037 | W199: =V199+1 -> 2038
B200: Public contribution
B201: ERDF grant | C201: =Currency -> EUR | I201: 0 | J201: 0 | K201: 0 | L201: 0 | M201: 0 | N201: 0 | O201: 0 | P201: 0 | Q201: 0 | R201: 0 | S201: 0 | T201: 0 | U201: 0 | V201: 0 | W201: 0
B202: EIB loan | C202: EUR
B203: Other public contribution | C203: =Currency -> EUR
B204: <spare> | C204: =Currency -> EUR
B205: <spare> | C205: EUR
B206: <spare> | C206: EUR
B207: <spare> | C207: EUR
B208: <spare> | C208: EUR
B209: Total public contribution | C209: EUR | D209: =SUM(D201:D208) -> 0 | E209: =SUM(E201:E208) -> 0 | F209: 0 | G209: 0 | H209: 0 | I209: 0 | J209: 0 | K209: 0 | L209: 0 | M209: 0 | N209: 0 | O209: 0 | P209: 0 | Q209: 0 | R209: 0 | S209: 0 | T209: 0 | U209: 0 | V209: 0 | W209: 0
B211: Expenditures
B212: Interest payments | C212: =Currency -> EUR
B213: Principal repayments | C213: =Currency -> EUR
B214: Loan fees | C214: =Currency -> EUR
B215: Total expenditure | C215: =Currency -> EUR | D215: =SUM(D212:D214) -> 0 | E215: 0 | F215: 0 | G215: 0 | H215: 0 | I215: 0 | J215: 0 | K215: 0 | L215: 0 | M215: 0 | N215: 0 | O215: 0 | P215: 0 | Q215: 0 | R215: 0 | S215: 0 | T215: 0 | U215: 0 | V215: 0 | W215: 0
B217: Private sources - OWNER | C217: Unit | D217: =$D$4 -> 2019 | E217: =D217+1 -> 2020 | F217: =E217+1 -> 2021 | G217: =F217+1 -> 2022 | H217: =G217+1 -> 2023 | I217: =H217+1 -> 2024 | J217: =I217+1 -> 2025 | K217: =J217+1 -> 2026 | L217: =K217+1 -> 2027 | M217: =L217+1 -> 2028 | N217: =M217+1 -> 2029 | O217: =N217+1 -> 2030 | P217: =O217+1 -> 2031 | Q217: =P217+1 -> 2032 | R217: =Q217+1 -> 2033 | S217: =R217+1 -> 2034 | T217: =S217+1 -> 2035 | U217: =T217+1 -> 2036 | V217: =U217+1 -> 2037 | W217: =V217+1 -> 2038
B218: Private contribution
B219: Private equity | C219: =Currency -> EUR
B220: Private loan | C220: =Currency -> EUR
B221: Operating loan | C221: EUR
B222: <spare> | C222: EUR
B223: <spare> | C223: EUR
B224: Total private contribution | C224: EUR | D224: =SUM(D219:D223) -> 0 | E224: =SUM(E219:E223) -> 0 | F224: 0 | G224: 0 | H224: 0 | I224: 0 | J224: 0 | K224: 0 | L224: 0 | M224: 0 | N224: 0 | O224: 0 | P224: 0 | Q224: 0 | R224: 0 | S224: 0 | T224: 0 | U224: 0 | V224: 0 | W224: 0
B226: Expenditures
B227: Interest payments | C227: =Currency -> EUR | S227: 0 | T227: 0 | U227: 0 | V227: 0 | W227: 0
B228: Principal repayments | C228: =Currency -> EUR | S228: 0 | T228: 0 | U228: 0 | V228: 0 | W228: 0
B229: Loan fees | C229: =Currency -> EUR | S229: 0 | T229: 0 | U229: 0 | V229: 0 | W229: 0
B230: Total expenditure | C230: =Currency -> EUR | D230: =SUM(D227:D229) -> 0 | E230: 0 | F230: 0 | G230: 0 | H230: 0 | I230: 0 | J230: 0 | K230: 0 | L230: 0 | M230: 0 | N230: 0 | O230: 0 | P230: 0 | Q230: 0 | R230: 0 | S230: 0 | T230: 0 | U230: 0 | V230: 0 | W230: 0
B232: Private sources - OPERATOR | C232: Unit | D232: =$D$4 -> 2019 | E232: =D232+1 -> 2020 | F232: =E232+1 -> 2021 | G232: =F232+1 -> 2022 | H232: =G232+1 -> 2023 | I232: =H232+1 -> 2024 | J232: =I232+1 -> 2025 | K232: =J232+1 -> 2026 | L232: =K232+1 -> 2027 | M232: =L232+1 -> 2028 | N232: =M232+1 -> 2029 | O232: =N232+1 -> 2030 | P232: =O232+1 -> 2031 | Q232: =P232+1 -> 2032 | R232: =Q232+1 -> 2033 | S232: =R232+1 -> 2034 | T232: =S232+1 -> 2035 | U232: =T232+1 -> 2036 | V232: =U232+1 -> 2037 | W232: =V232+1 -> 2038
B233: Private contribution
B234: Private equity | C234: =Currency -> EUR | D234: =+D268*0.05 -> 385000 | E234: =+E268*0.05 -> 1265000 | F234: 1545000 | G234: 900000
B235: Private loan | C235: =Currency -> EUR | D235: =+D268*0.05 -> 385000 | E235: =+E268*0.05 -> 1265000 | F235: 1545000 | G235: 900000
B236: Operating loan | C236: EUR | D236: 0 | E236: 0 | F236: 0 | G236: 0
B237: <spare> | C237: EUR | D237: 0 | E237: 0 | F237: 0 | G237: 0
B238: <spare> | C238: EUR | D238: 0 | E238: 0 | F238: 0 | G238: 0
B239: Total private contribution | C239: EUR | D239: =SUM(D234:D238) -> 770000 | E239: =SUM(E234:E238) -> 2530000 | F239: =SUM(F234:F238) -> 3090000 | G239: =SUM(G234:G238) -> 1800000 | H239: =SUM(H234:H238) -> 0 | I239: 0 | J239: 0 | K239: 0 | L239: 0 | M239: 0 | N239: 0 | O239: 0 | P239: 0 | Q239: 0 | R239: 0 | S239: 0 | T239: 0 | U239: 0 | V239: 0 | W239: 0
B241: Expenditures
B242: Interest payments | C242: =Currency -> EUR | D242: 0 | E242: 0 | F242: 0 | G242: 0 | H242: 115171.875 | I242: 107493.75 | J242: 94594.5 | K242: 83243.16 | L242: 73253.9808 | M242: 64463.5031 | N242: 56727.88273 | O242: 49920.5368 | P242: 43930.07239 | Q242: 38658.4637 | R242: 34019.44806 | S242: 29937.11429 | T242: 26344.66058 | U242: 23183.30131 | V242: 20401.30515 | W242: 17953.14853
B243: Principal repayments | C243: =Currency -> EUR | D243: 0 | E243: 0 | F243: 0 | G243: 0 | H243: =+SUM(D235:G235)/16 -> 255937.5 | I243: =+H243 -> 255937.5 | J243: =+I243 -> 255937.5 | K243: 255937.5 | L243: 255937.5 | M243: 255937.5 | N243: 255937.5 | O243: 255937.5 | P243: 255937.5 | Q243: 255937.5 | R243: 255937.5 | S243: 255937.5 | T243: 255937.5 | U243: 255937.5 | V243: 255937.5 | W243: =+V243 -> 255937.5
B244: Loan fees | C244: =Currency -> EUR | D244: 0 | E244: 0 | F244: 0 | G244: 0 | H244: 0 | I244: 0 | J244: 0 | K244: 0 | L244: 0 | M244: 0 | N244: 0 | O244: 0 | P244: 0 | Q244: 0 | R244: 0 | S244: 0 | T244: 0 | U244: 0 | V244: 0 | W244: 0
B245: Total expenditure | C245: =Currency -> EUR | D245: =SUM(D242:D244) -> 0 | E245: 0 | F245: 0 | G245: 0 | H245: =SUM(H242:H244) -> 371109.375 | I245: 363431.25 | J245: 350532 | K245: 339180.66 | L245: 329191.4808 | M245: 320401.0031 | N245: 312665.3827 | O245: 305858.0368 | P245: 299867.5724 | Q245: 294595.9637 | R245: 289956.9481 | S245: 285874.6143 | T245: 282282.1606 | U245: 279120.8013 | V245: 276338.8051 | W245: 273890.6485
B249: CONSOLIDATED (OPERATOR + OWNER)
... 112 more rows

Sheet Parameters
D1: Parameters
C3: thousand | D3: 1000
C4: million | D4: 1000000
C5: billion | D5: 1000000000
C6: No. of months per year | D6: 12
C8: Labour cost ratio between Cohesion and Other member states | D8: 2.668235294 | E8: Source: International Labour Organization, Analysys Mason analysis
B12: Socio-economic benefit parameters | C12: Unit | D12: =Inputs!$D$4 -> 2019 | E12: =D12+1 -> 2020 | F12: =E12+1 -> 2021 | G12: 2022 | H12: 2023 | I12: 2024 | J12: 2025 | K12: 2026 | L12: 2027 | M12: 2028 | N12: 2029 | O12: 2030 | P12: 2031 | Q12: 2032 | R12: 2033 | S12: 2034 | T12: 2035 | U12: 2036 | V12: 2037 | W12: 2038
B13: Household consumer surplus from Nothing/Basic/Fast to Superfast broadband (monthly) | C13: =Currency -> EUR | D13: 17 | E13: =$D$13 -> 17 | F13: 17 | G13: 17 | H13: 17 | I13: 17 | J13: 17 | K13: 17 | L13: 17 | M13: 17 | N13: 17 | O13: 17 | P13: 17 | Q13: 17 | R13: 17 | S13: 17 | T13: 17 | U13: 17 | V13: 17 | W13: 17
B14: Household consumer surplus from Nothing/Basic/Fast to Ultrafast broadband (monthly) | C14: =Currency -> EUR | D14: 20 | E14: =$D$14 -> 20 | F14: =$D$14 -> 20 | G14: 20 | H14: 20 | I14: 20 | J14: 20 | K14: 20 | L14: 20 | M14: 20 | N14: 20 | O14: 20 | P14: 20 | Q14: 20 | R14: 20 | S14: 20 | T14: 20 | U14: 20 | V14: 20 | W14: 20
B15: Household consumer surplus from Superfast to Ultrafast broadband (monthly) | C15: =Currency -> EUR | D15: =D14-D13 -> 3 | E15: =$D$15 -> 3 | F15: =$D$15 -> 3 | G15: 3 | H15: 3 | I15: 3 | J15: 3 | K15: 3 | L15: 3 | M15: 3 | N15: 3 | O15: 3 | P15: 3 | Q15: 3 | R15: 3 | S15: 3 | T15: 3 | U15: 3 | V15: 3 | W15: 3
B17: GVA rise per employee due to Nothing/Basic/Fast to Superfast broadband (full realisation) | C17: % | D17: 0.003 | E17: =IF(D17+$D$17<$M$17,D17+$D$17,$M$17) -> 0.006 | F17: =IF(E17+$D$17<$M$17,E17+$D$17,$M$17) -> 0.009 | G17: 0.012 | H17: 0.015 | I17: 0.018 | J17: 0.021 | K17: 0.024 | L17: 0.027 | M17: 0.03 | N17: =$M17 -> 0.03 | O17: =$M17 -> 0.03 | P17: 0.03 | Q17: 0.03 | R17: 0.03 | S17: 0.03 | T17: 0.03 | U17: 0.03 | V17: 0.03 | W17: 0.03
B18: GVA rise per employee due to Nothing/Basic/Fast to Ultrafast broadband (full realisation) | C18: % | D18: 0.004 | E18: =IF(D18+$D$18<$M$18,D18+$D$18,$M$18) -> 0.008 | F18: =IF(E18+$D$18<$M$18,E18+$D$18,$M$18) -> 0.012 | G18: 0.016 | H18: 0.02 | I18: 0.024 | J18: 0.028 | K18: 0.032 | L18: 0.036 | M18: 0.04 | N18: =$M18 -> 0.04 | O18: 0.04 | P18: 0.04 | Q18: 0.04 | R18: 0.04 | S18: 0.04 | T18: 0.04 | U18: 0.04 | V18: 0.04 | W18: 0.04
B19: GVA rise per employee from Superfast to Ultrafast broadband (full realisation) | C19: % | D19: 0.001 | E19: =IF(D19+$D$19<$M$19,D19+$D$19,$M$19) -> 0.002 | F19: =IF(E19+$D$19<$M$19,E19+$D$19,$M$19) -> 0.003 | G19: 0.004 | H19: 0.005 | I19: 0.006 | J19: 0.007 | K19: 0.008 | L19: 0.009 | M19: 0.01 | N19: =$M19 -> 0.01 | O19: 0.01 | P19: 0.01 | Q19: 0.01 | R19: 0.01 | S19: 0.01 | T19: 0.01 | U19: 0.01 | V19: 0.01 | W19: 0.01
B21: Jobs creation parameter | C21: Unit | D21: Value
B22: Number of job years per EUR million (Other Member States) | C22: # | D22: 15
B23: Number of job years per EUR million (Cohsesion Member States) | C23: # | D23: =ROUND(D22*D8,0) -> 40

Sheet Financial analysis
H1: Financial analysis
B2: =Inputs!B249 & " " & "(All national sources)" -> CONSOLIDATED (OPERATOR + OWNER) (All national sources)
B3: =Inputs!B250 -> Cashflow projections (constant 2019 prices)
B4: Project expenditures and revenues | C4: Unit | D4: =Inputs!$D$4 -> 2019 | E4: =D4+1 -> 2020 | F4: =E4+1 -> 2021 | G4: =F4+1 -> 2022 | H4: =G4+1 -> 2023 | I4: =H4+1 -> 2024 | J4: =I4+1 -> 2025 | K4: =J4+1 -> 2026 | L4: =K4+1 -> 2027 | M4: =L4+1 -> 2028 | N4: =M4+1 -> 2029 | O4: =N4+1 -> 2030 | P4: =O4+1 -> 2031 | Q4: =P4+1 -> 2032 | R4: =Q4+1 -> 2033 | S4: =R4+1 -> 2034 | T4: =S4+1 -> 2035 | U4: =T4+1 -> 2036 | V4: =U4+1 -> 2037 | W4: =V4+1 -> 2038 | Y4: Total
B5: Capital expenditure | C5: =Currency -> EUR | D5: =Inputs!D295+Inputs!D296 -> 8200000 | E5: =Inputs!E295+Inputs!E296 -> 26300000 | F5: =Inputs!F295+Inputs!F296 -> 31900000 | G5: =Inputs!G295+Inputs!G296 -> 19000000 | H5: =Inputs!H295+Inputs!H296 -> 0 | I5: =Inputs!I295+Inputs!I296 -> 0 | J5: =Inputs!J295+Inputs!J296 -> 0 | K5: =Inputs!K295+Inputs!K296 -> 0 | L5: =Inputs!L295+Inputs!L296 -> 0 | M5: =Inputs!M295+Inputs!M296 -> 0 | N5: =Inputs!N295+Inputs!N296 -> 0 | O5: =Inputs!O295+Inputs!O296 -> 0 | P5: =Inputs!P295+Inputs!P296 -> 0 | Q5: =Inputs!Q295+Inputs!Q296 -> 0 | R5: =Inputs!R295+Inputs!R296 -> 0 | S5: =Inputs!S295+Inputs!S296 -> 0 | T5: =Inputs!T295+Inputs!T296 -> 0 | U5: =Inputs!U295+Inputs!U296 -> 0 | V5: =Inputs!V295+Inputs!V296 -> 0 | W5: =Inputs!W295+Inputs!W296 -> 0 | Y5: =SUM(D5:W5) -> 85400000
B6: Operational expenditure | C6: =Currency -> EUR | D6: =Inputs!D315 -> 0 | E6: =Inputs!E315 -> 694375 | F6: =Inputs!F315 -> 3185416.667 | G6: =Inputs!G315 -> 6475000 | H6: =Inputs!H315 -> 8917500 | I6: =Inputs!I315 -> 7551557.971 | J6: =Inputs!J315 -> 10374396.55 | K6: =Inputs!K315 -> 11178369.57 | L6: =Inputs!L315 -> 13250833.33 | M6: =Inputs!M315 -> 14740416.67 | N6: =Inputs!N315 -> 16230000 | O6: =Inputs!O315 -> 16230000 | P6: =Inputs!P315 -> 16230000 | Q6: =Inputs!Q315 -> 16230000 | R6: =Inputs!R315 -> 16230000 | S6: =Inputs!S315 -> 16230000 | T6: =Inputs!T315 -> 16230000 | U6: =Inputs!U315 -> 16230000 | V6: =Inputs!V315 -> 16230000 | W6: =Inputs!W315 -> 16230000 | Y6: =SUM(D6:W6) -> 238667865.8
B7: Revenue | C7: =Currency -> EUR | D7: =Inputs!D325 -> 0 | E7: =Inputs!E325 -> 2246400 | F7: =Inputs!F325 -> 4769280 | G7: =Inputs!G325 -> 8035200 | H7: =Inputs!H325 -> 10454400 | I7: =Inputs!I325 -> 10800000 | J7: =Inputs!J325 -> 12182400 | K7: =Inputs!K325 -> 13910400 | L7: =Inputs!L325 -> 15638400 | M7: =Inputs!M325 -> 17366400 | N7: =Inputs!N325 -> 19094400 | O7: =Inputs!O325 -> 20822400 | P7: =Inputs!P325 -> 22550400 | Q7: =Inputs!Q325 -> 24278400 | R7: =Inputs!R325 -> 26006400 | S7: =Inputs!S325 -> 27734400 | T7: =Inputs!T325 -> 29462400 | U7: =Inputs!U325 -> 29462400 | V7: =Inputs!V325 -> 29462400 | W7: =Inputs!W325 -> 29462400 | Y7: =SUM(D7:W7) -> 353738880
B8: Residual value | C8: =Currency -> EUR | D8: =Inputs!D327 -> 0 | E8: =Inputs!E327 -> 0 | F8: =Inputs!F327 -> 0 | G8: =Inputs!G327 -> 0 | H8: =Inputs!H327 -> 0 | I8: =Inputs!I327 -> 0 | J8: =Inputs!J327 -> 0 | K8: =Inputs!K327 -> 0 | L8: =Inputs!L327 -> 0 | M8: =Inputs!M327 -> 0 | N8: =Inputs!N327 -> 0 | O8: =Inputs!O327 -> 0 | P8: =Inputs!P327 -> 0 | Q8: =Inputs!Q327 -> 0 | R8: =Inputs!R327 -> 0 | S8: =Inputs!S327 -> 0 | T8: =Inputs!T327 -> 0 | U8: =Inputs!U327 -> 0 | V8: =Inputs!V327 -> 0 | W8: =Inputs!W327 -> 5000000 | Y8: =SUM(D8:W8) -> 5000000
B9: Replacement costs | C9: EUR | D9: =Inputs!D300 -> 0 | E9: =Inputs!E300 -> 0 | F9: =Inputs!F300 -> 0 | G9: =Inputs!G300 -> 0 | H9: =Inputs!H300 -> 0 | I9: =Inputs!I300 -> 0 | J9: =Inputs!J300 -> 0 | K9: =Inputs!K300 -> 0 | L9: =Inputs!L300 -> 0 | M9: =Inputs!M300 -> 0 | N9: =Inputs!N300 -> 0 | O9: =Inputs!O300 -> 2035600 | P9: =Inputs!P300 -> 2035600 | Q9: =Inputs!Q300 -> 2035600 | R9: =Inputs!R300 -> 2035600 | S9: =Inputs!S300 -> 2035600 | T9: =Inputs!T300 -> 2035600 | U9: =Inputs!U300 -> 2035600 | V9: =Inputs!V300 -> 2035600 | W9: =Inputs!W300 -> 2035600 | Y9: =SUM(D9:W9) -> 18320400
B10: Net project cashflow without project financial structure | C10: =Currency -> EUR | D10: =D7+D8-D6-D5-D9 -> -8200000 | E10: =E7+E8-E6-E5-E9 -> -24747975 | F10: -30316136.67 | G10: -17439800 | H10: 1536900 | I10: 3248442.029 | J10: 1808003.448 | K10: 2732030.435 | L10: 2387566.667 | M10: 2625983.333 | N10: 2864400 | O10: 2556800 | P10: 4284800 | Q10: 6012800 | R10: 7740800 | S10: 9468800 | T10: 11196800 | U10: 11196800 | V10: 11196800 | W10: 16196800 | Y10: =Y7+Y8-Y6-Y5-Y9 -> 16350614.25
B12: Interest payments | C12: =Currency -> EUR | D12: =Inputs!D194+Inputs!D212+Inputs!D227+Inputs!D242 -> 0 | E12: =Inputs!E194+Inputs!E212+Inputs!E227+Inputs!E242 -> 0 | F12: =Inputs!F194+Inputs!F212+Inputs!F227+Inputs!F242 -> 0 | G12: =Inputs!G194+Inputs!G212+Inputs!G227+Inputs!G242 -> 0 | H12: =Inputs!H194+Inputs!H212+Inputs!H227+Inputs!H242 -> 115171.875 | I12: =Inputs!I194+Inputs!I212+Inputs!I227+Inputs!I242 -> 107493.75 | J12: =Inputs!J194+Inputs!J212+Inputs!J227+Inputs!J242 -> 94594.5 | K12: =Inputs!K194+Inputs!K212+Inputs!K227+Inputs!K242 -> 83243.16 | L12: =Inputs!L194+Inputs!L212+Inputs!L227+Inputs!L242 -> 73253.9808 | M12: =Inputs!M194+Inputs!M212+Inputs!M227+Inputs!M242 -> 64463.5031 | N12: =Inputs!N194+Inputs!N212+Inputs!N227+Inputs!N242 -> 56727.88273 | O12: =Inputs!O194+Inputs!O212+Inputs!O227+Inputs!O242 -> 49920.5368 | P12: =Inputs!P194+Inputs!P212+Inputs!P227+Inputs!P242 -> 43930.07239 | Q12: =Inputs!Q194+Inputs!Q212+Inputs!Q227+Inputs!Q242 -> 38658.4637 | R12: =Inputs!R194+Inputs!R212+Inputs!R227+Inputs!R242 -> 34019.44806 | S12: =Inputs!S194+Inputs!S212+Inputs!S227+Inputs!S242 -> 29937.11429 | T12: =Inputs!T194+Inputs!T212+Inputs!T227+Inputs!T242 -> 26344.66058 | U12: =Inputs!U194+Inputs!U212+Inputs!U227+Inputs!U242 -> 23183.30131 | V12: =Inputs!V194+Inputs!V212+Inputs!V227+Inputs!V242 -> 20401.30515 | W12: =Inputs!W194+Inputs!W212+Inputs!W227+Inputs!W242 -> 17953.14853 | Y12: =SUM(D12:W12) -> 879296.7024
B13: Principal repayments | C13: EUR | D13: =Inputs!D195+Inputs!D213+Inputs!D228+Inputs!D243 -> 0 | E13: =Inputs!E195+Inputs!E213+Inputs!E228+Inputs!E243 -> 0 | F13: =Inputs!F195+Inputs!F213+Inputs!F228+Inputs!F243 -> 0 | G13: =Inputs!G195+Inputs!G213+Inputs!G228+Inputs!G243 -> 0 | H13: =Inputs!H195+Inputs!H213+Inputs!H228+Inputs!H243 -> 255937.5 | I13: =Inputs!I195+Inputs!I213+Inputs!I228+Inputs!I243 -> 255937.5 | J13: =Inputs!J195+Inputs!J213+Inputs!J228+Inputs!J243 -> 255937.5 | K13: =Inputs!K195+Inputs!K213+Inputs!K228+Inputs!K243 -> 255937.5 | L13: =Inputs!L195+Inputs!L213+Inputs!L228+Inputs!L243 -> 255937.5 | M13: =Inputs!M195+Inputs!M213+Inputs!M228+Inputs!M243 -> 255937.5 | N13: =Inputs!N195+Inputs!N213+Inputs!N228+Inputs!N243 -> 255937.5 | O13: =Inputs!O195+Inputs!O213+Inputs!O228+Inputs!O243 -> 255937.5 | P13: =Inputs!P195+Inputs!P213+Inputs!P228+Inputs!P243 -> 255937.5 | Q13: =Inputs!Q195+Inputs!Q213+Inputs!Q228+Inputs!Q243 -> 255937.5 | R13: =Inputs!R195+Inputs!R213+Inputs!R228+Inputs!R243 -> 255937.5 | S13: =Inputs!S195+Inputs!S213+Inputs!S228+Inputs!S243 -> 255937.5 | T13: =Inputs!T195+Inputs!T213+Inputs!T228+Inputs!T243 -> 255937.5 | U13: =Inputs!U195+Inputs!U213+Inputs!U228+Inputs!U243 -> 255937.5 | V13: =Inputs!V195+Inputs!V213+Inputs!V228+Inputs!V243 -> 255937.5 | W13: =Inputs!W195+Inputs!W213+Inputs!W228+Inputs!W243 -> 255937.5 | Y13: 4095000
B14: Loan fees | C14: EUR | D14: =Inputs!D196+Inputs!D214+Inputs!D229+Inputs!D244 -> 0 | E14: =Inputs!E196+Inputs!E229 -> 0 | F14: =Inputs!F196+Inputs!F229 -> 0 | G14: =Inputs!G196+Inputs!G229 -> 0 | H14: =Inputs!H196+Inputs!H229 -> 0 | I14: =Inputs!I196+Inputs!I229 -> 0 | J14: =Inputs!J196+Inputs!J229 -> 0 | K14: =Inputs!K196+Inputs!K229 -> 0 | L14: =Inputs!L196+Inputs!L229 -> 0 | M14: =Inputs!M196+Inputs!M229 -> 0 | N14: =Inputs!N196+Inputs!N229 -> 0 | O14: =Inputs!O196+Inputs!O229 -> 0 | P14: =Inputs!P196+Inputs!P229 -> 0 | Q14: =Inputs!Q196+Inputs!Q229 -> 0 | R14: =Inputs!R196+Inputs!R229 -> 0 | S14: =Inputs!S196+Inputs!S229 -> 0 | T14: =Inputs!T196+Inputs!T229 -> 0 | U14: =Inputs!U196+Inputs!U229 -> 0 | V14: =Inputs!V196+Inputs!V229 -> 0 | W14: =Inputs!W196+Inputs!W229 -> 0 | Y14: 0
B15: Public contribution (without loan repayments) | C15: EUR | D15: =(Inputs!D191+Inputs!D209)-(Inputs!D183+Inputs!D184+Inputs!D201+Inputs!D202) -> 6275000 | E15: =(Inputs!E191+Inputs!E209)-(Inputs!E183+Inputs!E184+Inputs!E201+Inputs!E202) -> 19975000 | F15: =(Inputs!F191+Inputs!F209)-(Inputs!F183+Inputs!F184+Inputs!F201+Inputs!F202) -> 24175000 | G15: =(Inputs!G191+Inputs!G209)-(Inputs!G183+Inputs!G184+Inputs!G201+Inputs!G202) -> 14500000 | H15: =(Inputs!H191+Inputs!H209)-(Inputs!H183+Inputs!H184+Inputs!H201+Inputs!H202) -> 0 | I15: =(Inputs!I191+Inputs!I209)-(Inputs!I183+Inputs!I184+Inputs!I201+Inputs!I202) -> 0 | J15: =(Inputs!J191+Inputs!J209)-(Inputs!J183+Inputs!J184+Inputs!J201+Inputs!J202) -> 0 | K15: =(Inputs!K191+Inputs!K209)-(Inputs!K183+Inputs!K184+Inputs!K201+Inputs!K202) -> 0 | L15: =(Inputs!L191+Inputs!L209)-(Inputs!L183+Inputs!L184+Inputs!L201+Inputs!L202) -> 0 | M15: =(Inputs!M191+Inputs!M209)-(Inputs!M183+Inputs!M184+Inputs!M201+Inputs!M202) -> 0 | N15: =(Inputs!N191+Inputs!N209)-(Inputs!N183+Inputs!N184+Inputs!N201+Inputs!N202) -> 0 | O15: =(Inputs!O191+Inputs!O209)-(Inputs!O183+Inputs!O184+Inputs!O201+Inputs!O202) -> 0 | P15: =(Inputs!P191+Inputs!P209)-(Inputs!P183+Inputs!P184+Inputs!P201+Inputs!P202) -> 0 | Q15: =(Inputs!Q191+Inputs!Q209)-(Inputs!Q183+Inputs!Q184+Inputs!Q201+Inputs!Q202) -> 0 | R15: =(Inputs!R191+Inputs!R209)-(Inputs!R183+Inputs!R184+Inputs!R201+Inputs!R202) -> 0 | S15: =(Inputs!S191+Inputs!S209)-(Inputs!S183+Inputs!S184+Inputs!S201+Inputs!S202) -> 0 | T15: =(Inputs!T191+Inputs!T209)-(Inputs!T183+Inputs!T184+Inputs!T201+Inputs!T202) -> 0 | U15: =(Inputs!U191+Inputs!U209)-(Inputs!U183+Inputs!U184+Inputs!U201+Inputs!U202) -> 0 | V15: =(Inputs!V191+Inputs!V209)-(Inputs!V183+Inputs!V184+Inputs!V201+Inputs!V202) -> 0 | W15: =(Inputs!W191+Inputs!W209)-(Inputs!W183+Inputs!W184+Inputs!W201+Inputs!W202) -> 0 | X15: =(Inputs!X191+Inputs!X209)-(Inputs!X183+Inputs!X184+Inputs!X201+Inputs!X202) -> 0 | Y15: =(Inputs!Y191+Inputs!Y209)-(Inputs!Y183+Inputs!Y184+Inputs!Y201+Inputs!Y202) -> 0
B16: Private contribution (without loan repayments) | C16: EUR | D16: =(Inputs!D224+Inputs!D239)-(Inputs!D235+Inputs!D220) -> 385000 | E16: =(Inputs!E224+Inputs!E239)-(Inputs!E235+Inputs!E220) -> 1265000 | F16: =(Inputs!F224+Inputs!F239)-(Inputs!F235+Inputs!F220) -> 1545000 | G16: =(Inputs!G224+Inputs!G239)-(Inputs!G235+Inputs!G220) -> 900000 | H16: =(Inputs!H224+Inputs!H239)-(Inputs!H236+Inputs!H221) -> 0 | I16: =(Inputs!I224+Inputs!I239)-(Inputs!I236+Inputs!I221) -> 0 | J16: =(Inputs!J224+Inputs!J239)-(Inputs!J236+Inputs!J221) -> 0 | K16: =(Inputs!K224+Inputs!K239)-(Inputs!K236+Inputs!K221) -> 0 | L16: =(Inputs!L224+Inputs!L239)-(Inputs!L236+Inputs!L221) -> 0 | M16: =(Inputs!M224+Inputs!M239)-(Inputs!M236+Inputs!M221) -> 0 | N16: =(Inputs!N224+Inputs!N239)-(Inputs!N236+Inputs!N221) -> 0 | O16: =(Inputs!O224+Inputs!O239)-(Inputs!O236+Inputs!O221) -> 0 | P16: =(Inputs!P224+Inputs!P239)-(Inputs!P236+Inputs!P221) -> 0 | Q16: =(Inputs!Q224+Inputs!Q239)-(Inputs!Q236+Inputs!Q221) -> 0 | R16: =(Inputs!R224+Inputs!R239)-(Inputs!R236+Inputs!R221) -> 0 | S16: =(Inputs!S224+Inputs!S239)-(Inputs!S236+Inputs!S221) -> 0 | T16: =(Inputs!T224+Inputs!T239)-(Inputs!T236+Inputs!T221) -> 0 | U16: =(Inputs!U224+Inputs!U239)-(Inputs!U236+Inputs!U221) -> 0 | V16: =(Inputs!V224+Inputs!V239)-(Inputs!V236+Inputs!V221) -> 0 | W16: =(Inputs!W224+Inputs!W239)-(Inputs!W236+Inputs!W221) -> 0 | Y16: 4095000
B17: Net project cashflow considering financial structure | C17: EUR | D17: =-D9+D8-D6+D7-D15-D16-D13-D12-D14 -> -6660000 | E17: =-E9+E8-E6+E7-E15-E16-E13-E12-E14 -> -19687975 | F17: -24136136.67 | G17: -13839800 | H17: 1165790.625 | I17: 2885010.779 | J17: 1457471.448 | K17: 2392849.775 | L17: 2058375.186 | M17: 2305582.33 | N17: 2551734.617 | O17: 2250941.963 | P17: 3984932.428 | Q17: 5718204.036 | R17: 7450843.052 | S17: 9182925.386 | T17: 10914517.84 | U17: 10917679.2 | V17: 10920461.19 | W17: 15922909.35 | Y17: 27756317.54
B20: FNPV(C) | C20: =Currency -> EUR | D20: =NPV(Inputs!$D$10,D10:W10) -> -19133303.29
B21: FRR(C) | C21: % | D21: =IRR(D10:W10) -> 0.01462001691
B23: FNPV(K) | C23: =Currency -> EUR | D23: =NPV(Inputs!$D$10,D17:W17) -> -7554033.225
B24: FRR(K) | C24: % | D24: =IRR(D17:W17) -> 0.02841567459
B26: Financial sustainability | D26: =Inputs!$D$4 -> 2019 | E26: =D26+1 -> 2020 | F26: =E26+1 -> 2021 | G26: 2022 | H26: 2023 | I26: 2024 | J26: 2025 | K26: 2026 | L26: 2027 | M26: 2028 | N26: 2029 | O26: 2030 | P26: 2031 | Q26: 2032 | R26: 2033 | S26: 2034 | T26: 2035 | U26: 2036 | V26: 2037 | W26: 2038 | Y26: Total
B27: Sources of financing | D27: ,
B28: Public
B29: =Inputs!B183 -> ERDF grant | C29: EUR | D29: =Inputs!D183+Inputs!D201 -> 1155000 | E29: =Inputs!E183+Inputs!E201 -> 3795000 | F29: =Inputs!F183+Inputs!F201 -> 4635000 | G29: =Inputs!G183+Inputs!G201 -> 2700000 | H29: =Inputs!H183+Inputs!H201 -> 0 | I29: =Inputs!I183+Inputs!I201 -> 0 | J29: =Inputs!J183+Inputs!J201 -> 0 | K29: =Inputs!K183+Inputs!K201 -> 0 | L29: =Inputs!L183+Inputs!L201 -> 0 | M29: =Inputs!M183+Inputs!M201 -> 0 | N29: =Inputs!N183+Inputs!N201 -> 0 | O29: =Inputs!O183+Inputs!O201 -> 0 | P29: =Inputs!P183+Inputs!P201 -> 0 | Q29: =Inputs!Q183+Inputs!Q201 -> 0 | R29: =Inputs!R183+Inputs!R201 -> 0 | S29: =Inputs!S183+Inputs!S201 -> 0 | T29: =Inputs!T183+Inputs!T201 -> 0 | U29: =Inputs!U183+Inputs!U201 -> 0 | V29: =Inputs!V183+Inputs!V201 -> 0 | W29: =Inputs!W183+Inputs!W201 -> 0 | Y29: =SUM(D29:W29) -> 12285000
B30: =Inputs!B184 -> EIB loan | C30: EUR | D30: =Inputs!D184+Inputs!D202 -> 0 | E30: =Inputs!E184+Inputs!E202 -> 0 | F30: =Inputs!F184+Inputs!F202 -> 0 | G30: =Inputs!G184+Inputs!G202 -> 0 | H30: =Inputs!H184+Inputs!H202 -> 0 | I30: =Inputs!I184+Inputs!I202 -> 0 | J30: =Inputs!J184+Inputs!J202 -> 0 | K30: =Inputs!K184+Inputs!K202 -> 0 | L30: =Inputs!L184+Inputs!L202 -> 0 | M30: =Inputs!M184+Inputs!M202 -> 0 | N30: =Inputs!N184+Inputs!N202 -> 0 | O30: =Inputs!O184+Inputs!O202 -> 0 | P30: =Inputs!P184+Inputs!P202 -> 0 | Q30: =Inputs!Q184+Inputs!Q202 -> 0 | R30: =Inputs!R184+Inputs!R202 -> 0 | S30: =Inputs!S184+Inputs!S202 -> 0 | T30: =Inputs!T184+Inputs!T202 -> 0 | U30: =Inputs!U184+Inputs!U202 -> 0 | V30: =Inputs!V184+Inputs!V202 -> 0 | W30: =Inputs!W184+Inputs!W202 -> 0 | Y30: =SUM(D30:W30) -> 0
B31: =Inputs!B185 -> Other public contribution | C31: EUR | D31: =Inputs!D185+Inputs!D203 -> 6275000 | E31: =Inputs!E185+Inputs!E203 -> 19975000 | F31: =Inputs!F185+Inputs!F203 -> 24175000 | G31: =Inputs!G185+Inputs!G203 -> 14500000 | H31: =Inputs!H185+Inputs!H203 -> 0 | I31: =Inputs!I185+Inputs!I203 -> 0 | J31: =Inputs!J185+Inputs!J203 -> 0 | K31: =Inputs!K185+Inputs!K203 -> 0 | L31: =Inputs!L185+Inputs!L203 -> 0 | M31: =Inputs!M185+Inputs!M203 -> 0 | N31: =Inputs!N185+Inputs!N203 -> 0 | O31: =Inputs!O185+Inputs!O203 -> 0 | P31: =Inputs!P185+Inputs!P203 -> 0 | Q31: =Inputs!Q185+Inputs!Q203 -> 0 | R31: =Inputs!R185+Inputs!R203 -> 0 | S31: =Inputs!S185+Inputs!S203 -> 0 | T31: =Inputs!T185+Inputs!T203 -> 0 | U31: =Inputs!U185+Inputs!U203 -> 0 | V31: =Inputs!V185+Inputs!V203 -> 0 | W31: =Inputs!W185+Inputs!W203 -> 0 | Y31: 64925000
B32: =Inputs!B186 -> <spare> | C32: EUR | D32: =Inputs!D186+Inputs!D204 -> 0 | E32: =Inputs!E186+Inputs!E204 -> 0 | F32: =Inputs!F186+Inputs!F204 -> 0 | G32: =Inputs!G186+Inputs!G204 -> 0 | H32: =Inputs!H186+Inputs!H204 -> 0 | I32: =Inputs!I186+Inputs!I204 -> 0 | J32: =Inputs!J186+Inputs!J204 -> 0 | K32: =Inputs!K186+Inputs!K204 -> 0 | L32: =Inputs!L186+Inputs!L204 -> 0 | M32: =Inputs!M186+Inputs!M204 -> 0 | N32: =Inputs!N186+Inputs!N204 -> 0 | O32: =Inputs!O186+Inputs!O204 -> 0 | P32: =Inputs!P186+Inputs!P204 -> 0 | Q32: =Inputs!Q186+Inputs!Q204 -> 0 | R32: =Inputs!R186+Inputs!R204 -> 0 | S32: =Inputs!S186+Inputs!S204 -> 0 | T32: =Inputs!T186+Inputs!T204 -> 0 | U32: =Inputs!U186+Inputs!U204 -> 0 | V32: =Inputs!V186+Inputs!V204 -> 0 | W32: =Inputs!W186+Inputs!W204 -> 0 | Y32: 0
B33: =Inputs!B187 -> <spare> | C33: EUR | D33: =Inputs!D187+Inputs!D205 -> 0 | E33: =Inputs!E187+Inputs!E205 -> 0 | F33: =Inputs!F187+Inputs!F205 -> 0 | G33: =Inputs!G187+Inputs!G205 -> 0 | H33: =Inputs!H187+Inputs!H205 -> 0 | I33: =Inputs!I187+Inputs!I205 -> 0 | J33: =Inputs!J187+Inputs!J205 -> 0 | K33: =Inputs!K187+Inputs!K205 -> 0 | L33: =Inputs!L187+Inputs!L205 -> 0 | M33: =Inputs!M187+Inputs!M205 -> 0 | N33: =Inputs!N187+Inputs!N205 -> 0 | O33: =Inputs!O187+Inputs!O205 -> 0 | P33: =Inputs!P187+Inputs!P205 -> 0 | Q33: =Inputs!Q187+Inputs!Q205 -> 0 | R33: =Inputs!R187+Inputs!R205 -> 0 | S33: =Inputs!S187+Inputs!S205 -> 0 | T33: =Inputs!T187+Inputs!T205 -> 0 | U33: =Inputs!U187+Inputs!U205 -> 0 | V33: =Inputs!V187+Inputs!V205 -> 0 | W33: =Inputs!W187+Inputs!W205 -> 0
B34: =Inputs!B188 -> <spare> | C34: EUR | D34: =Inputs!D188+Inputs!D206 -> 0 | E34: =Inputs!E188+Inputs!E206 -> 0 | F34: =Inputs!F188+Inputs!F206 -> 0 | G34: =Inputs!G188+Inputs!G206 -> 0 | H34: =Inputs!H188+Inputs!H206 -> 0 | I34: =Inputs!I188+Inputs!I206 -> 0 | J34: =Inputs!J188+Inputs!J206 -> 0 | K34: =Inputs!K188+Inputs!K206 -> 0 | L34: =Inputs!L188+Inputs!L206 -> 0 | M34: =Inputs!M188+Inputs!M206 -> 0 | N34: =Inputs!N188+Inputs!N206 -> 0 | O34: =Inputs!O188+Inputs!O206 -> 0 | P34: =Inputs!P188+Inputs!P206 -> 0 | Q34: =Inputs!Q188+Inputs!Q206 -> 0 | R34: =Inputs!R188+Inputs!R206 -> 0 | S34: =Inputs!S188+Inputs!S206 -> 0 | T34: =Inputs!T188+Inputs!T206 -> 0 | U34: =Inputs!U188+Inputs!U206 -> 0 | V34: =Inputs!V188+Inputs!V206 -> 0 | W34: =Inputs!W188+Inputs!W206 -> 0
B35: =Inputs!B189 -> <spare> | C35: EUR | D35: =Inputs!D189+Inputs!D207 -> 0 | E35: =Inputs!E189+Inputs!E207 -> 0 | F35: =Inputs!F189+Inputs!F207 -> 0 | G35: =Inputs!G189+Inputs!G207 -> 0 | H35: =Inputs!H189+Inputs!H207 -> 0 | I35: =Inputs!I189+Inputs!I207 -> 0 | J35: =Inputs!J189+Inputs!J207 -> 0 | K35: =Inputs!K189+Inputs!K207 -> 0 | L35: =Inputs!L189+Inputs!L207 -> 0 | M35: =Inputs!M189+Inputs!M207 -> 0 | N35: =Inputs!N189+Inputs!N207 -> 0 | O35: =Inputs!O189+Inputs!O207 -> 0 | P35: =Inputs!P189+Inputs!P207 -> 0 | Q35: =Inputs!Q189+Inputs!Q207 -> 0 | R35: =Inputs!R189+Inputs!R207 -> 0 | S35: =Inputs!S189+Inputs!S207 -> 0 | T35: =Inputs!T189+Inputs!T207 -> 0 | U35: =Inputs!U189+Inputs!U207 -> 0 | V35: =Inputs!V189+Inputs!V207 -> 0 | W35: =Inputs!W189+Inputs!W207 -> 0
B36: =Inputs!B190 -> <spare> | C36: EUR | D36: =Inputs!D190+Inputs!D208 -> 0 | E36: =Inputs!E190+Inputs!E208 -> 0 | F36: =Inputs!F190+Inputs!F208 -> 0 | G36: =Inputs!G190+Inputs!G208 -> 0 | H36: =Inputs!H190+Inputs!H208 -> 0 | I36: =Inputs!I190+Inputs!I208 -> 0 | J36: =Inputs!J190+Inputs!J208 -> 0 | K36: =Inputs!K190+Inputs!K208 -> 0 | L36: =Inputs!L190+Inputs!L208 -> 0 | M36: =Inputs!M190+Inputs!M208 -> 0 | N36: =Inputs!N190+Inputs!N208 -> 0 | O36: =Inputs!O190+Inputs!O208 -> 0 | P36: =Inputs!P190+Inputs!P208 -> 0 | Q36: =Inputs!Q190+Inputs!Q208 -> 0 | R36: =Inputs!R190+Inputs!R208 -> 0 | S36: =Inputs!S190+Inputs!S208 -> 0 | T36: =Inputs!T190+Inputs!T208 -> 0 | U36: =Inputs!U190+Inputs!U208 -> 0 | V36: =Inputs!V190+Inputs!V208 -> 0 | W36: =Inputs!W190+Inputs!W208 -> 0 | Y36: 0
B37: Private
B38: =Inputs!B219 -> Private equity | C38: EUR | D38: =Inputs!D234+Inputs!D219 -> 385000 | E38: =Inputs!E234+Inputs!E219 -> 1265000 | F38: =Inputs!F234+Inputs!F219 -> 1545000 | G38: =Inputs!G234+Inputs!G219 -> 900000 | H38: =Inputs!H219+Inputs!H234 -> 0 | I38: =Inputs!I219+Inputs!I234 -> 0 | J38: =Inputs!J219+Inputs!J234 -> 0 | K38: =Inputs!K219+Inputs!K234 -> 0 | L38: =Inputs!L219+Inputs!L234 -> 0 | M38: =Inputs!M219+Inputs!M234 -> 0 | N38: =Inputs!N219+Inputs!N234 -> 0 | O38: =Inputs!O219+Inputs!O234 -> 0 | P38: =Inputs!P219+Inputs!P234 -> 0 | Q38: =Inputs!Q219+Inputs!Q234 -> 0 | R38: =Inputs!R219+Inputs!R234 -> 0 | S38: =Inputs!S219+Inputs!S234 -> 0 | T38: =Inputs!T219+Inputs!T234 -> 0 | U38: =Inputs!U219+Inputs!U234 -> 0 | V38: =Inputs!V219+Inputs!V234 -> 0 | W38: =Inputs!W219+Inputs!W234 -> 0 | Y38: 4095000
B39: =Inputs!B220 -> Private loan | C39: EUR | D39: =Inputs!D235+Inputs!D220 -> 385000 | E39: =Inputs!E235+Inputs!E220 -> 1265000 | F39: =Inputs!F235+Inputs!F220 -> 1545000 | G39: =Inputs!G235+Inputs!G220 -> 900000 | H39: =Inputs!H220+Inputs!H235 -> 0 | I39: =Inputs!I220+Inputs!I235 -> 0 | J39: =Inputs!J220+Inputs!J235 -> 0 | K39: =Inputs!K220+Inputs!K235 -> 0 | L39: =Inputs!L220+Inputs!L235 -> 0 | M39: =Inputs!M220+Inputs!M235 -> 0 | N39: =Inputs!N220+Inputs!N235 -> 0 | O39: =Inputs!O220+Inputs!O235 -> 0 | P39: =Inputs!P220+Inputs!P235 -> 0 | Q39: =Inputs!Q220+Inputs!Q235 -> 0 | R39: =Inputs!R220+Inputs!R235 -> 0 | S39: =Inputs!S220+Inputs!S235 -> 0 | T39: =Inputs!T220+Inputs!T235 -> 0 | U39: =Inputs!U220+Inputs!U235 -> 0 | V39: =Inputs!V220+Inputs!V235 -> 0 | W39: =Inputs!W220+Inputs!W235 -> 0 | Y39: 4095000
B40: =Inputs!B221 -> Operating loan | C40: EUR | D40: =Inputs!D221+Inputs!D236 -> 0 | E40: =Inputs!E221+Inputs!E236 -> 0 | F40: =Inputs!F221+Inputs!F236 -> 0 | G40: =Inputs!G221+Inputs!G236 -> 0 | H40: =Inputs!H221+Inputs!H236 -> 0 | I40: =Inputs!I221+Inputs!I236 -> 0 | J40: =Inputs!J221+Inputs!J236 -> 0 | K40: =Inputs!K221+Inputs!K236 -> 0 | L40: =Inputs!L221+Inputs!L236 -> 0 | M40: =Inputs!M221+Inputs!M236 -> 0 | N40: =Inputs!N221+Inputs!N236 -> 0 | O40: =Inputs!O221+Inputs!O236 -> 0 | P40: =Inputs!P221+Inputs!P236 -> 0 | Q40: =Inputs!Q221+Inputs!Q236 -> 0 | R40: =Inputs!R221+Inputs!R236 -> 0 | S40: =Inputs!S221+Inputs!S236 -> 0 | T40: =Inputs!T221+Inputs!T236 -> 0 | U40: =Inputs!U221+Inputs!U236 -> 0 | V40: =Inputs!V221+Inputs!V236 -> 0 | W40: =Inputs!W221+Inputs!W236 -> 0 | Y40: 0
B41: =Inputs!B222 -> <spare> | C41: EUR | D41: =Inputs!D222+Inputs!D237 -> 0 | E41: =Inputs!E222+Inputs!E237 -> 0 | F41: =Inputs!F222+Inputs!F237 -> 0 | G41: =Inputs!G222+Inputs!G237 -> 0 | H41: =Inputs!H222+Inputs!H237 -> 0 | I41: =Inputs!I222+Inputs!I237 -> 0 | J41: =Inputs!J222+Inputs!J237 -> 0 | K41: =Inputs!K222+Inputs!K237 -> 0 | L41: =Inputs!L222+Inputs!L237 -> 0 | M41: =Inputs!M222+Inputs!M237 -> 0 | N41: =Inputs!N222+Inputs!N237 -> 0 | O41: =Inputs!O222+Inputs!O237 -> 0 | P41: =Inputs!P222+Inputs!P237 -> 0 | Q41: =Inputs!Q222+Inputs!Q237 -> 0 | R41: =Inputs!R222+Inputs!R237 -> 0 | S41: =Inputs!S222+Inputs!S237 -> 0 | T41: =Inputs!T222+Inputs!T237 -> 0 | U41: =Inputs!U222+Inputs!U237 -> 0 | V41: =Inputs!V222+Inputs!V237 -> 0 | W41: =Inputs!W222+Inputs!W237 -> 0 | Y41: 0
B42: =Inputs!B223 -> <spare> | C42: EUR | D42: =Inputs!D223+Inputs!D238 -> 0 | E42: =Inputs!E223+Inputs!E238 -> 0 | F42: =Inputs!F223+Inputs!F238 -> 0 | G42: =Inputs!G223+Inputs!G238 -> 0 | H42: =Inputs!H223+Inputs!H238 -> 0 | I42: =Inputs!I223+Inputs!I238 -> 0 | J42: =Inputs!J223+Inputs!J238 -> 0 | K42: =Inputs!K223+Inputs!K238 -> 0 | L42: =Inputs!L223+Inputs!L238 -> 0 | M42: =Inputs!M223+Inputs!M238 -> 0 | N42: =Inputs!N223+Inputs!N238 -> 0 | O42: =Inputs!O223+Inputs!O238 -> 0 | P42: =Inputs!P223+Inputs!P238 -> 0 | Q42: =Inputs!Q223+Inputs!Q238 -> 0 | R42: =Inputs!R223+Inputs!R238 -> 0 | S42: =Inputs!S223+Inputs!S238 -> 0 | T42: =Inputs!T223+Inputs!T238 -> 0 | U42: =Inputs!U223+Inputs!U238 -> 0 | V42: =Inputs!V223+Inputs!V238 -> 0 | W42: =Inputs!W223+Inputs!W238 -> 0 | Y42: 0
B43: Total revenues | C43: =Currency -> EUR | D43: =Inputs!D325 -> 0 | E43: =Inputs!E325 -> 2246400 | F43: =Inputs!F325 -> 4769280 | G43: =Inputs!G325 -> 8035200 | H43: =Inputs!H325 -> 10454400 | I43: =Inputs!I325 -> 10800000 | J43: =Inputs!J325 -> 12182400 | K43: =Inputs!K325 -> 13910400 | L43: =Inputs!L325 -> 15638400 | M43: =Inputs!M325 -> 17366400 | N43: =Inputs!N325 -> 19094400 | O43: =Inputs!O325 -> 20822400 | P43: =Inputs!P325 -> 22550400 | Q43: =Inputs!Q325 -> 24278400 | R43: =Inputs!R325 -> 26006400 | S43: =Inputs!S325 -> 27734400 | T43: =Inputs!T325 -> 29462400 | U43: =Inputs!U325 -> 29462400 | V43: =Inputs!V325 -> 29462400 | W43: =Inputs!W325 -> 29462400 | Y43: =SUM(D43:W43) -> 353738880
B44: Total inflows | C44: EUR | D44: =SUM(D29:D43) -> 8200000 | E44: =SUM(E29:E43) -> 28546400 | F44: 36669280 | G44: 27035200 | H44: 10454400 | I44: 10800000 | J44: 12182400 | K44: 13910400 | L44: 15638400 | M44: 17366400 | N44: 19094400 | O44: 20822400 | P44: 22550400 | Q44: 24278400 | R44: 26006400 | S44: 27734400 | T44: 29462400 | U44: 29462400 | V44: 29462400 | W44: 29462400 | Y44: 439138880
B45: Initial invesment | C45: EUR | D45: =Inputs!D293 -> 9740000 | E45: =Inputs!E293 -> 31360000 | F45: =Inputs!F293 -> 38080000 | G45: =Inputs!G293 -> 22600000 | H45: =Inputs!H293 -> 0 | I45: =Inputs!I293 -> 0 | J45: =Inputs!J293 -> 0 | K45: =Inputs!K293 -> 0 | L45: =Inputs!L293 -> 0 | M45: =Inputs!M293 -> 0 | N45: =Inputs!N293 -> 0 | O45: =Inputs!O293 -> 0 | P45: =Inputs!P293 -> 0 | Q45: =Inputs!Q293 -> 0 | R45: =Inputs!R293 -> 0 | S45: =Inputs!S293 -> 0 | T45: =Inputs!T293 -> 0 | U45: =Inputs!U293 -> 0 | V45: =Inputs!V293 -> 0 | W45: =Inputs!W293 -> 0 | Y45: 101780000
B46: Replacement costs | C46: EUR | D46: =Inputs!D300 -> 0 | E46: =Inputs!E300 -> 0 | F46: =Inputs!F300 -> 0 | G46: =Inputs!G300 -> 0 | H46: =Inputs!H300 -> 0 | I46: =Inputs!I300 -> 0 | J46: =Inputs!J300 -> 0 | K46: =Inputs!K300 -> 0 | L46: =Inputs!L300 -> 0 | M46: =Inputs!M300 -> 0 | N46: =Inputs!N300 -> 0 | O46: =Inputs!O300 -> 2035600 | P46: =Inputs!P300 -> 2035600 | Q46: =Inputs!Q300 -> 2035600 | R46: =Inputs!R300 -> 2035600 | S46: =Inputs!S300 -> 2035600 | T46: =Inputs!T300 -> 2035600 | U46: =Inputs!U300 -> 2035600 | V46: =Inputs!V300 -> 2035600 | W46: =Inputs!W300 -> 2035600 | Y46: 18320400
B47: Loan repayment (including interest) | C47: EUR | D47: =SUM(Inputs!D194:D196)+SUM(Inputs!D227:D229) -> 0 | E47: =SUM(Inputs!E194:E196)+SUM(Inputs!E227:E229) -> 0 | F47: =SUM(Inputs!F194:F196)+SUM(Inputs!F227:F229) -> 0 | G47: =SUM(Inputs!G194:G196)+SUM(Inputs!G227:G229) -> 0 | H47: =SUM(Inputs!H194:H196)+SUM(Inputs!H227:H229) -> 0 | I47: =SUM(Inputs!I194:I196)+SUM(Inputs!I227:I229) -> 0 | J47: =SUM(Inputs!J194:J196)+SUM(Inputs!J227:J229) -> 0 | K47: =SUM(Inputs!K194:K196)+SUM(Inputs!K227:K229) -> 0 | L47: =SUM(Inputs!L194:L196)+SUM(Inputs!L227:L229) -> 0 | M47: =SUM(Inputs!M194:M196)+SUM(Inputs!M227:M229) -> 0 | N47: =SUM(Inputs!N194:N196)+SUM(Inputs!N227:N229) -> 0 | O47: =SUM(Inputs!O194:O196)+SUM(Inputs!O227:O229) -> 0 | P47: =SUM(Inputs!P194:P196)+SUM(Inputs!P227:P229) -> 0 | Q47: =SUM(Inputs!Q194:Q196)+SUM(Inputs!Q227:Q229) -> 0 | R47: =SUM(Inputs!R194:R196)+SUM(Inputs!R227:R229) -> 0 | S47: =SUM(Inputs!S194:S196)+SUM(Inputs!S227:S229) -> 0 | T47: =SUM(Inputs!T194:T196)+SUM(Inputs!T227:T229) -> 0 | U47: =SUM(Inputs!U194:U196)+SUM(Inputs!U227:U229) -> 0 | V47: =SUM(Inputs!V194:V196)+SUM(Inputs!V227:V229) -> 0 | W47: =SUM(Inputs!W194:W196)+SUM(Inputs!W227:W229) -> 0 | Y47: 0
B48: Total operating costs | C48: EUR | D48: =Inputs!D315 -> 0 | E48: =Inputs!E315 -> 694375 | F48: =Inputs!F315 -> 3185416.667 | G48: =Inputs!G315 -> 6475000 | H48: =Inputs!H315 -> 8917500 | I48: =Inputs!I315 -> 7551557.971 | J48: =Inputs!J315 -> 10374396.55 | K48: =Inputs!K315 -> 11178369.57 | L48: =Inputs!L315 -> 13250833.33 | M48: =Inputs!M315 -> 14740416.67 | N48: =Inputs!N315 -> 16230000 | O48: =Inputs!O315 -> 16230000 | P48: =Inputs!P315 -> 16230000 | Q48: =Inputs!Q315 -> 16230000 | R48: =Inputs!R315 -> 16230000 | S48: =Inputs!S315 -> 16230000 | T48: =Inputs!T315 -> 16230000 | U48: =Inputs!U315 -> 16230000 | V48: =Inputs!V315 -> 16230000 | W48: =Inputs!W315 -> 16230000 | Y48: 238667865.8
B49: Taxes (INPUT) | C49: EUR | D49: 0 | E49: 0 | F49: 0 | G49: 0 | H49: 0 | I49: 0 | J49: 0 | K49: 0 | L49: 0 | M49: 0 | N49: 0 | O49: 0 | P49: 0 | Q49: 0 | R49: 0 | S49: 0 | T49: 0 | U49: 0 | V49: 0 | W49: 0 | Y49: 0
B50: Total outflows | C50: EUR | D50: =SUM(D45:D49) -> 9740000 | E50: =SUM(E45:E49) -> 32054375 | F50: 41265416.67 | G50: 29075000 | H50: 8917500 | I50: 7551557.971 | J50: 10374396.55 | K50: 11178369.57 | L50: 13250833.33 | M50: 14740416.67 | N50: 16230000 | O50: 18265600 | P50: 18265600 | Q50: 18265600 | R50: 18265600 | S50: 18265600 | T50: 18265600 | U50: 18265600 | V50: 18265600 | W50: 18265600 | Y50: 358768265.8
B51: Net cash flow | C51: EUR | D51: =D44-D50 -> -1540000 | E51: =E44-E50 -> -3507975 | F51: -4596136.667 | G51: -2039800 | H51: 1536900 | I51: 3248442.029 | J51: 1808003.448 | K51: 2732030.435 | L51: 2387566.667 | M51: 2625983.333 | N51: 2864400 | O51: 2556800 | P51: 4284800 | Q51: 6012800 | R51: 7740800 | S51: 9468800 | T51: 11196800 | U51: 11196800 | V51: 11196800 | W51: 11196800 | Y51: 80370614.25
B52: Cumulated net case flow | C52: EUR | D52: =D44-D50 -> -1540000 | E52: =E51+D52 -> -5047975 | F52: =F51+E52 -> -9644111.667 | G52: -11683911.67 | H52: -10147011.67 | I52: -6898569.638 | J52: -5090566.189 | K52: -2358535.755 | L52: 29030.91204 | M52: 2655014.245 | N52: 5519414.245 | O52: 8076214.245 | P52: 12361014.25 | Q52: 18373814.25 | R52: 26114614.25 | S52: 35583414.25 | T52: 46780214.25 | U52: 57977014.25 | V52: 69173814.25 | W52: 80370614.25 | Y52: 310603506
B56: =Inputs!B29 -> OWNER | C56: =Inputs!$N$4 -> Public
B57: =Inputs!B30 -> Cashflow projections (constant 2019 prices)
B58: Project expenditures and revenues | C58: Unit | D58: =Inputs!$D$4 -> 2019 | E58: =D58+1 -> 2020 | F58: 2021 | G58: 2022 | H58: 2023 | I58: 2024 | J58: 2025 | K58: 2026 | L58: 2027 | M58: 2028 | N58: 2029 | O58: 2030 | P58: 2031 | Q58: 2032 | R58: 2033 | S58: 2034 | T58: 2035 | U58: 2036 | V58: 2037 | W58: 2038 | Y58: Total
B59: Operational expenditure | C59: =Currency -> EUR | D59: =Inputs!D88 -> 0 | E59: =Inputs!E88 -> 0 | F59: =Inputs!F88 -> 0 | G59: =Inputs!G88 -> 0 | H59: =Inputs!H88 -> 500000 | I59: =Inputs!I88 -> 500000 | J59: =Inputs!J88 -> 500000 | K59: =Inputs!K88 -> 500000 | L59: =Inputs!L88 -> 500000 | M59: =Inputs!M88 -> 500000 | N59: =Inputs!N88 -> 500000 | O59: =Inputs!O88 -> 500000 | P59: =Inputs!P88 -> 500000 | Q59: =Inputs!Q88 -> 500000 | R59: =Inputs!R88 -> 500000 | S59: =Inputs!S88 -> 500000 | T59: =Inputs!T88 -> 500000 | U59: =Inputs!U88 -> 500000 | V59: =Inputs!V88 -> 500000 | W59: =Inputs!W88 -> 500000 | Y59: =SUM(D59:W59) -> 8000000
B60: Revenue | C60: =Currency -> EUR | D60: =Inputs!D95 -> 0 | E60: =Inputs!E95 -> 0 | F60: =Inputs!F95 -> 0 | G60: =Inputs!G95 -> 0 | H60: =Inputs!H95 -> 0 | I60: =Inputs!I95 -> 0 | J60: =Inputs!J95 -> 0 | K60: =Inputs!K95 -> 0 | L60: =Inputs!L95 -> 0 | M60: =Inputs!M95 -> 0 | N60: =Inputs!N95 -> 0 | O60: =Inputs!O95 -> 0 | P60: =Inputs!P95 -> 0 | Q60: =Inputs!Q95 -> 0 | R60: =Inputs!R95 -> 0 | S60: =Inputs!S95 -> 0 | T60: =Inputs!T95 -> 0 | U60: =Inputs!U95 -> 0 | V60: =Inputs!V95 -> 0 | W60: =Inputs!W95 -> 0 | Y60: =SUM(D60:W60) -> 0
B61: Residual value | C61: =Currency -> EUR | D61: =Inputs!D97 -> 0 | E61: =Inputs!E97 -> 0 | F61: =Inputs!F97 -> 0 | G61: =Inputs!G97 -> 0 | H61: =Inputs!H97 -> 0 | I61: =Inputs!I97 -> 0 | J61: =Inputs!J97 -> 0 | K61: =Inputs!K97 -> 0 | L61: =Inputs!L97 -> 0 | M61: =Inputs!M97 -> 0 | N61: =Inputs!N97 -> 0 | O61: =Inputs!O97 -> 0 | P61: =Inputs!P97 -> 0 | Q61: =Inputs!Q97 -> 0 | R61: =Inputs!R97 -> 0 | S61: =Inputs!S97 -> 0 | T61: =Inputs!T97 -> 0 | U61: =Inputs!U97 -> 0 | V61: =Inputs!V97 -> 0 | W61: =Inputs!W97 -> 0 | Y61: =SUM(D61:W61) -> 0
B62: Replacement costs | C62: EUR | D62: =Inputs!D77 -> 0 | E62: =Inputs!E77 -> 0 | F62: =Inputs!F77 -> 0 | G62: =Inputs!G77 -> 0 | H62: =Inputs!H77 -> 0 | I62: =Inputs!I77 -> 0 | J62: =Inputs!J77 -> 0 | K62: =Inputs!K77 -> 0 | L62: =Inputs!L77 -> 0 | M62: =Inputs!M77 -> 0 | N62: =Inputs!N77 -> 0 | O62: =Inputs!O77 -> 0 | P62: =Inputs!P77 -> 0 | Q62: =Inputs!Q77 -> 0 | R62: =Inputs!R77 -> 0 | S62: =Inputs!S77 -> 0 | T62: =Inputs!T77 -> 0 | U62: =Inputs!U77 -> 0 | V62: =Inputs!V77 -> 0 | W62: =Inputs!W77 -> 0 | Y62: =SUM(D62:W62) -> 0
B64: Interest payments | C64: =Currency -> EUR | D64: =IF($C$56="Public",Inputs!D194,IF('Financial analysis'!$C$56="Private",Inputs!D227)) -> 0 | E64: =IF($C$56="Public",Inputs!E194,IF('Financial analysis'!$C$56="Private",Inputs!E227)) -> 0 | F64: =IF($C$56="Public",Inputs!F194,IF('Financial analysis'!$C$56="Private",Inputs!F227)) -> 0 | G64: =IF($C$56="Public",Inputs!G194,IF('Financial analysis'!$C$56="Private",Inputs!G227)) -> 0 | H64: =IF($C$56="Public",Inputs!H194,IF('Financial analysis'!$C$56="Private",Inputs!#REF!)) -> 0 | I64: =IF($C$56="Public",Inputs!I194,IF('Financial analysis'!$C$56="Private",Inputs!#REF!)) -> 0 | J64: =IF($C$56="Public",Inputs!J194,IF('Financial analysis'!$C$56="Private",Inputs!#REF!)) -> 0 | K64: =IF($C$56="Public",Inputs!K194,IF('Financial analysis'!$C$56="Private",Inputs!#REF!)) -> 0 | L64: =IF($C$56="Public",Inputs!L194,IF('Financial analysis'!$C$56="Private",Inputs!#REF!)) -> 0 | M64: =IF($C$56="Public",Inputs!M194,IF('Financial analysis'!$C$56="Private",Inputs!#REF!)) -> 0 | N64: =IF($C$56="Public",Inputs!N194,IF('Financial analysis'!$C$56="Private",Inputs!#REF!)) -> 0 | O64: =IF($C$56="Public",Inputs!O194,IF('Financial analysis'!$C$56="Private",Inputs!#REF!)) -> 0 | P64: =IF($C$56="Public",Inputs!P194,IF('Financial analysis'!$C$56="Private",Inputs!#REF!)) -> 0 | Q64: =IF($C$56="Public",Inputs!Q194,IF('Financial analysis'!$C$56="Private",Inputs!#REF!)) -> 0 | R64: =IF($C$56="Public",Inputs!R194,IF('Financial analysis'!$C$56="Private",Inputs!R227)) -> 0 | S64: =IF($C$56="Public",Inputs!S194,IF('Financial analysis'!$C$56="Private",Inputs!S227)) -> 0 | T64: =IF($C$56="Public",Inputs!T194,IF('Financial analysis'!$C$56="Private",Inputs!T227)) -> 0 | U64: =IF($C$56="Public",Inputs!U194,IF('Financial analysis'!$C$56="Private",Inputs!U227)) -> 0 | V64: =IF($C$56="Public",Inputs!V194,IF('Financial analysis'!$C$56="Private",Inputs!V227)) -> 0 | W64: =IF($C$56="Public",Inputs!W194,IF('Financial analysis'!$C$56="Private",Inputs!W227)) -> 0 | Y64: =SUM(D64:W64) -> 0
B65: Principal repayments | C65: EUR | D65: =IF($C$56="Public",Inputs!D195,IF('Financial analysis'!$C$56="Private",Inputs!D228)) -> 0 | E65: =IF($C$56="Public",Inputs!E195,IF('Financial analysis'!$C$56="Private",Inputs!E228)) -> 0 | F65: =IF($C$56="Public",Inputs!F195,IF('Financial analysis'!$C$56="Private",Inputs!F228)) -> 0 | G65: =IF($C$56="Public",Inputs!G195,IF('Financial analysis'!$C$56="Private",Inputs!G228)) -> 0 | H65: =IF($C$56="Public",Inputs!H195,IF('Financial analysis'!$C$56="Private",Inputs!H243)) -> 0 | I65: =IF($C$56="Public",Inputs!I195,IF('Financial analysis'!$C$56="Private",Inputs!I243)) -> 0 | J65: =IF($C$56="Public",Inputs!J195,IF('Financial analysis'!$C$56="Private",Inputs!J243)) -> 0 | K65: =IF($C$56="Public",Inputs!K195,IF('Financial analysis'!$C$56="Private",Inputs!K243)) -> 0 | L65: =IF($C$56="Public",Inputs!L195,IF('Financial analysis'!$C$56="Private",Inputs!L243)) -> 0 | M65: =IF($C$56="Public",Inputs!M195,IF('Financial analysis'!$C$56="Private",Inputs!M243)) -> 0 | N65: =IF($C$56="Public",Inputs!N195,IF('Financial analysis'!$C$56="Private",Inputs!N243)) -> 0 | O65: =IF($C$56="Public",Inputs!O195,IF('Financial analysis'!$C$56="Private",Inputs!O243)) -> 0 | P65: =IF($C$56="Public",Inputs!P195,IF('Financial analysis'!$C$56="Private",Inputs!P243)) -> 0 | Q65: =IF($C$56="Public",Inputs!Q195,IF('Financial analysis'!$C$56="Private",Inputs!Q243)) -> 0 | R65: =IF($C$56="Public",Inputs!R195,IF('Financial analysis'!$C$56="Private",Inputs!R228)) -> 0 | S65: =IF($C$56="Public",Inputs!S195,IF('Financial analysis'!$C$56="Private",Inputs!S228)) -> 0 | T65: =IF($C$56="Public",Inputs!T195,IF('Financial analysis'!$C$56="Private",Inputs!T228)) -> 0 | U65: =IF($C$56="Public",Inputs!U195,IF('Financial analysis'!$C$56="Private",Inputs!U228)) -> 0 | V65: =IF($C$56="Public",Inputs!V195,IF('Financial analysis'!$C$56="Private",Inputs!V228)) -> 0 | W65: =IF($C$56="Public",Inputs!W195,IF('Financial analysis'!$C$56="Private",Inputs!W228)) -> 0 | Y65: 0
B66: Loan fees | C66: EUR | D66: =IF($C$56="Public",Inputs!D196,IF('Financial analysis'!$C$56="Private",Inputs!D229)) -> 0 | E66: =IF($C$56="Public",Inputs!E196,IF('Financial analysis'!$C$56="Private",Inputs!E229)) -> 0 | F66: =IF($C$56="Public",Inputs!F196,IF('Financial analysis'!$C$56="Private",Inputs!F229)) -> 0 | G66: =IF($C$56="Public",Inputs!G196,IF('Financial analysis'!$C$56="Private",Inputs!G229)) -> 0 | H66: =IF($C$56="Public",Inputs!H196,IF('Financial analysis'!$C$56="Private",Inputs!H229)) -> 0 | I66: =IF($C$56="Public",Inputs!I196,IF('Financial analysis'!$C$56="Private",Inputs!I229)) -> 0 | J66: =IF($C$56="Public",Inputs!J196,IF('Financial analysis'!$C$56="Private",Inputs!J229)) -> 0 | K66: =IF($C$56="Public",Inputs!K196,IF('Financial analysis'!$C$56="Private",Inputs!K229)) -> 0 | L66: =IF($C$56="Public",Inputs!L196,IF('Financial analysis'!$C$56="Private",Inputs!L229)) -> 0 | M66: =IF($C$56="Public",Inputs!M196,IF('Financial analysis'!$C$56="Private",Inputs!M229)) -> 0 | N66: =IF($C$56="Public",Inputs!N196,IF('Financial analysis'!$C$56="Private",Inputs!N229)) -> 0 | O66: =IF($C$56="Public",Inputs!O196,IF('Financial analysis'!$C$56="Private",Inputs!O229)) -> 0 | P66: =IF($C$56="Public",Inputs!P196,IF('Financial analysis'!$C$56="Private",Inputs!P229)) -> 0 | Q66: =IF($C$56="Public",Inputs!Q196,IF('Financial analysis'!$C$56="Private",Inputs!Q229)) -> 0 | R66: =IF($C$56="Public",Inputs!R196,IF('Financial analysis'!$C$56="Private",Inputs!R229)) -> 0 | S66: =IF($C$56="Public",Inputs!S196,IF('Financial analysis'!$C$56="Private",Inputs!S229)) -> 0 | T66: =IF($C$56="Public",Inputs!T196,IF('Financial analysis'!$C$56="Private",Inputs!T229)) -> 0 | U66: =IF($C$56="Public",Inputs!U196,IF('Financial analysis'!$C$56="Private",Inputs!U229)) -> 0 | V66: =IF($C$56="Public",Inputs!V196,IF('Financial analysis'!$C$56="Private",Inputs!V229)) -> 0 | W66: =IF($C$56="Public",Inputs!W196,IF('Financial analysis'!$C$56="Private",Inputs!W229)) -> 0 | Y66: 0
B67: Public contribution | C67: EUR | D67: =Inputs!D191-Inputs!D184-Inputs!D183 -> 6275000 | E67: =Inputs!E191-Inputs!E184-Inputs!E183 -> 19975000 | F67: =Inputs!F191-Inputs!F184-Inputs!F183 -> 24175000 | G67: =Inputs!G191-Inputs!G184-Inputs!G183 -> 14500000 | H67: =Inputs!H191-Inputs!H184-Inputs!H183 -> 0 | I67: =Inputs!I191-Inputs!I184-Inputs!I183 -> 0 | J67: =Inputs!J191-Inputs!J184-Inputs!J183 -> 0 | K67: =Inputs!K191-Inputs!K184-Inputs!K183 -> 0 | L67: =Inputs!L191-Inputs!L184-Inputs!L183 -> 0 | M67: =Inputs!M191-Inputs!M184-Inputs!M183 -> 0 | N67: =Inputs!N191-Inputs!N184-Inputs!N183 -> 0 | O67: =Inputs!O191-Inputs!O184-Inputs!O183 -> 0 | P67: =Inputs!P191-Inputs!P184-Inputs!P183 -> 0 | Q67: =Inputs!Q191-Inputs!Q184-Inputs!Q183 -> 0 | R67: =Inputs!R191-Inputs!R184 -> 0 | S67: =Inputs!S191-Inputs!S184 -> 0 | T67: =Inputs!T191-Inputs!T184 -> 0 | U67: =Inputs!U191-Inputs!U184 -> 0 | V67: =Inputs!V191-Inputs!V184 -> 0 | W67: =Inputs!W191-Inputs!W184 -> 0 | Y67: 64925000
B68: Private contribution | C68: EUR | D68: =Inputs!D224 -> 0 | E68: =Inputs!E224 -> 0 | F68: =Inputs!F224 -> 0 | G68: =Inputs!G224 -> 0 | H68: =Inputs!H224 -> 0 | I68: =Inputs!I224-Inputs!I220 -> 0 | J68: =Inputs!J224-Inputs!J220 -> 0 | K68: =Inputs!K224-Inputs!K220 -> 0 | L68: =Inputs!L224-Inputs!L220 -> 0 | M68: =Inputs!M224-Inputs!M220 -> 0 | N68: =Inputs!N224-Inputs!N220 -> 0 | O68: =Inputs!O224-Inputs!O220 -> 0 | P68: =Inputs!P224-Inputs!P220 -> 0 | Q68: =Inputs!Q224-Inputs!Q220 -> 0 | R68: =Inputs!R224-Inputs!R220 -> 0 | S68: =Inputs!S224-Inputs!S220 -> 0 | T68: =Inputs!T224-Inputs!T220 -> 0 | U68: =Inputs!U224-Inputs!U220 -> 0 | V68: =Inputs!V224-Inputs!V220 -> 0 | W68: =Inputs!W224-Inputs!W220 -> 0 | Y68: 0
B69: Net project cashflow considering financial structure | C69: EUR | D69: =-D62+D61-D59+D60-D67-D68-D65-D64-D66 -> -6275000 | E69: =-E62+E61-E59+E60-E67-E68-E65-E64-E66 -> -19975000 | F69: -24175000 | G69: -14500000 | H69: -500000 | I69: -500000 | J69: -500000 | K69: -500000 | L69: -500000 | M69: -500000 | N69: -500000 | O69: -500000 | P69: -500000 | Q69: -500000 | R69: -500000 | S69: -500000 | T69: -500000 | U69: -500000 | V69: -500000 | W69: -500000 | Y69: -72925000
B72: =IF($C$56="Public","FNPV(Kg)",IF($C$56="Private","FNPV(Kp)")) -> FNPV(Kg) | C72: =Currency -> EUR | D72: =NPV(Inputs!$D$10,D69:W69) -> -63368027.5
B73: =IF($C$56="Public","FRR(Kg)",IF($C$56="Private","FRR(Kp)")) -> FRR(Kg) | C73: % | D73: =IFERROR(IRR(D69:W69),"N/A") -> N/A
B77: =Inputs!B103 -> OPERATOR | C77: =Inputs!$N$5 -> Private
B78: =Inputs!B104 -> Cashflow projections (constant 2019 prices)
B79: Project expenditures and revenues | C79: Unit | D79: =Inputs!$D$4 -> 2019 | E79: =D79+1 -> 2020 | F79: =E79+1 -> 2021 | G79: =F79+1 -> 2022 | H79: =G79+1 -> 2023 | I79: =H79+1 -> 2024 | J79: =I79+1 -> 2025 | K79: =J79+1 -> 2026 | L79: =K79+1 -> 2027 | M79: =L79+1 -> 2028 | N79: =M79+1 -> 2029 | O79: =N79+1 -> 2030 | P79: =O79+1 -> 2031 | Q79: =P79+1 -> 2032 | R79: =Q79+1 -> 2033 | S79: =R79+1 -> 2034 | T79: =S79+1 -> 2035 | U79: =T79+1 -> 2036 | V79: =U79+1 -> 2037 | W79: =V79+1 -> 2038 | Y79: Total
B80: Operational expenditure | C80: =Currency -> EUR | D80: =Inputs!D162 -> 0 | E80: =Inputs!E162 -> 694375 | F80: =Inputs!F162 -> 3185416.667 | G80: =Inputs!G162 -> 6475000 | H80: =Inputs!H162 -> 8417500 | I80: =Inputs!I162 -> 7051557.971 | J80: =Inputs!J162 -> 9874396.552 | K80: =Inputs!K162 -> 10678369.57 | L80: =Inputs!L162 -> 12750833.33 | M80: =Inputs!M162 -> 14240416.67 | N80: =Inputs!N162 -> 15730000 | O80: =Inputs!O162 -> 15730000 | P80: =Inputs!P162 -> 15730000 | Q80: =Inputs!Q162 -> 15730000 | R80: =Inputs!R162 -> 15730000 | S80: =Inputs!S162 -> 15730000 | T80: =Inputs!T162 -> 15730000 | U80: =Inputs!U162 -> 15730000 | V80: =Inputs!V162 -> 15730000 | W80: =Inputs!W162 -> 15730000 | Y80: =SUM(D80:W80) -> 230667865.8
B81: Revenue | C81: =Currency -> EUR | D81: =Inputs!D171 -> 0 | E81: =Inputs!E171 -> 1900800 | F81: =Inputs!F171 -> 4008960 | G81: =Inputs!G171 -> 6566400 | H81: =Inputs!H171 -> 8380800 | I81: =Inputs!I171 -> 8640000 | J81: =Inputs!J171 -> 9676800 | K81: =Inputs!K171 -> 10972800 | L81: =Inputs!L171 -> 12268800 | M81: =Inputs!M171 -> 13564800 | N81: =Inputs!N171 -> 14860800 | O81: =Inputs!O171 -> 16156800 | P81: =Inputs!P171 -> 17452800 | Q81: =Inputs!Q171 -> 18748800 | R81: =Inputs!R171 -> 20044800 | S81: =Inputs!S171 -> 21340800 | T81: =Inputs!T171 -> 22636800 | U81: =Inputs!U171 -> 22636800 | V81: =Inputs!V171 -> 22636800 | W81: =Inputs!W171 -> 22636800 | Y81: =SUM(D81:W81) -> 275132160
B82: Residual value | C82: =Currency -> EUR | D82: =Inputs!D173 -> 0 | E82: =Inputs!E173 -> 0 | F82: =Inputs!F173 -> 0 | G82: =Inputs!G173 -> 0 | H82: =Inputs!H173 -> 0 | I82: =Inputs!I173 -> 0 | J82: =Inputs!J173 -> 0 | K82: =Inputs!K173 -> 0 | L82: =Inputs!L173 -> 0 | M82: =Inputs!M173 -> 0 | N82: =Inputs!N173 -> 0 | O82: =Inputs!O173 -> 0 | P82: =Inputs!P173 -> 0 | Q82: =Inputs!Q173 -> 0 | R82: =Inputs!R173 -> 0 | S82: =Inputs!S173 -> 0 | T82: =Inputs!T173 -> 0 | U82: =Inputs!U173 -> 0 | V82: =Inputs!V173 -> 0 | W82: =Inputs!W173 -> 5000000 | Y82: =SUM(D82:W82) -> 5000000
B83: Replacement costs | C83: EUR | D83: =Inputs!D151 -> 0 | E83: =Inputs!E151 -> 0 | F83: =Inputs!F151 -> 0 | G83: =Inputs!G151 -> 0 | H83: =Inputs!H151 -> 0 | I83: =Inputs!I151 -> 0 | J83: =Inputs!J151 -> 0 | K83: =Inputs!K151 -> 0 | L83: =Inputs!L151 -> 0 | M83: =Inputs!M151 -> 0 | N83: =Inputs!N151 -> 0 | O83: =Inputs!O151 -> 2035600 | P83: =Inputs!P151 -> 2035600 | Q83: =Inputs!Q151 -> 2035600 | R83: =Inputs!R151 -> 2035600 | S83: =Inputs!S151 -> 2035600 | T83: =Inputs!T151 -> 2035600 | U83: =Inputs!U151 -> 2035600 | V83: =Inputs!V151 -> 2035600 | W83: =Inputs!W151 -> 2035600 | Y83: =SUM(D83:W83) -> 18320400
B85: Interest payments | C85: =Currency -> EUR | D85: =IF($C$77="Public",Inputs!D212,IF('Financial analysis'!$C$77="Private",Inputs!D242)) -> 0 | E85: =IF($C$77="Public",Inputs!E212,IF('Financial analysis'!$C$77="Private",Inputs!E242)) -> 0 | F85: =IF($C$77="Public",Inputs!F212,IF('Financial analysis'!$C$77="Private",Inputs!F242)) -> 0 | G85: =IF($C$77="Public",Inputs!G212,IF('Financial analysis'!$C$77="Private",Inputs!G242)) -> 0 | H85: =IF($C$77="Public",Inputs!H212,IF('Financial analysis'!$C$77="Private",Inputs!#REF!)) ->  | I85: =IF($C$77="Public",Inputs!I212,IF('Financial analysis'!$C$77="Private",Inputs!#REF!)) ->  | J85: =IF($C$77="Public",Inputs!J212,IF('Financial analysis'!$C$77="Private",Inputs!#REF!)) ->  | K85: =IF($C$77="Public",Inputs!K212,IF('Financial analysis'!$C$77="Private",Inputs!#REF!)) ->  | L85: =IF($C$77="Public",Inputs!L212,IF('Financial analysis'!$C$77="Private",Inputs!#REF!)) ->  | M85: =IF($C$77="Public",Inputs!M212,IF('Financial analysis'!$C$77="Private",Inputs!#REF!)) ->  | N85: =IF($C$77="Public",Inputs!N212,IF('Financial analysis'!$C$77="Private",Inputs!#REF!)) ->  | O85: =IF($C$77="Public",Inputs!O212,IF('Financial analysis'!$C$77="Private",Inputs!#REF!)) ->  | P85: =IF($C$77="Public",Inputs!P212,IF('Financial analysis'!$C$77="Private",Inputs!#REF!)) ->  | Q85: =IF($C$77="Public",Inputs!Q212,IF('Financial analysis'!$C$77="Private",Inputs!#REF!)) ->  | R85: =IF($C$77="Public",Inputs!R212,IF('Financial analysis'!$C$77="Private",Inputs!#REF!)) ->  | S85: =IF($C$77="Public",Inputs!S212,IF('Financial analysis'!$C$77="Private",Inputs!#REF!)) ->  | T85: =IF($C$77="Public",Inputs!T212,IF('Financial analysis'!$C$77="Private",Inputs!#REF!)) ->  | U85: =IF($C$77="Public",Inputs!U212,IF('Financial analysis'!$C$77="Private",Inputs!#REF!)) ->  | V85: =IF($C$77="Public",Inputs!V212,IF('Financial analysis'!$C$77="Private",Inputs!#REF!)) ->  | W85: =IF($C$77="Public",Inputs!W212,IF('Financial analysis'!$C$77="Private",Inputs!#REF!)) ->  | Y85: =SUM(D85:W85) -> 
B86: Principal repayments | C86: EUR | D86: =IF($C$77="Public",Inputs!D213,IF('Financial analysis'!$C$77="Private",Inputs!D243)) -> 0 | E86: =IF($C$77="Public",Inputs!E213,IF('Financial analysis'!$C$77="Private",Inputs!E243)) -> 0 | F86: =IF($C$77="Public",Inputs!F213,IF('Financial analysis'!$C$77="Private",Inputs!F243)) -> 0 | G86: =IF($C$77="Public",Inputs!G213,IF('Financial analysis'!$C$77="Private",Inputs!G243)) -> 0 | H86: =IF($C$77="Public",Inputs!H213,IF('Financial analysis'!$C$77="Private",Inputs!H243)) -> 255937.5 | I86: =IF($C$77="Public",Inputs!I213,IF('Financial analysis'!$C$77="Private",Inputs!I243)) -> 255937.5 | J86: =IF($C$77="Public",Inputs!J213,IF('Financial analysis'!$C$77="Private",Inputs!J243)) -> 255937.5 | K86: =IF($C$77="Public",Inputs!K213,IF('Financial analysis'!$C$77="Private",Inputs!K243)) -> 255937.5 | L86: =IF($C$77="Public",Inputs!L213,IF('Financial analysis'!$C$77="Private",Inputs!L243)) -> 255937.5 | M86: =IF($C$77="Public",Inputs!M213,IF('Financial analysis'!$C$77="Private",Inputs!M243)) -> 255937.5 | N86: =IF($C$77="Public",Inputs!N213,IF('Financial analysis'!$C$77="Private",Inputs!N243)) -> 255937.5 | O86: =IF($C$77="Public",Inputs!O213,IF('Financial analysis'!$C$77="Private",Inputs!O243)) -> 255937.5 | P86: =IF($C$77="Public",Inputs!P213,IF('Financial analysis'!$C$77="Private",Inputs!P243)) -> 255937.5 | Q86: =IF($C$77="Public",Inputs!Q213,IF('Financial analysis'!$C$77="Private",Inputs!Q243)) -> 255937.5 | R86: =IF($C$77="Public",Inputs!R213,IF('Financial analysis'!$C$77="Private",Inputs!R243)) -> 255937.5 | S86: =IF($C$77="Public",Inputs!S213,IF('Financial analysis'!$C$77="Private",Inputs!S243)) -> 255937.5 | T86: =IF($C$77="Public",Inputs!T213,IF('Financial analysis'!$C$77="Private",Inputs!T243)) -> 255937.5 | U86: =IF($C$77="Public",Inputs!U213,IF('Financial analysis'!$C$77="Private",Inputs!U243)) -> 255937.5 | V86: =IF($C$77="Public",Inputs!V213,IF('Financial analysis'!$C$77="Private",Inputs!V243)) -> 255937.5 | W86: =IF($C$77="Public",Inputs!W213,IF('Financial analysis'!$C$77="Private",Inputs!W243)) -> 255937.5 | Y86: 4095000
B87: Loan fees | C87: EUR | D87: =IF($C$77="Public",Inputs!D214,IF('Financial analysis'!$C$77="Private",Inputs!D244)) -> 0 | E87: =IF($C$77="Public",Inputs!E214,IF('Financial analysis'!$C$77="Private",Inputs!E244)) -> 0 | F87: =IF($C$77="Public",Inputs!F214,IF('Financial analysis'!$C$77="Private",Inputs!F244)) -> 0 | G87: =IF($C$77="Public",Inputs!G214,IF('Financial analysis'!$C$77="Private",Inputs!G244)) -> 0 | H87: =IF($C$77="Public",Inputs!H214,IF('Financial analysis'!$C$77="Private",Inputs!H244)) -> 0 | I87: =IF($C$77="Public",Inputs!I214,IF('Financial analysis'!$C$77="Private",Inputs!I244)) -> 0 | J87: =IF($C$77="Public",Inputs!J214,IF('Financial analysis'!$C$77="Private",Inputs!J244)) -> 0 | K87: =IF($C$77="Public",Inputs!K214,IF('Financial analysis'!$C$77="Private",Inputs!K244)) -> 0 | L87: =IF($C$77="Public",Inputs!L214,IF('Financial analysis'!$C$77="Private",Inputs!L244)) -> 0 | M87: =IF($C$77="Public",Inputs!M214,IF('Financial analysis'!$C$77="Private",Inputs!M244)) -> 0 | N87: =IF($C$77="Public",Inputs!N214,IF('Financial analysis'!$C$77="Private",Inputs!N244)) -> 0 | O87: =IF($C$77="Public",Inputs!O214,IF('Financial analysis'!$C$77="Private",Inputs!O244)) -> 0 | P87: =IF($C$77="Public",Inputs!P214,IF('Financial analysis'!$C$77="Private",Inputs!P244)) -> 0 | Q87: =IF($C$77="Public",Inputs!Q214,IF('Financial analysis'!$C$77="Private",Inputs!Q244)) -> 0 | R87: =IF($C$77="Public",Inputs!R214,IF('Financial analysis'!$C$77="Private",Inputs!R244)) -> 0 | S87: =IF($C$77="Public",Inputs!S214,IF('Financial analysis'!$C$77="Private",Inputs!S244)) -> 0 | T87: =IF($C$77="Public",Inputs!T214,IF('Financial analysis'!$C$77="Private",Inputs!T244)) -> 0 | U87: =IF($C$77="Public",Inputs!U214,IF('Financial analysis'!$C$77="Private",Inputs!U244)) -> 0 | V87: =IF($C$77="Public",Inputs!V214,IF('Financial analysis'!$C$77="Private",Inputs!V244)) -> 0 | W87: =IF($C$77="Public",Inputs!W214,IF('Financial analysis'!$C$77="Private",Inputs!W244)) -> 0 | Y87: 0
B88: Public contribution | C88: EUR | D88: =Inputs!D209-Inputs!D202 -> 0 | E88: =Inputs!E209-Inputs!E202 -> 0 | F88: =Inputs!F209-Inputs!F202 -> 0 | G88: =Inputs!G209-Inputs!G202 -> 0 | H88: =Inputs!H209-Inputs!H202 -> 0 | I88: =Inputs!I209-Inputs!I202 -> 0 | J88: =Inputs!J209-Inputs!J202 -> 0 | K88: =Inputs!K209-Inputs!K202 -> 0 | L88: =Inputs!L209-Inputs!L202 -> 0 | M88: =Inputs!M209-Inputs!M202 -> 0 | N88: =Inputs!N209-Inputs!N202 -> 0 | O88: =Inputs!O209-Inputs!O202 -> 0 | P88: =Inputs!P209-Inputs!P202 -> 0 | Q88: =Inputs!Q209-Inputs!Q202 -> 0 | R88: =Inputs!R209-Inputs!R202 -> 0 | S88: =Inputs!S209-Inputs!S202 -> 0 | T88: =Inputs!T209-Inputs!T202 -> 0 | U88: =Inputs!U209-Inputs!U202 -> 0 | V88: =Inputs!V209-Inputs!V202 -> 0 | W88: =Inputs!W209-Inputs!W202 -> 0 | Y88: 0
B89: Private contribution | C89: EUR | D89: =+D16 -> 385000 | E89: =+E16 -> 1265000 | F89: =+F16 -> 1545000 | G89: =+G16 -> 900000 | H89: =Inputs!H239-Inputs!H235 -> 0 | I89: =Inputs!I239-Inputs!I235 -> 0 | J89: =Inputs!J239-Inputs!J235 -> 0 | K89: =Inputs!K239-Inputs!K235 -> 0 | L89: =Inputs!L239-Inputs!L235 -> 0 | M89: =Inputs!M239-Inputs!M235 -> 0 | N89: =Inputs!N239-Inputs!N235 -> 0 | O89: =Inputs!O239-Inputs!O235 -> 0 | P89: =Inputs!P239-Inputs!P235 -> 0 | Q89: =Inputs!Q239-Inputs!Q235 -> 0 | R89: =Inputs!R239-Inputs!R235 -> 0 | S89: =Inputs!S239-Inputs!S235 -> 0 | T89: =Inputs!T239-Inputs!T235 -> 0 | U89: =Inputs!U239-Inputs!U235 -> 0 | V89: =Inputs!V239-Inputs!V235 -> 0 | W89: =Inputs!W239-Inputs!W235 -> 0 | Y89: 4095000
B90: Net project cashflow considering financial structure | C90: EUR | D90: =-D83+D82-D80+D81+D88-D89-D86-D85-D87 -> -385000 | E90: -58575 | F90: -721456.6667 | G90: -808600
B93: =IF($C$77="Public","FNPV(Kg)",IF($C$77="Private","FNPV(Kp)")) -> FNPV(Kp) | C93: =Currency -> EUR | D93: =NPV(Inputs!$D$10,D90:W90) -> 
B94: =IF($C$77="Public","FRR(Kg)",IF($C$77="Private","FRR(Kp)")) -> FRR(Kp) | C94: % | D94: =IFERROR(IRR(D90:W90),"N/A") -> N/A

Sheet Economic analysis
H1: Economic analysis
B2: Economic appraisal carried out using Real Social Discount rate
B3: Adjusted project expenditures and revenues | C3: Unit | D3: =Inputs!$D$4 -> 2019 | E3: =D3+1 -> 2020 | F3: =E3+1 -> 2021 | G3: =F3+1 -> 2022 | H3: =G3+1 -> 2023 | I3: =H3+1 -> 2024 | J3: =I3+1 -> 2025 | K3: =J3+1 -> 2026 | L3: =K3+1 -> 2027 | M3: =L3+1 -> 2028 | N3: =M3+1 -> 2029 | O3: =N3+1 -> 2030 | P3: =O3+1 -> 2031 | Q3: =P3+1 -> 2032 | R3: =Q3+1 -> 2033 | S3: =R3+1 -> 2034 | T3: =S3+1 -> 2035 | U3: =T3+1 -> 2036 | V3: =U3+1 -> 2037 | W3: =V3+1 -> 2038 | Y3: Total
B4: Capital expenditure | C4: =Currency -> EUR | D4: ='Financial analysis'!D5*Inputs!$D$17 * IF(Inputs!$D$8 = "Constant",1,Inputs!D26) -> 8200000 | E4: ='Financial analysis'!E5*Inputs!$D$17 * IF(Inputs!$D$8 = "Constant",1,Inputs!E26) -> 26300000 | F4: ='Financial analysis'!F5*Inputs!$D$17 * IF(Inputs!$D$8 = "Constant",1,Inputs!F26) -> 31900000 | G4: ='Financial analysis'!G5*Inputs!$D$17 * IF(Inputs!$D$8 = "Constant",1,Inputs!G26) -> 19000000 | H4: ='Financial analysis'!H5*Inputs!$D$17 * IF(Inputs!$D$8 = "Constant",1,Inputs!H26) -> 0 | I4: ='Financial analysis'!I5*Inputs!$D$17 * IF(Inputs!$D$8 = "Constant",1,Inputs!I26) -> 0 | J4: ='Financial analysis'!J5*Inputs!$D$17 * IF(Inputs!$D$8 = "Constant",1,Inputs!J26) -> 0 | K4: ='Financial analysis'!K5*Inputs!$D$17 * IF(Inputs!$D$8 = "Constant",1,Inputs!K26) -> 0 | L4: ='Financial analysis'!L5*Inputs!$D$17 * IF(Inputs!$D$8 = "Constant",1,Inputs!L26) -> 0 | M4: ='Financial analysis'!M5*Inputs!$D$17 * IF(Inputs!$D$8 = "Constant",1,Inputs!M26) -> 0 | N4: ='Financial analysis'!N5*Inputs!$D$17 * IF(Inputs!$D$8 = "Constant",1,Inputs!N26) -> 0 | O4: ='Financial analysis'!O5*Inputs!$D$17 * IF(Inputs!$D$8 = "Constant",1,Inputs!O26) -> 0 | P4: ='Financial analysis'!P5*Inputs!$D$17 * IF(Inputs!$D$8 = "Constant",1,Inputs!P26) -> 0 | Q4: ='Financial analysis'!Q5*Inputs!$D$17 * IF(Inputs!$D$8 = "Constant",1,Inputs!Q26) -> 0 | R4: ='Financial analysis'!R5*Inputs!$D$17 * IF(Inputs!$D$8 = "Constant",1,Inputs!R26) -> 0 | S4: ='Financial analysis'!S5*Inputs!$D$17 * IF(Inputs!$D$8 = "Constant",1,Inputs!S26) -> 0 | T4: ='Financial analysis'!T5*Inputs!$D$17 * IF(Inputs!$D$8 = "Constant",1,Inputs!T26) -> 0 | U4: ='Financial analysis'!U5*Inputs!$D$17 * IF(Inputs!$D$8 = "Constant",1,Inputs!U26) -> 0 | V4: ='Financial analysis'!V5*Inputs!$D$17 * IF(Inputs!$D$8 = "Constant",1,Inputs!V26) -> 0 | W4: ='Financial analysis'!W5*Inputs!$D$17 * IF(Inputs!$D$8 = "Constant",1,Inputs!W26) -> 0 | Y4: =SUM(D4:W4) -> 85400000
B5: Operational expenditure | C5: =Currency -> EUR | D5: ='Financial analysis'!D6*Inputs!$D$18* IF(Inputs!$D$8 = "Constant",1,Inputs!D26) -> 0 | E5: ='Financial analysis'!E6*Inputs!$D$18* IF(Inputs!$D$8 = "Constant",1,Inputs!E26) -> 694375 | F5: ='Financial analysis'!F6*Inputs!$D$18* IF(Inputs!$D$8 = "Constant",1,Inputs!F26) -> 3185416.667 | G5: ='Financial analysis'!G6*Inputs!$D$18* IF(Inputs!$D$8 = "Constant",1,Inputs!G26) -> 6475000 | H5: ='Financial analysis'!H6*Inputs!$D$18* IF(Inputs!$D$8 = "Constant",1,Inputs!H26) -> 8917500 | I5: ='Financial analysis'!I6*Inputs!$D$18* IF(Inputs!$D$8 = "Constant",1,Inputs!I26) -> 7551557.971 | J5: ='Financial analysis'!J6*Inputs!$D$18* IF(Inputs!$D$8 = "Constant",1,Inputs!J26) -> 10374396.55 | K5: ='Financial analysis'!K6*Inputs!$D$18* IF(Inputs!$D$8 = "Constant",1,Inputs!K26) -> 11178369.57 | L5: ='Financial analysis'!L6*Inputs!$D$18* IF(Inputs!$D$8 = "Constant",1,Inputs!L26) -> 13250833.33 | M5: ='Financial analysis'!M6*Inputs!$D$18* IF(Inputs!$D$8 = "Constant",1,Inputs!M26) -> 14740416.67 | N5: ='Financial analysis'!N6*Inputs!$D$18* IF(Inputs!$D$8 = "Constant",1,Inputs!N26) -> 16230000 | O5: ='Financial analysis'!O6*Inputs!$D$18* IF(Inputs!$D$8 = "Constant",1,Inputs!O26) -> 16230000 | P5: ='Financial analysis'!P6*Inputs!$D$18* IF(Inputs!$D$8 = "Constant",1,Inputs!P26) -> 16230000 | Q5: ='Financial analysis'!Q6*Inputs!$D$18* IF(Inputs!$D$8 = "Constant",1,Inputs!Q26) -> 16230000 | R5: ='Financial analysis'!R6*Inputs!$D$18* IF(Inputs!$D$8 = "Constant",1,Inputs!R26) -> 16230000 | S5: ='Financial analysis'!S6*Inputs!$D$18* IF(Inputs!$D$8 = "Constant",1,Inputs!S26) -> 16230000 | T5: ='Financial analysis'!T6*Inputs!$D$18* IF(Inputs!$D$8 = "Constant",1,Inputs!T26) -> 16230000 | U5: ='Financial analysis'!U6*Inputs!$D$18* IF(Inputs!$D$8 = "Constant",1,Inputs!U26) -> 16230000 | V5: ='Financial analysis'!V6*Inputs!$D$18* IF(Inputs!$D$8 = "Constant",1,Inputs!V26) -> 16230000 | W5: ='Financial analysis'!W6*Inputs!$D$18* IF(Inputs!$D$8 = "Constant",1,Inputs!W26) -> 16230000 | Y5: =SUM(D5:W5) -> 238667865.8
B6: Residual value | C6: =Currency -> EUR | D6: =Inputs!D329 * IF(Inputs!$D$8 = "Constant",1,Inputs!D26) -> 0 | E6: =Inputs!E329 * IF(Inputs!$D$8 = "Constant",1,Inputs!E26) -> 0 | F6: =Inputs!F329 * IF(Inputs!$D$8 = "Constant",1,Inputs!F26) -> 0 | G6: =Inputs!G329 * IF(Inputs!$D$8 = "Constant",1,Inputs!G26) -> 0 | H6: =Inputs!H329 * IF(Inputs!$D$8 = "Constant",1,Inputs!H26) -> 0 | I6: =Inputs!I329 * IF(Inputs!$D$8 = "Constant",1,Inputs!I26) -> 0 | J6: =Inputs!J329 * IF(Inputs!$D$8 = "Constant",1,Inputs!J26) -> 0 | K6: =Inputs!K329 * IF(Inputs!$D$8 = "Constant",1,Inputs!K26) -> 0 | L6: =Inputs!L329 * IF(Inputs!$D$8 = "Constant",1,Inputs!L26) -> 0 | M6: =Inputs!M329 * IF(Inputs!$D$8 = "Constant",1,Inputs!M26) -> 0 | N6: =Inputs!N329 * IF(Inputs!$D$8 = "Constant",1,Inputs!N26) -> 0 | O6: =Inputs!O329 * IF(Inputs!$D$8 = "Constant",1,Inputs!O26) -> 0 | P6: =Inputs!P329 * IF(Inputs!$D$8 = "Constant",1,Inputs!P26) -> 0 | Q6: =Inputs!Q329 * IF(Inputs!$D$8 = "Constant",1,Inputs!Q26) -> 0 | R6: =Inputs!R329 * IF(Inputs!$D$8 = "Constant",1,Inputs!R26) -> 0 | S6: =Inputs!S329 * IF(Inputs!$D$8 = "Constant",1,Inputs!S26) -> 0 | T6: =Inputs!T329 * IF(Inputs!$D$8 = "Constant",1,Inputs!T26) -> 0 | U6: =Inputs!U329 * IF(Inputs!$D$8 = "Constant",1,Inputs!U26) -> 0 | V6: =Inputs!V329 * IF(Inputs!$D$8 = "Constant",1,Inputs!V26) -> 0 | W6: =Inputs!W329 * IF(Inputs!$D$8 = "Constant",1,Inputs!W26) -> 0 | Y6: =SUM(D6:W6) -> 0
B7: Replacement costs | C7: =Currency -> EUR | D7: ='Financial analysis'!D9 * IF(Inputs!$D$8 = "Constant",1,Inputs!D26) -> 0 | E7: ='Financial analysis'!E9 * IF(Inputs!$D$8 = "Constant",1,Inputs!E26) -> 0 | F7: ='Financial analysis'!F9 * IF(Inputs!$D$8 = "Constant",1,Inputs!F26) -> 0 | G7: ='Financial analysis'!G9 * IF(Inputs!$D$8 = "Constant",1,Inputs!G26) -> 0 | H7: ='Financial analysis'!H9 * IF(Inputs!$D$8 = "Constant",1,Inputs!H26) -> 0 | I7: ='Financial analysis'!I9 * IF(Inputs!$D$8 = "Constant",1,Inputs!I26) -> 0 | J7: ='Financial analysis'!J9 * IF(Inputs!$D$8 = "Constant",1,Inputs!J26) -> 0 | K7: ='Financial analysis'!K9 * IF(Inputs!$D$8 = "Constant",1,Inputs!K26) -> 0 | L7: ='Financial analysis'!L9 * IF(Inputs!$D$8 = "Constant",1,Inputs!L26) -> 0 | M7: ='Financial analysis'!M9 * IF(Inputs!$D$8 = "Constant",1,Inputs!M26) -> 0 | N7: ='Financial analysis'!N9 * IF(Inputs!$D$8 = "Constant",1,Inputs!N26) -> 0 | O7: ='Financial analysis'!O9 * IF(Inputs!$D$8 = "Constant",1,Inputs!O26) -> 2035600 | P7: ='Financial analysis'!P9 * IF(Inputs!$D$8 = "Constant",1,Inputs!P26) -> 2035600 | Q7: ='Financial analysis'!Q9 * IF(Inputs!$D$8 = "Constant",1,Inputs!Q26) -> 2035600 | R7: ='Financial analysis'!R9 * IF(Inputs!$D$8 = "Constant",1,Inputs!R26) -> 2035600 | S7: ='Financial analysis'!S9 * IF(Inputs!$D$8 = "Constant",1,Inputs!S26) -> 2035600 | T7: ='Financial analysis'!T9 * IF(Inputs!$D$8 = "Constant",1,Inputs!T26) -> 2035600 | U7: ='Financial analysis'!U9 * IF(Inputs!$D$8 = "Constant",1,Inputs!U26) -> 2035600 | V7: ='Financial analysis'!V9 * IF(Inputs!$D$8 = "Constant",1,Inputs!V26) -> 2035600 | W7: ='Financial analysis'!W9 * IF(Inputs!$D$8 = "Constant",1,Inputs!W26) -> 2035600 | Y7: 18320400
B8: Undiscounted socio-economic benefits | C8: Unit | D8: =Inputs!$D$4 -> 2019 | E8: =D8+1 -> 2020 | F8: =E8+1 -> 2021 | G8: 2022 | H8: 2023 | I8: 2024 | J8: 2025 | K8: 2026 | L8: 2027 | M8: 2028 | N8: 2029 | O8: 2030 | P8: 2031 | Q8: 2032 | R8: 2033 | S8: 2034 | T8: 2035 | U8: 2036 | V8: 2037 | W8: 2038 | Y8: Total
B9: Business employee benefits | C9: =Currency -> EUR | D9: =Inputs!$D$20*((Inputs!D366*Parameters!D$17) + (Inputs!D367*Parameters!D$18) + (Inputs!D368*Parameters!D$19)) -> 0 | E9: =Inputs!$D$20*((Inputs!E366*Parameters!E$17) + (Inputs!E367*Parameters!E$18) + (Inputs!E368*Parameters!E$19)) -> 900000 | F9: =Inputs!$D$20*((Inputs!F366*Parameters!F$17) + (Inputs!F367*Parameters!F$18) + (Inputs!F368*Parameters!F$19)) -> 2232000 | G9: =Inputs!$D$20*((Inputs!G366*Parameters!G$17) + (Inputs!G367*Parameters!G$18) + (Inputs!G368*Parameters!G$19)) -> 4440000 | H9: =Inputs!$D$20*((Inputs!H366*Parameters!H$17) + (Inputs!H367*Parameters!H$18) + (Inputs!H368*Parameters!H$19)) -> 6600000 | I9: =Inputs!$D$20*((Inputs!I366*Parameters!I$17) + (Inputs!I367*Parameters!I$18) + (Inputs!I368*Parameters!I$19)) -> 8100000 | J9: =Inputs!$D$20*((Inputs!J366*Parameters!J$17) + (Inputs!J367*Parameters!J$18) + (Inputs!J368*Parameters!J$19)) -> 10290000 | K9: =Inputs!$D$20*((Inputs!K366*Parameters!K$17) + (Inputs!K367*Parameters!K$18) + (Inputs!K368*Parameters!K$19)) -> 12960000 | L9: =Inputs!$D$20*((Inputs!L366*Parameters!L$17) + (Inputs!L367*Parameters!L$18) + (Inputs!L368*Parameters!L$19)) -> 15930000 | M9: =Inputs!$D$20*((Inputs!M366*Parameters!M$17) + (Inputs!M367*Parameters!M$18) + (Inputs!M368*Parameters!M$19)) -> 19200000 | N9: =Inputs!$D$20*((Inputs!N366*Parameters!N$17) + (Inputs!N367*Parameters!N$18) + (Inputs!N368*Parameters!N$19)) -> 20700000 | O9: =Inputs!$D$20*((Inputs!O366*Parameters!O$17) + (Inputs!O367*Parameters!O$18) + (Inputs!O368*Parameters!O$19)) -> 22200000 | P9: =Inputs!$D$20*((Inputs!P366*Parameters!P$17) + (Inputs!P367*Parameters!P$18) + (Inputs!P368*Parameters!P$19)) -> 23700000 | Q9: =Inputs!$D$20*((Inputs!Q366*Parameters!Q$17) + (Inputs!Q367*Parameters!Q$18) + (Inputs!Q368*Parameters!Q$19)) -> 25200000 | R9: =Inputs!$D$20*((Inputs!R366*Parameters!R$17) + (Inputs!R367*Parameters!R$18) + (Inputs!R368*Parameters!R$19)) -> 26700000 | S9: =Inputs!$D$20*((Inputs!S366*Parameters!S$17) + (Inputs!S367*Parameters!S$18) + (Inputs!S368*Parameters!S$19)) -> 28200000 | T9: =Inputs!$D$20*((Inputs!T366*Parameters!T$17) + (Inputs!T367*Parameters!T$18) + (Inputs!T368*Parameters!T$19)) -> 29700000 | U9: =Inputs!$D$20*((Inputs!U366*Parameters!U$17) + (Inputs!U367*Parameters!U$18) + (Inputs!U368*Parameters!U$19)) -> 29700000 | V9: =Inputs!$D$20*((Inputs!V366*Parameters!V$17) + (Inputs!V367*Parameters!V$18) + (Inputs!V368*Parameters!V$19)) -> 29700000 | W9: =Inputs!$D$20*((Inputs!W366*Parameters!W$17) + (Inputs!W367*Parameters!W$18) + (Inputs!W368*Parameters!W$19)) -> 29700000 | Y9: =SUM(D9:W9) -> 346152000
B10: Household consumer surplus | C10: EUR | D10: =(((Inputs!D361*Parameters!D13) + (Inputs!D362*Parameters!D14) + (Inputs!D363*Parameters!D15))*Parameters!$D$6) -> 0 | E10: =(((Inputs!E361*Parameters!E13) + (Inputs!E362*Parameters!E14) + (Inputs!E363*Parameters!E15))*Parameters!$D$6) -> 662400 | F10: =(((Inputs!F361*Parameters!F13) + (Inputs!F362*Parameters!F14) + (Inputs!F363*Parameters!F15))*Parameters!$D$6) -> 1440000 | G10: =(((Inputs!G361*Parameters!G13) + (Inputs!G362*Parameters!G14) + (Inputs!G363*Parameters!G15))*Parameters!$D$6) -> 2664000 | H10: =(((Inputs!H361*Parameters!H13) + (Inputs!H362*Parameters!H14) + (Inputs!H363*Parameters!H15))*Parameters!$D$6) -> 3672000 | I10: =(((Inputs!I361*Parameters!I13) + (Inputs!I362*Parameters!I14) + (Inputs!I363*Parameters!I15))*Parameters!$D$6) -> 3816000 | J10: =(((Inputs!J361*Parameters!J13) + (Inputs!J362*Parameters!J14) + (Inputs!J363*Parameters!J15))*Parameters!$D$6) -> 4392000 | K10: =(((Inputs!K361*Parameters!K13) + (Inputs!K362*Parameters!K14) + (Inputs!K363*Parameters!K15))*Parameters!$D$6) -> 5112000 | L10: =(((Inputs!L361*Parameters!L13) + (Inputs!L362*Parameters!L14) + (Inputs!L363*Parameters!L15))*Parameters!$D$6) -> 5832000 | M10: =(((Inputs!M361*Parameters!M13) + (Inputs!M362*Parameters!M14) + (Inputs!M363*Parameters!M15))*Parameters!$D$6) -> 6552000 | N10: =(((Inputs!N361*Parameters!N13) + (Inputs!N362*Parameters!N14) + (Inputs!N363*Parameters!N15))*Parameters!$D$6) -> 7272000 | O10: =(((Inputs!O361*Parameters!O13) + (Inputs!O362*Parameters!O14) + (Inputs!O363*Parameters!O15))*Parameters!$D$6) -> 7992000 | P10: =(((Inputs!P361*Parameters!P13) + (Inputs!P362*Parameters!P14) + (Inputs!P363*Parameters!P15))*Parameters!$D$6) -> 8712000 | Q10: =(((Inputs!Q361*Parameters!Q13) + (Inputs!Q362*Parameters!Q14) + (Inputs!Q363*Parameters!Q15))*Parameters!$D$6) -> 9432000 | R10: =(((Inputs!R361*Parameters!R13) + (Inputs!R362*Parameters!R14) + (Inputs!R363*Parameters!R15))*Parameters!$D$6) -> 10152000 | S10: =(((Inputs!S361*Parameters!S13) + (Inputs!S362*Parameters!S14) + (Inputs!S363*Parameters!S15))*Parameters!$D$6) -> 10872000 | T10: =(((Inputs!T361*Parameters!T13) + (Inputs!T362*Parameters!T14) + (Inputs!T363*Parameters!T15))*Parameters!$D$6) -> 11592000 | U10: =(((Inputs!U361*Parameters!U13) + (Inputs!U362*Parameters!U14) + (Inputs!U363*Parameters!U15))*Parameters!$D$6) -> 11592000 | V10: =(((Inputs!V361*Parameters!V13) + (Inputs!V362*Parameters!V14) + (Inputs!V363*Parameters!V15))*Parameters!$D$6) -> 11592000 | W10: =(((Inputs!W361*Parameters!W13) + (Inputs!W362*Parameters!W14) + (Inputs!W363*Parameters!W15))*Parameters!$D$6) -> 11592000 | Y10: 134942400
B11: Total | C11: EUR | D11: =SUM(D9:D10) -> 0 | E11: 1562400 | F11: 3672000 | G11: 7104000 | H11: 10272000 | I11: 11916000 | J11: 14682000 | K11: 18072000 | L11: 21762000 | M11: 25752000 | N11: 27972000 | O11: 30192000 | P11: 32412000 | Q11: 34632000 | R11: 36852000 | S11: 39072000 | T11: 41292000 | U11: 41292000 | V11: 41292000 | W11: 41292000 | Y11: 481094400
B13: Total undiscounted socio-economic benefits | C13: =Currency -> EUR | D13: =D11+D6 -> 0 | E13: 1562400 | F13: 3672000 | G13: 7104000 | H13: 10272000 | I13: 11916000 | J13: 14682000 | K13: 18072000 | L13: 21762000 | M13: 25752000 | N13: 27972000 | O13: 30192000 | P13: 32412000 | Q13: 34632000 | R13: 36852000 | S13: 39072000 | T13: 41292000 | U13: 41292000 | V13: 41292000 | W13: 41292000 | Y13: =Y11+Y6 -> 481094400
B14: Total undiscounted socio-economic costs | C14: =Currency -> EUR | D14: =D4+D5+D7 -> 8200000 | E14: 26994375 | F14: 35085416.67 | G14: 25475000 | H14: 8917500 | I14: 7551557.971 | J14: 10374396.55 | K14: 11178369.57 | L14: 13250833.33 | M14: 14740416.67 | N14: 16230000 | O14: 18265600 | P14: 18265600 | Q14: 18265600 | R14: 18265600 | S14: 18265600 | T14: 18265600 | U14: 18265600 | V14: 18265600 | W14: 18265600 | Y14: =Y4+Y5 -> 324067865.8
B15: Net undiscounted socio-economic benefits | C15: =Currency -> EUR | D15: =D13-D14 -> -8200000 | E15: =E13-E14 -> -25431975 | F15: -31413416.67 | G15: -18371000 | H15: 1354500 | I15: 4364442.029 | J15: 4307603.448 | K15: 6893630.435 | L15: 8511166.667 | M15: 11011583.33 | N15: 11742000 | O15: 11926400 | P15: 14146400 | Q15: 16366400 | R15: 18586400 | S15: 20806400 | T15: 23026400 | U15: 23026400 | V15: 23026400 | W15: 23026400 | Y15: =SUM(D15:W15) -> 138706134.2
B17: ENPV | C17: =Currency -> EUR | D17: =NPV(Inputs!D11,D15:W15) -> 67015543.71
B18: ERR | C18: % | D18: =IRR(D15:W15) -> 0.08863329773
B19: B/C ratio | C19: # | D19: =NPV(Inputs!D11,D13:W13) / NPV(Inputs!D11,D14:W14) -> 1.262790968

Sheet Sensitivity
E1: Sensitivity analysis
B2: Net project cashflow considering financial structure
B3: Sensitivity analysis on FNPV(K) and FRR(K) | C3: % change | D3: Unit | E3: =Inputs!$D$4 -> 2019 | F3: =E3+1 -> 2020 | G3: =F3+1 -> 2021 | H3: 2022 | I3: 2023 | J3: 2024 | K3: 2025 | L3: 2026 | M3: 2027 | N3: 2028 | O3: 2029 | P3: 2030 | Q3: 2031 | R3: 2032 | S3: 2033 | T3: 2034 | U3: 2035 | V3: 2036 | W3: 2037 | X3: 2038 | Z3: FNPV(K) | AA3: FRR(K) | AC3: Change in FNPV(K) | AD3: Change in FRR(K)
B4: Capital expenditure with 1% increase | C4: 0.009999999776 | D4: =Currency -> EUR | E4: =+'Financial analysis'!D$7+'Financial analysis'!D$8-'Financial analysis'!D$6-'Financial analysis'!D$9-'Financial analysis'!D$12-'Financial analysis'!D$13*(1+$C4)-'Financial analysis'!D$14-'Financial analysis'!D$15*(1+$C4)-'Financial analysis'!D$16*(1+$C4) -> -6726599.999 | F4: =+'Financial analysis'!E$7+'Financial analysis'!E$8-'Financial analysis'!E$6-'Financial analysis'!E$9-'Financial analysis'!E$12-'Financial analysis'!E$13*(1+$C4)-'Financial analysis'!E$14-'Financial analysis'!E$15*(1+$C4)-'Financial analysis'!E$16*(1+$C4) -> -19900375 | G4: =+'Financial analysis'!F$7+'Financial analysis'!F$8-'Financial analysis'!F$6-'Financial analysis'!F$9-'Financial analysis'!F$12-'Financial analysis'!F$13*(1+$C4)-'Financial analysis'!F$14-'Financial analysis'!F$15*(1+$C4)-'Financial analysis'!F$16*(1+$C4) -> -24393336.66 | H4: =+'Financial analysis'!G$7+'Financial analysis'!G$8-'Financial analysis'!G$6-'Financial analysis'!G$9-'Financial analysis'!G$12-'Financial analysis'!G$13*(1+$C4)-'Financial analysis'!G$14-'Financial analysis'!G$15*(1+$C4)-'Financial analysis'!G$16*(1+$C4) -> -13993800 | I4: =+'Financial analysis'!H$7+'Financial analysis'!H$8-'Financial analysis'!H$6-'Financial analysis'!H$9-'Financial analysis'!H$12-'Financial analysis'!H$13*(1+$C4)-'Financial analysis'!H$14-'Financial analysis'!H$15*(1+$C4)-'Financial analysis'!H$16*(1+$C4) -> 1163231.25 | J4: =+'Financial analysis'!I$7+'Financial analysis'!I$8-'Financial analysis'!I$6-'Financial analysis'!I$9-'Financial analysis'!I$12-'Financial analysis'!I$13*(1+$C4)-'Financial analysis'!I$14-'Financial analysis'!I$15*(1+$C4)-'Financial analysis'!I$16*(1+$C4) -> 2882451.404 | K4: =+'Financial analysis'!J$7+'Financial analysis'!J$8-'Financial analysis'!J$6-'Financial analysis'!J$9-'Financial analysis'!J$12-'Financial analysis'!J$13*(1+$C4)-'Financial analysis'!J$14-'Financial analysis'!J$15*(1+$C4)-'Financial analysis'!J$16*(1+$C4) -> 1454912.073 | L4: =+'Financial analysis'!K$7+'Financial analysis'!K$8-'Financial analysis'!K$6-'Financial analysis'!K$9-'Financial analysis'!K$12-'Financial analysis'!K$13*(1+$C4)-'Financial analysis'!K$14-'Financial analysis'!K$15*(1+$C4)-'Financial analysis'!K$16*(1+$C4) -> 2390290.4 | M4: =+'Financial analysis'!L$7+'Financial analysis'!L$8-'Financial analysis'!L$6-'Financial analysis'!L$9-'Financial analysis'!L$12-'Financial analysis'!L$13*(1+$C4)-'Financial analysis'!L$14-'Financial analysis'!L$15*(1+$C4)-'Financial analysis'!L$16*(1+$C4) -> 2055815.811 | N4: =+'Financial analysis'!M$7+'Financial analysis'!M$8-'Financial analysis'!M$6-'Financial analysis'!M$9-'Financial analysis'!M$12-'Financial analysis'!M$13*(1+$C4)-'Financial analysis'!M$14-'Financial analysis'!M$15*(1+$C4)-'Financial analysis'!M$16*(1+$C4) -> 2303022.955 | O4: =+'Financial analysis'!N$7+'Financial analysis'!N$8-'Financial analysis'!N$6-'Financial analysis'!N$9-'Financial analysis'!N$12-'Financial analysis'!N$13*(1+$C4)-'Financial analysis'!N$14-'Financial analysis'!N$15*(1+$C4)-'Financial analysis'!N$16*(1+$C4) -> 2549175.242 | P4: =+'Financial analysis'!O$7+'Financial analysis'!O$8-'Financial analysis'!O$6-'Financial analysis'!O$9-'Financial analysis'!O$12-'Financial analysis'!O$13*(1+$C4)-'Financial analysis'!O$14-'Financial analysis'!O$15*(1+$C4)-'Financial analysis'!O$16*(1+$C4) -> 2248382.588 | Q4: =+'Financial analysis'!P$7+'Financial analysis'!P$8-'Financial analysis'!P$6-'Financial analysis'!P$9-'Financial analysis'!P$12-'Financial analysis'!P$13*(1+$C4)-'Financial analysis'!P$14-'Financial analysis'!P$15*(1+$C4)-'Financial analysis'!P$16*(1+$C4) -> 3982373.053 | R4: =+'Financial analysis'!Q$7+'Financial analysis'!Q$8-'Financial analysis'!Q$6-'Financial analysis'!Q$9-'Financial analysis'!Q$12-'Financial analysis'!Q$13*(1+$C4)-'Financial analysis'!Q$14-'Financial analysis'!Q$15*(1+$C4)-'Financial analysis'!Q$16*(1+$C4) -> 5715644.661 | S4: =+'Financial analysis'!R$7+'Financial analysis'!R$8-'Financial analysis'!R$6-'Financial analysis'!R$9-'Financial analysis'!R$12-'Financial analysis'!R$13*(1+$C4)-'Financial analysis'!R$14-'Financial analysis'!R$15*(1+$C4)-'Financial analysis'!R$16*(1+$C4) -> 7448283.677 | T4: =+'Financial analysis'!S$7+'Financial analysis'!S$8-'Financial analysis'!S$6-'Financial analysis'!S$9-'Financial analysis'!S$12-'Financial analysis'!S$13*(1+$C4)-'Financial analysis'!S$14-'Financial analysis'!S$15*(1+$C4)-'Financial analysis'!S$16*(1+$C4) -> 9180366.011 | U4: =+'Financial analysis'!T$7+'Financial analysis'!T$8-'Financial analysis'!T$6-'Financial analysis'!T$9-'Financial analysis'!T$12-'Financial analysis'!T$13*(1+$C4)-'Financial analysis'!T$14-'Financial analysis'!T$15*(1+$C4)-'Financial analysis'!T$16*(1+$C4) -> 10911958.46 | V4: =+'Financial analysis'!U$7+'Financial analysis'!U$8-'Financial analysis'!U$6-'Financial analysis'!U$9-'Financial analysis'!U$12-'Financial analysis'!U$13*(1+$C4)-'Financial analysis'!U$14-'Financial analysis'!U$15*(1+$C4)-'Financial analysis'!U$16*(1+$C4) -> 10915119.82 | W4: =+'Financial analysis'!V$7+'Financial analysis'!V$8-'Financial analysis'!V$6-'Financial analysis'!V$9-'Financial analysis'!V$12-'Financial analysis'!V$13*(1+$C4)-'Financial analysis'!V$14-'Financial analysis'!V$15*(1+$C4)-'Financial analysis'!V$16*(1+$C4) -> 10917901.82 | X4: =+'Financial analysis'!W$7+'Financial analysis'!W$8-'Financial analysis'!W$6-'Financial analysis'!W$9-'Financial analysis'!W$12-'Financial analysis'!W$13*(1+$C4)-'Financial analysis'!W$14-'Financial analysis'!W$15*(1+$C4)-'Financial analysis'!W$16*(1+$C4) -> 15920349.98 | Z4: =NPV(Inputs!$D$10,E4:X4) -> -8200229.599 | AA4: =IRR(E4:X4) -> 0.02750461338 | AC4: =IF('Financial analysis'!$D$23<0,(-(Z4-'Financial analysis'!$D$23)/'Financial analysis'!$D$23),(Z4-'Financial analysis'!$D$23)/'Financial analysis'!$D$23) -> -0.08554322635 | AD4: =AA4-'Financial analysis'!$D$24 -> -0.00091106121
B5: Capital expenditure with 1% decrease | C5: -0.01 | D5: EUR | E5: =+'Financial analysis'!D$7+'Financial analysis'!D$8-'Financial analysis'!D$6-'Financial analysis'!D$9-'Financial analysis'!D$12-'Financial analysis'!D$13*(1+$C5)-'Financial analysis'!D$14-'Financial analysis'!D$15*(1+$C5)-'Financial analysis'!D$16*(1+$C5) -> -6593400 | F5: =+'Financial analysis'!E$7+'Financial analysis'!E$8-'Financial analysis'!E$6-'Financial analysis'!E$9-'Financial analysis'!E$12-'Financial analysis'!E$13*(1+$C5)-'Financial analysis'!E$14-'Financial analysis'!E$15*(1+$C5)-'Financial analysis'!E$16*(1+$C5) -> -19475575 | G5: =+'Financial analysis'!F$7+'Financial analysis'!F$8-'Financial analysis'!F$6-'Financial analysis'!F$9-'Financial analysis'!F$12-'Financial analysis'!F$13*(1+$C5)-'Financial analysis'!F$14-'Financial analysis'!F$15*(1+$C5)-'Financial analysis'!F$16*(1+$C5) -> -23878936.67 | H5: =+'Financial analysis'!G$7+'Financial analysis'!G$8-'Financial analysis'!G$6-'Financial analysis'!G$9-'Financial analysis'!G$12-'Financial analysis'!G$13*(1+$C5)-'Financial analysis'!G$14-'Financial analysis'!G$15*(1+$C5)-'Financial analysis'!G$16*(1+$C5) -> -13685800 | I5: =+'Financial analysis'!H$7+'Financial analysis'!H$8-'Financial analysis'!H$6-'Financial analysis'!H$9-'Financial analysis'!H$12-'Financial analysis'!H$13*(1+$C5)-'Financial analysis'!H$14-'Financial analysis'!H$15*(1+$C5)-'Financial analysis'!H$16*(1+$C5) -> 1168350 | J5: =+'Financial analysis'!I$7+'Financial analysis'!I$8-'Financial analysis'!I$6-'Financial analysis'!I$9-'Financial analysis'!I$12-'Financial analysis'!I$13*(1+$C5)-'Financial analysis'!I$14-'Financial analysis'!I$15*(1+$C5)-'Financial analysis'!I$16*(1+$C5) -> 2887570.154 | K5: =+'Financial analysis'!J$7+'Financial analysis'!J$8-'Financial analysis'!J$6-'Financial analysis'!J$9-'Financial analysis'!J$12-'Financial analysis'!J$13*(1+$C5)-'Financial analysis'!J$14-'Financial analysis'!J$15*(1+$C5)-'Financial analysis'!J$16*(1+$C5) -> 1460030.823 | L5: =+'Financial analysis'!K$7+'Financial analysis'!K$8-'Financial analysis'!K$6-'Financial analysis'!K$9-'Financial analysis'!K$12-'Financial analysis'!K$13*(1+$C5)-'Financial analysis'!K$14-'Financial analysis'!K$15*(1+$C5)-'Financial analysis'!K$16*(1+$C5) -> 2395409.15 | M5: =+'Financial analysis'!L$7+'Financial analysis'!L$8-'Financial analysis'!L$6-'Financial analysis'!L$9-'Financial analysis'!L$12-'Financial analysis'!L$13*(1+$C5)-'Financial analysis'!L$14-'Financial analysis'!L$15*(1+$C5)-'Financial analysis'!L$16*(1+$C5) -> 2060934.561 | N5: =+'Financial analysis'!M$7+'Financial analysis'!M$8-'Financial analysis'!M$6-'Financial analysis'!M$9-'Financial analysis'!M$12-'Financial analysis'!M$13*(1+$C5)-'Financial analysis'!M$14-'Financial analysis'!M$15*(1+$C5)-'Financial analysis'!M$16*(1+$C5) -> 2308141.705 | O5: =+'Financial analysis'!N$7+'Financial analysis'!N$8-'Financial analysis'!N$6-'Financial analysis'!N$9-'Financial analysis'!N$12-'Financial analysis'!N$13*(1+$C5)-'Financial analysis'!N$14-'Financial analysis'!N$15*(1+$C5)-'Financial analysis'!N$16*(1+$C5) -> 2554293.992 | P5: =+'Financial analysis'!O$7+'Financial analysis'!O$8-'Financial analysis'!O$6-'Financial analysis'!O$9-'Financial analysis'!O$12-'Financial analysis'!O$13*(1+$C5)-'Financial analysis'!O$14-'Financial analysis'!O$15*(1+$C5)-'Financial analysis'!O$16*(1+$C5) -> 2253501.338 | Q5: =+'Financial analysis'!P$7+'Financial analysis'!P$8-'Financial analysis'!P$6-'Financial analysis'!P$9-'Financial analysis'!P$12-'Financial analysis'!P$13*(1+$C5)-'Financial analysis'!P$14-'Financial analysis'!P$15*(1+$C5)-'Financial analysis'!P$16*(1+$C5) -> 3987491.803 | R5: =+'Financial analysis'!Q$7+'Financial analysis'!Q$8-'Financial analysis'!Q$6-'Financial analysis'!Q$9-'Financial analysis'!Q$12-'Financial analysis'!Q$13*(1+$C5)-'Financial analysis'!Q$14-'Financial analysis'!Q$15*(1+$C5)-'Financial analysis'!Q$16*(1+$C5) -> 5720763.411 | S5: =+'Financial analysis'!R$7+'Financial analysis'!R$8-'Financial analysis'!R$6-'Financial analysis'!R$9-'Financial analysis'!R$12-'Financial analysis'!R$13*(1+$C5)-'Financial analysis'!R$14-'Financial analysis'!R$15*(1+$C5)-'Financial analysis'!R$16*(1+$C5) -> 7453402.427 | T5: =+'Financial analysis'!S$7+'Financial analysis'!S$8-'Financial analysis'!S$6-'Financial analysis'!S$9-'Financial analysis'!S$12-'Financial analysis'!S$13*(1+$C5)-'Financial analysis'!S$14-'Financial analysis'!S$15*(1+$C5)-'Financial analysis'!S$16*(1+$C5) -> 9185484.761 | U5: =+'Financial analysis'!T$7+'Financial analysis'!T$8-'Financial analysis'!T$6-'Financial analysis'!T$9-'Financial analysis'!T$12-'Financial analysis'!T$13*(1+$C5)-'Financial analysis'!T$14-'Financial analysis'!T$15*(1+$C5)-'Financial analysis'!T$16*(1+$C5) -> 10917077.21 | V5: =+'Financial analysis'!U$7+'Financial analysis'!U$8-'Financial analysis'!U$6-'Financial analysis'!U$9-'Financial analysis'!U$12-'Financial analysis'!U$13*(1+$C5)-'Financial analysis'!U$14-'Financial analysis'!U$15*(1+$C5)-'Financial analysis'!U$16*(1+$C5) -> 10920238.57 | W5: =+'Financial analysis'!V$7+'Financial analysis'!V$8-'Financial analysis'!V$6-'Financial analysis'!V$9-'Financial analysis'!V$12-'Financial analysis'!V$13*(1+$C5)-'Financial analysis'!V$14-'Financial analysis'!V$15*(1+$C5)-'Financial analysis'!V$16*(1+$C5) -> 10923020.57 | X5: =+'Financial analysis'!W$7+'Financial analysis'!W$8-'Financial analysis'!W$6-'Financial analysis'!W$9-'Financial analysis'!W$12-'Financial analysis'!W$13*(1+$C5)-'Financial analysis'!W$14-'Financial analysis'!W$15*(1+$C5)-'Financial analysis'!W$16*(1+$C5) -> 15925468.73 | Z5: =NPV(Inputs!$D$10,E5:X5) -> -6907836.836 | AA5: =IRR(E5:X5) -> 0.02933823037 | AC5: =IF('Financial analysis'!$D$23<0,(-(Z5-'Financial analysis'!$D$23)/'Financial analysis'!$D$23),(Z5-'Financial analysis'!$D$23)/'Financial analysis'!$D$23) -> 0.08554322826 | AD5: =AA5-'Financial analysis'!$D$24 -> 0.0009225557789
B6: Operational expenditure with 1% increase | C6: 0.009999999776 | D6: EUR | E6: =+'Financial analysis'!D$7+'Financial analysis'!D$8-'Financial analysis'!D$6*(1+$C6)-'Financial analysis'!D$9-'Financial analysis'!D$12-'Financial analysis'!D$13-'Financial analysis'!D$14-'Financial analysis'!D$15-'Financial analysis'!D$16 -> -6660000 | F6: =+'Financial analysis'!E$7+'Financial analysis'!E$8-'Financial analysis'!E$6*(1+$C6)-'Financial analysis'!E$9-'Financial analysis'!E$12-'Financial analysis'!E$13-'Financial analysis'!E$14-'Financial analysis'!E$15-'Financial analysis'!E$16 -> -19694918.75 | G6: =+'Financial analysis'!F$7+'Financial analysis'!F$8-'Financial analysis'!F$6*(1+$C6)-'Financial analysis'!F$9-'Financial analysis'!F$12-'Financial analysis'!F$13-'Financial analysis'!F$14-'Financial analysis'!F$15-'Financial analysis'!F$16 -> -24167990.83 | H6: =+'Financial analysis'!G$7+'Financial analysis'!G$8-'Financial analysis'!G$6*(1+$C6)-'Financial analysis'!G$9-'Financial analysis'!G$12-'Financial analysis'!G$13-'Financial analysis'!G$14-'Financial analysis'!G$15-'Financial analysis'!G$16 -> -13904550 | I6: =+'Financial analysis'!H$7+'Financial analysis'!H$8-'Financial analysis'!H$6*(1+$C6)-'Financial analysis'!H$9-'Financial analysis'!H$12-'Financial analysis'!H$13-'Financial analysis'!H$14-'Financial analysis'!H$15-'Financial analysis'!H$16 -> 1076615.627 | J6: =+'Financial analysis'!I$7+'Financial analysis'!I$8-'Financial analysis'!I$6*(1+$C6)-'Financial analysis'!I$9-'Financial analysis'!I$12-'Financial analysis'!I$13-'Financial analysis'!I$14-'Financial analysis'!I$15-'Financial analysis'!I$16 -> 2809495.201 | K6: =+'Financial analysis'!J$7+'Financial analysis'!J$8-'Financial analysis'!J$6*(1+$C6)-'Financial analysis'!J$9-'Financial analysis'!J$12-'Financial analysis'!J$13-'Financial analysis'!J$14-'Financial analysis'!J$15-'Financial analysis'!J$16 -> 1353727.485 | L6: =+'Financial analysis'!K$7+'Financial analysis'!K$8-'Financial analysis'!K$6*(1+$C6)-'Financial analysis'!K$9-'Financial analysis'!K$12-'Financial analysis'!K$13-'Financial analysis'!K$14-'Financial analysis'!K$15-'Financial analysis'!K$16 -> 2281066.082 | M6: =+'Financial analysis'!L$7+'Financial analysis'!L$8-'Financial analysis'!L$6*(1+$C6)-'Financial analysis'!L$9-'Financial analysis'!L$12-'Financial analysis'!L$13-'Financial analysis'!L$14-'Financial analysis'!L$15-'Financial analysis'!L$16 -> 1925866.855 | N6: =+'Financial analysis'!M$7+'Financial analysis'!M$8-'Financial analysis'!M$6*(1+$C6)-'Financial analysis'!M$9-'Financial analysis'!M$12-'Financial analysis'!M$13-'Financial analysis'!M$14-'Financial analysis'!M$15-'Financial analysis'!M$16 -> 2158178.167 | O6: =+'Financial analysis'!N$7+'Financial analysis'!N$8-'Financial analysis'!N$6*(1+$C6)-'Financial analysis'!N$9-'Financial analysis'!N$12-'Financial analysis'!N$13-'Financial analysis'!N$14-'Financial analysis'!N$15-'Financial analysis'!N$16 -> 2389434.621 | P6: =+'Financial analysis'!O$7+'Financial analysis'!O$8-'Financial analysis'!O$6*(1+$C6)-'Financial analysis'!O$9-'Financial analysis'!O$12-'Financial analysis'!O$13-'Financial analysis'!O$14-'Financial analysis'!O$15-'Financial analysis'!O$16 -> 2088641.967 | Q6: =+'Financial analysis'!P$7+'Financial analysis'!P$8-'Financial analysis'!P$6*(1+$C6)-'Financial analysis'!P$9-'Financial analysis'!P$12-'Financial analysis'!P$13-'Financial analysis'!P$14-'Financial analysis'!P$15-'Financial analysis'!P$16 -> 3822632.431 | R6: =+'Financial analysis'!Q$7+'Financial analysis'!Q$8-'Financial analysis'!Q$6*(1+$C6)-'Financial analysis'!Q$9-'Financial analysis'!Q$12-'Financial analysis'!Q$13-'Financial analysis'!Q$14-'Financial analysis'!Q$15-'Financial analysis'!Q$16 -> 5555904.04 | S6: =+'Financial analysis'!R$7+'Financial analysis'!R$8-'Financial analysis'!R$6*(1+$C6)-'Financial analysis'!R$9-'Financial analysis'!R$12-'Financial analysis'!R$13-'Financial analysis'!R$14-'Financial analysis'!R$15-'Financial analysis'!R$16 -> 7288543.056 | T6: =+'Financial analysis'!S$7+'Financial analysis'!S$8-'Financial analysis'!S$6*(1+$C6)-'Financial analysis'!S$9-'Financial analysis'!S$12-'Financial analysis'!S$13-'Financial analysis'!S$14-'Financial analysis'!S$15-'Financial analysis'!S$16 -> 9020625.389 | U6: =+'Financial analysis'!T$7+'Financial analysis'!T$8-'Financial analysis'!T$6*(1+$C6)-'Financial analysis'!T$9-'Financial analysis'!T$12-'Financial analysis'!T$13-'Financial analysis'!T$14-'Financial analysis'!T$15-'Financial analysis'!T$16 -> 10752217.84 | V6: =+'Financial analysis'!U$7+'Financial analysis'!U$8-'Financial analysis'!U$6*(1+$C6)-'Financial analysis'!U$9-'Financial analysis'!U$12-'Financial analysis'!U$13-'Financial analysis'!U$14-'Financial analysis'!U$15-'Financial analysis'!U$16 -> 10755379.2 | W6: =+'Financial analysis'!V$7+'Financial analysis'!V$8-'Financial analysis'!V$6*(1+$C6)-'Financial analysis'!V$9-'Financial analysis'!V$12-'Financial analysis'!V$13-'Financial analysis'!V$14-'Financial analysis'!V$15-'Financial analysis'!V$16 -> 10758161.2 | X6: =+'Financial analysis'!W$7+'Financial analysis'!W$8-'Financial analysis'!W$6*(1+$C6)-'Financial analysis'!W$9-'Financial analysis'!W$12-'Financial analysis'!W$13-'Financial analysis'!W$14-'Financial analysis'!W$15-'Financial analysis'!W$16 -> 15760609.36 | Z6: =NPV(Inputs!$D$10,E6:X6) -> -9019603.588 | AA6: 0.02610363365 | AC6: =IF('Financial analysis'!$D$23<0,(-(Z6-'Financial analysis'!$D$23)/'Financial analysis'!$D$23),(Z6-'Financial analysis'!$D$23)/'Financial analysis'!$D$23) -> -0.1940116386 | AD6: =AA6-'Financial analysis'!$D$24 -> -0.002312040946
B7: Operational expenditure with 1% decrease | C7: -0.01 | D7: EUR | E7: =+'Financial analysis'!D$7+'Financial analysis'!D$8-'Financial analysis'!D$6*(1+$C7)-'Financial analysis'!D$9-'Financial analysis'!D$12-'Financial analysis'!D$13-'Financial analysis'!D$14-'Financial analysis'!D$15-'Financial analysis'!D$16 -> -6660000 | F7: =+'Financial analysis'!E$7+'Financial analysis'!E$8-'Financial analysis'!E$6*(1+$C7)-'Financial analysis'!E$9-'Financial analysis'!E$12-'Financial analysis'!E$13-'Financial analysis'!E$14-'Financial analysis'!E$15-'Financial analysis'!E$16 -> -19681031.25 | G7: =+'Financial analysis'!F$7+'Financial analysis'!F$8-'Financial analysis'!F$6*(1+$C7)-'Financial analysis'!F$9-'Financial analysis'!F$12-'Financial analysis'!F$13-'Financial analysis'!F$14-'Financial analysis'!F$15-'Financial analysis'!F$16 -> -24104282.5 | H7: =+'Financial analysis'!G$7+'Financial analysis'!G$8-'Financial analysis'!G$6*(1+$C7)-'Financial analysis'!G$9-'Financial analysis'!G$12-'Financial analysis'!G$13-'Financial analysis'!G$14-'Financial analysis'!G$15-'Financial analysis'!G$16 -> -13775050 | I7: =+'Financial analysis'!H$7+'Financial analysis'!H$8-'Financial analysis'!H$6*(1+$C7)-'Financial analysis'!H$9-'Financial analysis'!H$12-'Financial analysis'!H$13-'Financial analysis'!H$14-'Financial analysis'!H$15-'Financial analysis'!H$16 -> 1254965.625 | J7: =+'Financial analysis'!I$7+'Financial analysis'!I$8-'Financial analysis'!I$6*(1+$C7)-'Financial analysis'!I$9-'Financial analysis'!I$12-'Financial analysis'!I$13-'Financial analysis'!I$14-'Financial analysis'!I$15-'Financial analysis'!I$16 -> 2960526.359 | K7: =+'Financial analysis'!J$7+'Financial analysis'!J$8-'Financial analysis'!J$6*(1+$C7)-'Financial analysis'!J$9-'Financial analysis'!J$12-'Financial analysis'!J$13-'Financial analysis'!J$14-'Financial analysis'!J$15-'Financial analysis'!J$16 -> 1561215.414 | L7: =+'Financial analysis'!K$7+'Financial analysis'!K$8-'Financial analysis'!K$6*(1+$C7)-'Financial analysis'!K$9-'Financial analysis'!K$12-'Financial analysis'!K$13-'Financial analysis'!K$14-'Financial analysis'!K$15-'Financial analysis'!K$16 -> 2504633.47 | M7: =+'Financial analysis'!L$7+'Financial analysis'!L$8-'Financial analysis'!L$6*(1+$C7)-'Financial analysis'!L$9-'Financial analysis'!L$12-'Financial analysis'!L$13-'Financial analysis'!L$14-'Financial analysis'!L$15-'Financial analysis'!L$16 -> 2190883.519 | N7: =+'Financial analysis'!M$7+'Financial analysis'!M$8-'Financial analysis'!M$6*(1+$C7)-'Financial analysis'!M$9-'Financial analysis'!M$12-'Financial analysis'!M$13-'Financial analysis'!M$14-'Financial analysis'!M$15-'Financial analysis'!M$16 -> 2452986.497 | O7: =+'Financial analysis'!N$7+'Financial analysis'!N$8-'Financial analysis'!N$6*(1+$C7)-'Financial analysis'!N$9-'Financial analysis'!N$12-'Financial analysis'!N$13-'Financial analysis'!N$14-'Financial analysis'!N$15-'Financial analysis'!N$16 -> 2714034.617 | P7: =+'Financial analysis'!O$7+'Financial analysis'!O$8-'Financial analysis'!O$6*(1+$C7)-'Financial analysis'!O$9-'Financial analysis'!O$12-'Financial analysis'!O$13-'Financial analysis'!O$14-'Financial analysis'!O$15-'Financial analysis'!O$16 -> 2413241.963 | Q7: =+'Financial analysis'!P$7+'Financial analysis'!P$8-'Financial analysis'!P$6*(1+$C7)-'Financial analysis'!P$9-'Financial analysis'!P$12-'Financial analysis'!P$13-'Financial analysis'!P$14-'Financial analysis'!P$15-'Financial analysis'!P$16 -> 4147232.428 | R7: =+'Financial analysis'!Q$7+'Financial analysis'!Q$8-'Financial analysis'!Q$6*(1+$C7)-'Financial analysis'!Q$9-'Financial analysis'!Q$12-'Financial analysis'!Q$13-'Financial analysis'!Q$14-'Financial analysis'!Q$15-'Financial analysis'!Q$16 -> 5880504.036 | S7: =+'Financial analysis'!R$7+'Financial analysis'!R$8-'Financial analysis'!R$6*(1+$C7)-'Financial analysis'!R$9-'Financial analysis'!R$12-'Financial analysis'!R$13-'Financial analysis'!R$14-'Financial analysis'!R$15-'Financial analysis'!R$16 -> 7613143.052 | T7: =+'Financial analysis'!S$7+'Financial analysis'!S$8-'Financial analysis'!S$6*(1+$C7)-'Financial analysis'!S$9-'Financial analysis'!S$12-'Financial analysis'!S$13-'Financial analysis'!S$14-'Financial analysis'!S$15-'Financial analysis'!S$16 -> 9345225.386 | U7: =+'Financial analysis'!T$7+'Financial analysis'!T$8-'Financial analysis'!T$6*(1+$C7)-'Financial analysis'!T$9-'Financial analysis'!T$12-'Financial analysis'!T$13-'Financial analysis'!T$14-'Financial analysis'!T$15-'Financial analysis'!T$16 -> 11076817.84 | V7: =+'Financial analysis'!U$7+'Financial analysis'!U$8-'Financial analysis'!U$6*(1+$C7)-'Financial analysis'!U$9-'Financial analysis'!U$12-'Financial analysis'!U$13-'Financial analysis'!U$14-'Financial analysis'!U$15-'Financial analysis'!U$16 -> 11079979.2 | W7: =+'Financial analysis'!V$7+'Financial analysis'!V$8-'Financial analysis'!V$6*(1+$C7)-'Financial analysis'!V$9-'Financial analysis'!V$12-'Financial analysis'!V$13-'Financial analysis'!V$14-'Financial analysis'!V$15-'Financial analysis'!V$16 -> 11082761.19 | X7: =+'Financial analysis'!W$7+'Financial analysis'!W$8-'Financial analysis'!W$6*(1+$C7)-'Financial analysis'!W$9-'Financial analysis'!W$12-'Financial analysis'!W$13-'Financial analysis'!W$14-'Financial analysis'!W$15-'Financial analysis'!W$16 -> 16085209.35 | Z7: =NPV(Inputs!$D$10,E7:X7) -> -6088462.828 | AA7: 0.03070593031 | AC7: =IF('Financial analysis'!$D$23<0,(-(Z7-'Financial analysis'!$D$23)/'Financial analysis'!$D$23),(Z7-'Financial analysis'!$D$23)/'Financial analysis'!$D$23) -> 0.1940116429 | AD7: =AA7-'Financial analysis'!$D$24 -> 0.002290255717
B8: Revenue with 1% increase | C8: 0.009999999776 | D8: EUR | E8: =+'Financial analysis'!D$7*(1+$C8)+'Financial analysis'!D$8-'Financial analysis'!D$6-'Financial analysis'!D$9-'Financial analysis'!D$12-'Financial analysis'!D$13-'Financial analysis'!D$14-'Financial analysis'!D$15-'Financial analysis'!D$16 -> -6660000 | F8: =+'Financial analysis'!E$7*(1+$C8)+'Financial analysis'!E$8-'Financial analysis'!E$6-'Financial analysis'!E$9-'Financial analysis'!E$12-'Financial analysis'!E$13-'Financial analysis'!E$14-'Financial analysis'!E$15-'Financial analysis'!E$16 -> -19665511 | G8: =+'Financial analysis'!F$7*(1+$C8)+'Financial analysis'!F$8-'Financial analysis'!F$6-'Financial analysis'!F$9-'Financial analysis'!F$12-'Financial analysis'!F$13-'Financial analysis'!F$14-'Financial analysis'!F$15-'Financial analysis'!F$16 -> -24088443.87 | H8: =+'Financial analysis'!G$7*(1+$C8)+'Financial analysis'!G$8-'Financial analysis'!G$6-'Financial analysis'!G$9-'Financial analysis'!G$12-'Financial analysis'!G$13-'Financial analysis'!G$14-'Financial analysis'!G$15-'Financial analysis'!G$16 -> -13759448 | I8: =+'Financial analysis'!H$7*(1+$C8)+'Financial analysis'!H$8-'Financial analysis'!H$6-'Financial analysis'!H$9-'Financial analysis'!H$12-'Financial analysis'!H$13-'Financial analysis'!H$14-'Financial analysis'!H$15-'Financial analysis'!H$16 -> 1270334.623 | J8: =+'Financial analysis'!I$7*(1+$C8)+'Financial analysis'!I$8-'Financial analysis'!I$6-'Financial analysis'!I$9-'Financial analysis'!I$12-'Financial analysis'!I$13-'Financial analysis'!I$14-'Financial analysis'!I$15-'Financial analysis'!I$16 -> 2993010.777 | K8: =+'Financial analysis'!J$7*(1+$C8)+'Financial analysis'!J$8-'Financial analysis'!J$6-'Financial analysis'!J$9-'Financial analysis'!J$12-'Financial analysis'!J$13-'Financial analysis'!J$14-'Financial analysis'!J$15-'Financial analysis'!J$16 -> 1579295.446 | L8: =+'Financial analysis'!K$7*(1+$C8)+'Financial analysis'!K$8-'Financial analysis'!K$6-'Financial analysis'!K$9-'Financial analysis'!K$12-'Financial analysis'!K$13-'Financial analysis'!K$14-'Financial analysis'!K$15-'Financial analysis'!K$16 -> 2531953.772 | M8: =+'Financial analysis'!L$7*(1+$C8)+'Financial analysis'!L$8-'Financial analysis'!L$6-'Financial analysis'!L$9-'Financial analysis'!L$12-'Financial analysis'!L$13-'Financial analysis'!L$14-'Financial analysis'!L$15-'Financial analysis'!L$16 -> 2214759.182 | N8: =+'Financial analysis'!M$7*(1+$C8)+'Financial analysis'!M$8-'Financial analysis'!M$6-'Financial analysis'!M$9-'Financial analysis'!M$12-'Financial analysis'!M$13-'Financial analysis'!M$14-'Financial analysis'!M$15-'Financial analysis'!M$16 -> 2479246.326 | O8: =+'Financial analysis'!N$7*(1+$C8)+'Financial analysis'!N$8-'Financial analysis'!N$6-'Financial analysis'!N$9-'Financial analysis'!N$12-'Financial analysis'!N$13-'Financial analysis'!N$14-'Financial analysis'!N$15-'Financial analysis'!N$16 -> 2742678.613 | P8: =+'Financial analysis'!O$7*(1+$C8)+'Financial analysis'!O$8-'Financial analysis'!O$6-'Financial analysis'!O$9-'Financial analysis'!O$12-'Financial analysis'!O$13-'Financial analysis'!O$14-'Financial analysis'!O$15-'Financial analysis'!O$16 -> 2459165.959 | Q8: =+'Financial analysis'!P$7*(1+$C8)+'Financial analysis'!P$8-'Financial analysis'!P$6-'Financial analysis'!P$9-'Financial analysis'!P$12-'Financial analysis'!P$13-'Financial analysis'!P$14-'Financial analysis'!P$15-'Financial analysis'!P$16 -> 4210436.423 | R8: =+'Financial analysis'!Q$7*(1+$C8)+'Financial analysis'!Q$8-'Financial analysis'!Q$6-'Financial analysis'!Q$9-'Financial analysis'!Q$12-'Financial analysis'!Q$13-'Financial analysis'!Q$14-'Financial analysis'!Q$15-'Financial analysis'!Q$16 -> 5960988.031 | S8: =+'Financial analysis'!R$7*(1+$C8)+'Financial analysis'!R$8-'Financial analysis'!R$6-'Financial analysis'!R$9-'Financial analysis'!R$12-'Financial analysis'!R$13-'Financial analysis'!R$14-'Financial analysis'!R$15-'Financial analysis'!R$16 -> 7710907.046 | T8: =+'Financial analysis'!S$7*(1+$C8)+'Financial analysis'!S$8-'Financial analysis'!S$6-'Financial analysis'!S$9-'Financial analysis'!S$12-'Financial analysis'!S$13-'Financial analysis'!S$14-'Financial analysis'!S$15-'Financial analysis'!S$16 -> 9460269.38 | U8: =+'Financial analysis'!T$7*(1+$C8)+'Financial analysis'!T$8-'Financial analysis'!T$6-'Financial analysis'!T$9-'Financial analysis'!T$12-'Financial analysis'!T$13-'Financial analysis'!T$14-'Financial analysis'!T$15-'Financial analysis'!T$16 -> 11209141.83 | V8: =+'Financial analysis'!U$7*(1+$C8)+'Financial analysis'!U$8-'Financial analysis'!U$6-'Financial analysis'!U$9-'Financial analysis'!U$12-'Financial analysis'!U$13-'Financial analysis'!U$14-'Financial analysis'!U$15-'Financial analysis'!U$16 -> 11212303.19 | W8: =+'Financial analysis'!V$7*(1+$C8)+'Financial analysis'!V$8-'Financial analysis'!V$6-'Financial analysis'!V$9-'Financial analysis'!V$12-'Financial analysis'!V$13-'Financial analysis'!V$14-'Financial analysis'!V$15-'Financial analysis'!V$16 -> 11215085.19 | X8: =+'Financial analysis'!W$7*(1+$C8)+'Financial analysis'!W$8-'Financial analysis'!W$6-'Financial analysis'!W$9-'Financial analysis'!W$12-'Financial analysis'!W$13-'Financial analysis'!W$14-'Financial analysis'!W$15-'Financial analysis'!W$16 -> 16217533.34 | Z8: =NPV(Inputs!$D$10,E8:X8) -> -5436291.764 | AA8: 0.03173479197 | AC8: =IF('Financial analysis'!$D$23<0,(-(Z8-'Financial analysis'!$D$23)/'Financial analysis'!$D$23),(Z8-'Financial analysis'!$D$23)/'Financial analysis'!$D$23) -> 0.2803457964 | AD8: =AA8-'Financial analysis'!$D$24 -> 0.003319117372
B9: Revenue with 1% decrease | C9: -0.01 | D9: EUR | E9: =+'Financial analysis'!D$7*(1+$C9)+'Financial analysis'!D$8-'Financial analysis'!D$6-'Financial analysis'!D$9-'Financial analysis'!D$12-'Financial analysis'!D$13-'Financial analysis'!D$14-'Financial analysis'!D$15-'Financial analysis'!D$16 -> -6660000 | F9: =+'Financial analysis'!E$7*(1+$C9)+'Financial analysis'!E$8-'Financial analysis'!E$6-'Financial analysis'!E$9-'Financial analysis'!E$12-'Financial analysis'!E$13-'Financial analysis'!E$14-'Financial analysis'!E$15-'Financial analysis'!E$16 -> -19710439 | G9: =+'Financial analysis'!F$7*(1+$C9)+'Financial analysis'!F$8-'Financial analysis'!F$6-'Financial analysis'!F$9-'Financial analysis'!F$12-'Financial analysis'!F$13-'Financial analysis'!F$14-'Financial analysis'!F$15-'Financial analysis'!F$16 -> -24183829.47 | H9: =+'Financial analysis'!G$7*(1+$C9)+'Financial analysis'!G$8-'Financial analysis'!G$6-'Financial analysis'!G$9-'Financial analysis'!G$12-'Financial analysis'!G$13-'Financial analysis'!G$14-'Financial analysis'!G$15-'Financial analysis'!G$16 -> -13920152 | I9: =+'Financial analysis'!H$7*(1+$C9)+'Financial analysis'!H$8-'Financial analysis'!H$6-'Financial analysis'!H$9-'Financial analysis'!H$12-'Financial analysis'!H$13-'Financial analysis'!H$14-'Financial analysis'!H$15-'Financial analysis'!H$16 -> 1061246.625 | J9: =+'Financial analysis'!I$7*(1+$C9)+'Financial analysis'!I$8-'Financial analysis'!I$6-'Financial analysis'!I$9-'Financial analysis'!I$12-'Financial analysis'!I$13-'Financial analysis'!I$14-'Financial analysis'!I$15-'Financial analysis'!I$16 -> 2777010.779 | K9: =+'Financial analysis'!J$7*(1+$C9)+'Financial analysis'!J$8-'Financial analysis'!J$6-'Financial analysis'!J$9-'Financial analysis'!J$12-'Financial analysis'!J$13-'Financial analysis'!J$14-'Financial analysis'!J$15-'Financial analysis'!J$16 -> 1335647.448 | L9: =+'Financial analysis'!K$7*(1+$C9)+'Financial analysis'!K$8-'Financial analysis'!K$6-'Financial analysis'!K$9-'Financial analysis'!K$12-'Financial analysis'!K$13-'Financial analysis'!K$14-'Financial analysis'!K$15-'Financial analysis'!K$16 -> 2253745.775 | M9: =+'Financial analysis'!L$7*(1+$C9)+'Financial analysis'!L$8-'Financial analysis'!L$6-'Financial analysis'!L$9-'Financial analysis'!L$12-'Financial analysis'!L$13-'Financial analysis'!L$14-'Financial analysis'!L$15-'Financial analysis'!L$16 -> 1901991.186 | N9: =+'Financial analysis'!M$7*(1+$C9)+'Financial analysis'!M$8-'Financial analysis'!M$6-'Financial analysis'!M$9-'Financial analysis'!M$12-'Financial analysis'!M$13-'Financial analysis'!M$14-'Financial analysis'!M$15-'Financial analysis'!M$16 -> 2131918.33 | O9: =+'Financial analysis'!N$7*(1+$C9)+'Financial analysis'!N$8-'Financial analysis'!N$6-'Financial analysis'!N$9-'Financial analysis'!N$12-'Financial analysis'!N$13-'Financial analysis'!N$14-'Financial analysis'!N$15-'Financial analysis'!N$16 -> 2360790.617 | P9: =+'Financial analysis'!O$7*(1+$C9)+'Financial analysis'!O$8-'Financial analysis'!O$6-'Financial analysis'!O$9-'Financial analysis'!O$12-'Financial analysis'!O$13-'Financial analysis'!O$14-'Financial analysis'!O$15-'Financial analysis'!O$16 -> 2042717.963 | Q9: =+'Financial analysis'!P$7*(1+$C9)+'Financial analysis'!P$8-'Financial analysis'!P$6-'Financial analysis'!P$9-'Financial analysis'!P$12-'Financial analysis'!P$13-'Financial analysis'!P$14-'Financial analysis'!P$15-'Financial analysis'!P$16 -> 3759428.428 | R9: =+'Financial analysis'!Q$7*(1+$C9)+'Financial analysis'!Q$8-'Financial analysis'!Q$6-'Financial analysis'!Q$9-'Financial analysis'!Q$12-'Financial analysis'!Q$13-'Financial analysis'!Q$14-'Financial analysis'!Q$15-'Financial analysis'!Q$16 -> 5475420.036 | S9: =+'Financial analysis'!R$7*(1+$C9)+'Financial analysis'!R$8-'Financial analysis'!R$6-'Financial analysis'!R$9-'Financial analysis'!R$12-'Financial analysis'!R$13-'Financial analysis'!R$14-'Financial analysis'!R$15-'Financial analysis'!R$16 -> 7190779.052 | T9: =+'Financial analysis'!S$7*(1+$C9)+'Financial analysis'!S$8-'Financial analysis'!S$6-'Financial analysis'!S$9-'Financial analysis'!S$12-'Financial analysis'!S$13-'Financial analysis'!S$14-'Financial analysis'!S$15-'Financial analysis'!S$16 -> 8905581.386 | U9: =+'Financial analysis'!T$7*(1+$C9)+'Financial analysis'!T$8-'Financial analysis'!T$6-'Financial analysis'!T$9-'Financial analysis'!T$12-'Financial analysis'!T$13-'Financial analysis'!T$14-'Financial analysis'!T$15-'Financial analysis'!T$16 -> 10619893.84 | V9: =+'Financial analysis'!U$7*(1+$C9)+'Financial analysis'!U$8-'Financial analysis'!U$6-'Financial analysis'!U$9-'Financial analysis'!U$12-'Financial analysis'!U$13-'Financial analysis'!U$14-'Financial analysis'!U$15-'Financial analysis'!U$16 -> 10623055.2 | W9: =+'Financial analysis'!V$7*(1+$C9)+'Financial analysis'!V$8-'Financial analysis'!V$6-'Financial analysis'!V$9-'Financial analysis'!V$12-'Financial analysis'!V$13-'Financial analysis'!V$14-'Financial analysis'!V$15-'Financial analysis'!V$16 -> 10625837.19 | X9: =+'Financial analysis'!W$7*(1+$C9)+'Financial analysis'!W$8-'Financial analysis'!W$6-'Financial analysis'!W$9-'Financial analysis'!W$12-'Financial analysis'!W$13-'Financial analysis'!W$14-'Financial analysis'!W$15-'Financial analysis'!W$16 -> 15628285.35 | Z9: =NPV(Inputs!$D$10,E9:X9) -> -9671774.733 | AA9: 0.02503644799 | AC9: =IF('Financial analysis'!$D$23<0,(-(Z9-'Financial analysis'!$D$23)/'Financial analysis'!$D$23),(Z9-'Financial analysis'!$D$23)/'Financial analysis'!$D$23) -> -0.2803458027 | AD9: =AA9-'Financial analysis'!$D$24 -> -0.003379226601
B12: Net project cashflow considering financial structure
B13: Sensitivity analysis on FNPV(C) and FRR(C) | C13: % change | D13: Unit | E13: =Inputs!$D$4 -> 2019 | F13: =E13+1 -> 2020 | G13: =F13+1 -> 2021 | H13: =G13+1 -> 2022 | I13: =H13+1 -> 2023 | J13: =I13+1 -> 2024 | K13: =J13+1 -> 2025 | L13: =K13+1 -> 2026 | M13: =L13+1 -> 2027 | N13: =M13+1 -> 2028 | O13: =N13+1 -> 2029 | P13: =O13+1 -> 2030 | Q13: =P13+1 -> 2031 | R13: =Q13+1 -> 2032 | S13: =R13+1 -> 2033 | T13: =S13+1 -> 2034 | U13: =T13+1 -> 2035 | V13: =U13+1 -> 2036 | W13: =V13+1 -> 2037 | X13: =W13+1 -> 2038 | Z13: FNPV(C) | AA13: FRR(C) | AC13: Change in FNPV(C) | AD13: Change in FRR(C)
B14: Capital expenditure with 1% increase | C14: 0.009999999776 | D14: =Currency -> EUR | E14: =-'Financial analysis'!D5*(1+Sensitivity!$C$14)+'Financial analysis'!D7+'Financial analysis'!D8-'Financial analysis'!D6-'Financial analysis'!D9 -> -8281999.998 | F14: =-'Financial analysis'!E5*(1+Sensitivity!$C$14)+'Financial analysis'!E7+'Financial analysis'!E8-'Financial analysis'!E6-'Financial analysis'!E9 -> -25010974.99 | G14: =-'Financial analysis'!F5*(1+Sensitivity!$C$14)+'Financial analysis'!F7+'Financial analysis'!F8-'Financial analysis'!F6-'Financial analysis'!F9 -> -30635136.66 | H14: =-'Financial analysis'!G5*(1+Sensitivity!$C$14)+'Financial analysis'!G7+'Financial analysis'!G8-'Financial analysis'!G6-'Financial analysis'!G9 -> -17629800 | I14: =-'Financial analysis'!H5*(1+Sensitivity!$C$14)+'Financial analysis'!H7+'Financial analysis'!H8-'Financial analysis'!H6-'Financial analysis'!H9 -> 1536900 | J14: =-'Financial analysis'!I5*(1+Sensitivity!$C$14)+'Financial analysis'!I7+'Financial analysis'!I8-'Financial analysis'!I6-'Financial analysis'!I9 -> 3248442.029 | K14: =-'Financial analysis'!J5*(1+Sensitivity!$C$14)+'Financial analysis'!J7+'Financial analysis'!J8-'Financial analysis'!J6-'Financial analysis'!J9 -> 1808003.448 | L14: =-'Financial analysis'!K5*(1+Sensitivity!$C$14)+'Financial analysis'!K7+'Financial analysis'!K8-'Financial analysis'!K6-'Financial analysis'!K9 -> 2732030.435 | M14: =-'Financial analysis'!L5*(1+Sensitivity!$C$14)+'Financial analysis'!L7+'Financial analysis'!L8-'Financial analysis'!L6-'Financial analysis'!L9 -> 2387566.667 | N14: =-'Financial analysis'!M5*(1+Sensitivity!$C$14)+'Financial analysis'!M7+'Financial analysis'!M8-'Financial analysis'!M6-'Financial analysis'!M9 -> 2625983.333 | O14: =-'Financial analysis'!N5*(1+Sensitivity!$C$14)+'Financial analysis'!N7+'Financial analysis'!N8-'Financial analysis'!N6-'Financial analysis'!N9 -> 2864400 | P14: =-'Financial analysis'!O5*(1+Sensitivity!$C$14)+'Financial analysis'!O7+'Financial analysis'!O8-'Financial analysis'!O6-'Financial analysis'!O9 -> 2556800 | Q14: =-'Financial analysis'!P5*(1+Sensitivity!$C$14)+'Financial analysis'!P7+'Financial analysis'!P8-'Financial analysis'!P6-'Financial analysis'!P9 -> 4284800 | R14: =-'Financial analysis'!Q5*(1+Sensitivity!$C$14)+'Financial analysis'!Q7+'Financial analysis'!Q8-'Financial analysis'!Q6-'Financial analysis'!Q9 -> 6012800 | S14: =-'Financial analysis'!R5*(1+Sensitivity!$C$14)+'Financial analysis'!R7+'Financial analysis'!R8-'Financial analysis'!R6-'Financial analysis'!R9 -> 7740800 | T14: =-'Financial analysis'!S5*(1+Sensitivity!$C$14)+'Financial analysis'!S7+'Financial analysis'!S8-'Financial analysis'!S6-'Financial analysis'!S9 -> 9468800 | U14: =-'Financial analysis'!T5*(1+Sensitivity!$C$14)+'Financial analysis'!T7+'Financial analysis'!T8-'Financial analysis'!T6-'Financial analysis'!T9 -> 11196800 | V14: =-'Financial analysis'!U5*(1+Sensitivity!$C$14)+'Financial analysis'!U7+'Financial analysis'!U8-'Financial analysis'!U6-'Financial analysis'!U9 -> 11196800 | W14: =-'Financial analysis'!V5*(1+Sensitivity!$C$14)+'Financial analysis'!V7+'Financial analysis'!V8-'Financial analysis'!V6-'Financial analysis'!V9 -> 11196800 | X14: =-'Financial analysis'!W5*(1+Sensitivity!$C$14)+'Financial analysis'!W7+'Financial analysis'!W8-'Financial analysis'!W6-'Financial analysis'!W9 -> 16196800 | Z14: =NPV(Inputs!$D$10,E14:X14) -> -19901310.34 | AA14: =IRR(E14:X14) -> 0.01377279267 | AC14: =IF('Financial analysis'!$D$20<0,(-(Z14-'Financial analysis'!$D$20)/'Financial analysis'!$D$20),(Z14-'Financial analysis'!$D$20)/'Financial analysis'!$D$20) -> -0.0401398046 | AD14: =AA14-'Financial analysis'!$D$21 -> -0.000847224242
B15: Capital expenditure with 1% decrease | C15: -0.01 | D15: EUR | E15: =-'Financial analysis'!D5*(1+Sensitivity!$C$15)-'Financial analysis'!D6-'Financial analysis'!D9+'Financial analysis'!D7+'Financial analysis'!D8 -> -8118000 | F15: =-'Financial analysis'!E5*(1+Sensitivity!$C$15)-'Financial analysis'!E6-'Financial analysis'!E9+'Financial analysis'!E7+'Financial analysis'!E8 -> -24484975 | G15: =-'Financial analysis'!F5*(1+Sensitivity!$C$15)-'Financial analysis'!F6-'Financial analysis'!F9+'Financial analysis'!F7+'Financial analysis'!F8 -> -29997136.67 | H15: =-'Financial analysis'!G5*(1+Sensitivity!$C$15)-'Financial analysis'!G6-'Financial analysis'!G9+'Financial analysis'!G7+'Financial analysis'!G8 -> -17249800 | I15: =-'Financial analysis'!H5*(1+Sensitivity!$C$15)-'Financial analysis'!H6-'Financial analysis'!H9+'Financial analysis'!H7+'Financial analysis'!H8 -> 1536900 | J15: =-'Financial analysis'!I5*(1+Sensitivity!$C$15)-'Financial analysis'!I6-'Financial analysis'!I9+'Financial analysis'!I7+'Financial analysis'!I8 -> 3248442.029 | K15: =-'Financial analysis'!J5*(1+Sensitivity!$C$15)-'Financial analysis'!J6-'Financial analysis'!J9+'Financial analysis'!J7+'Financial analysis'!J8 -> 1808003.448 | L15: =-'Financial analysis'!K5*(1+Sensitivity!$C$15)-'Financial analysis'!K6-'Financial analysis'!K9+'Financial analysis'!K7+'Financial analysis'!K8 -> 2732030.435 | M15: =-'Financial analysis'!L5*(1+Sensitivity!$C$15)-'Financial analysis'!L6-'Financial analysis'!L9+'Financial analysis'!L7+'Financial analysis'!L8 -> 2387566.667 | N15: =-'Financial analysis'!M5*(1+Sensitivity!$C$15)-'Financial analysis'!M6-'Financial analysis'!M9+'Financial analysis'!M7+'Financial analysis'!M8 -> 2625983.333 | O15: =-'Financial analysis'!N5*(1+Sensitivity!$C$15)-'Financial analysis'!N6-'Financial analysis'!N9+'Financial analysis'!N7+'Financial analysis'!N8 -> 2864400 | P15: =-'Financial analysis'!O5*(1+Sensitivity!$C$15)-'Financial analysis'!O6-'Financial analysis'!O9+'Financial analysis'!O7+'Financial analysis'!O8 -> 2556800 | Q15: =-'Financial analysis'!P5*(1+Sensitivity!$C$15)-'Financial analysis'!P6-'Financial analysis'!P9+'Financial analysis'!P7+'Financial analysis'!P8 -> 4284800 | R15: =-'Financial analysis'!Q5*(1+Sensitivity!$C$15)-'Financial analysis'!Q6-'Financial analysis'!Q9+'Financial analysis'!Q7+'Financial analysis'!Q8 -> 6012800 | S15: =-'Financial analysis'!R5*(1+Sensitivity!$C$15)-'Financial analysis'!R6-'Financial analysis'!R9+'Financial analysis'!R7+'Financial analysis'!R8 -> 7740800 | T15: =-'Financial analysis'!S5*(1+Sensitivity!$C$15)-'Financial analysis'!S6-'Financial analysis'!S9+'Financial analysis'!S7+'Financial analysis'!S8 -> 9468800 | U15: =-'Financial analysis'!T5*(1+Sensitivity!$C$15)-'Financial analysis'!T6-'Financial analysis'!T9+'Financial analysis'!T7+'Financial analysis'!T8 -> 11196800 | V15: =-'Financial analysis'!U5*(1+Sensitivity!$C$15)-'Financial analysis'!U6-'Financial analysis'!U9+'Financial analysis'!U7+'Financial analysis'!U8 -> 11196800 | W15: =-'Financial analysis'!V5*(1+Sensitivity!$C$15)-'Financial analysis'!V6-'Financial analysis'!V9+'Financial analysis'!V7+'Financial analysis'!V8 -> 11196800 | X15: =-'Financial analysis'!W5*(1+Sensitivity!$C$15)-'Financial analysis'!W6-'Financial analysis'!W9+'Financial analysis'!W7+'Financial analysis'!W8 -> 16196800 | Z15: =NPV(Inputs!$D$10,E15:X15) -> -18365296.22 | AA15: =IRR(E15:X15) -> 0.01547791038 | AC15: =IF('Financial analysis'!$D$20<0,(-(Z15-'Financial analysis'!$D$20)/'Financial analysis'!$D$20),(Z15-'Financial analysis'!$D$20)/'Financial analysis'!$D$20) -> 0.0401398055 | AD15: =AA15-'Financial analysis'!$D$21 -> 0.0008578934709
B16: Operational expenditure with 1% increase | C16: 0.009999999776 | D16: EUR | E16: =+'Financial analysis'!D7+'Financial analysis'!D8-'Financial analysis'!D9-'Financial analysis'!D5-'Financial analysis'!D6*(1+$C$16) -> -8200000 | F16: =+'Financial analysis'!E7+'Financial analysis'!E8-'Financial analysis'!E9-'Financial analysis'!E5-'Financial analysis'!E6*(1+$C$16) -> -24754918.75 | G16: =+'Financial analysis'!F7+'Financial analysis'!F8-'Financial analysis'!F9-'Financial analysis'!F5-'Financial analysis'!F6*(1+$C$16) -> -30347990.83 | H16: =+'Financial analysis'!G7+'Financial analysis'!G8-'Financial analysis'!G9-'Financial analysis'!G5-'Financial analysis'!G6*(1+$C$16) -> -17504550 | I16: =+'Financial analysis'!H7+'Financial analysis'!H8-'Financial analysis'!H9-'Financial analysis'!H5-'Financial analysis'!H6*(1+$C$16) -> 1447725.002 | J16: =+'Financial analysis'!I7+'Financial analysis'!I8-'Financial analysis'!I9-'Financial analysis'!I5-'Financial analysis'!I6*(1+$C$16) -> 3172926.451 | K16: =+'Financial analysis'!J7+'Financial analysis'!J8-'Financial analysis'!J9-'Financial analysis'!J5-'Financial analysis'!J6*(1+$C$16) -> 1704259.485 | L16: =+'Financial analysis'!K7+'Financial analysis'!K8-'Financial analysis'!K9-'Financial analysis'!K5-'Financial analysis'!K6*(1+$C$16) -> 2620246.742 | M16: =+'Financial analysis'!L7+'Financial analysis'!L8-'Financial analysis'!L9-'Financial analysis'!L5-'Financial analysis'!L6*(1+$C$16) -> 2255058.336 | N16: =+'Financial analysis'!M7+'Financial analysis'!M8-'Financial analysis'!M9-'Financial analysis'!M5-'Financial analysis'!M6*(1+$C$16) -> 2478579.17 | O16: =+'Financial analysis'!N7+'Financial analysis'!N8-'Financial analysis'!N9-'Financial analysis'!N5-'Financial analysis'!N6*(1+$C$16) -> 2702100.004 | P16: =+'Financial analysis'!O7+'Financial analysis'!O8-'Financial analysis'!O9-'Financial analysis'!O5-'Financial analysis'!O6*(1+$C$16) -> 2394500.004 | Q16: =+'Financial analysis'!P7+'Financial analysis'!P8-'Financial analysis'!P9-'Financial analysis'!P5-'Financial analysis'!P6*(1+$C$16) -> 4122500.004 | R16: =+'Financial analysis'!Q7+'Financial analysis'!Q8-'Financial analysis'!Q9-'Financial analysis'!Q5-'Financial analysis'!Q6*(1+$C$16) -> 5850500.004 | S16: =+'Financial analysis'!R7+'Financial analysis'!R8-'Financial analysis'!R9-'Financial analysis'!R5-'Financial analysis'!R6*(1+$C$16) -> 7578500.004 | T16: =+'Financial analysis'!S7+'Financial analysis'!S8-'Financial analysis'!S9-'Financial analysis'!S5-'Financial analysis'!S6*(1+$C$16) -> 9306500.004 | U16: =+'Financial analysis'!T7+'Financial analysis'!T8-'Financial analysis'!T9-'Financial analysis'!T5-'Financial analysis'!T6*(1+$C$16) -> 11034500 | V16: =+'Financial analysis'!U7+'Financial analysis'!U8-'Financial analysis'!U9-'Financial analysis'!U5-'Financial analysis'!U6*(1+$C$16) -> 11034500 | W16: =+'Financial analysis'!V7+'Financial analysis'!V8-'Financial analysis'!V9-'Financial analysis'!V5-'Financial analysis'!V6*(1+$C$16) -> 11034500 | X16: =+'Financial analysis'!W7+'Financial analysis'!W8-'Financial analysis'!W9-'Financial analysis'!W5-'Financial analysis'!W6*(1+$C$16) -> 16034500 | Z16: =NPV(Inputs!$D$10,E16:X16) -> -20598873.65 | AA16: 0.01254901989 | AC16: =IF('Financial analysis'!$D$20<0,(-(Z16-'Financial analysis'!$D$20)/'Financial analysis'!$D$20),(Z16-'Financial analysis'!$D$20)/'Financial analysis'!$D$20) -> -0.07659787448 | AD16: =AA16-'Financial analysis'!$D$21 -> -0.002070997021
B17: Operational expenditure with 1% decrease | C17: -0.01 | D17: EUR | E17: =-'Financial analysis'!D5-'Financial analysis'!D6*(1+$C$17)-'Financial analysis'!D9+'Financial analysis'!D8+'Financial analysis'!D7 -> -8200000 | F17: =-'Financial analysis'!E5-'Financial analysis'!E6*(1+$C$17)-'Financial analysis'!E9+'Financial analysis'!E8+'Financial analysis'!E7 -> -24741031.25 | G17: =-'Financial analysis'!F5-'Financial analysis'!F6*(1+$C$17)-'Financial analysis'!F9+'Financial analysis'!F8+'Financial analysis'!F7 -> -30284282.5 | H17: =-'Financial analysis'!G5-'Financial analysis'!G6*(1+$C$17)-'Financial analysis'!G9+'Financial analysis'!G8+'Financial analysis'!G7 -> -17375050 | I17: =-'Financial analysis'!H5-'Financial analysis'!H6*(1+$C$17)-'Financial analysis'!H9+'Financial analysis'!H8+'Financial analysis'!H7 -> 1626075 | J17: =-'Financial analysis'!I5-'Financial analysis'!I6*(1+$C$17)-'Financial analysis'!I9+'Financial analysis'!I8+'Financial analysis'!I7 -> 3323957.609 | K17: =-'Financial analysis'!J5-'Financial analysis'!J6*(1+$C$17)-'Financial analysis'!J9+'Financial analysis'!J8+'Financial analysis'!J7 -> 1911747.414 | L17: =-'Financial analysis'!K5-'Financial analysis'!K6*(1+$C$17)-'Financial analysis'!K9+'Financial analysis'!K8+'Financial analysis'!K7 -> 2843814.13 | M17: =-'Financial analysis'!L5-'Financial analysis'!L6*(1+$C$17)-'Financial analysis'!L9+'Financial analysis'!L8+'Financial analysis'!L7 -> 2520075 | N17: =-'Financial analysis'!M5-'Financial analysis'!M6*(1+$C$17)-'Financial analysis'!M9+'Financial analysis'!M8+'Financial analysis'!M7 -> 2773387.5 | O17: =-'Financial analysis'!N5-'Financial analysis'!N6*(1+$C$17)-'Financial analysis'!N9+'Financial analysis'!N8+'Financial analysis'!N7 -> 3026700 | P17: =-'Financial analysis'!O5-'Financial analysis'!O6*(1+$C$17)-'Financial analysis'!O9+'Financial analysis'!O8+'Financial analysis'!O7 -> 2719100 | Q17: =-'Financial analysis'!P5-'Financial analysis'!P6*(1+$C$17)-'Financial analysis'!P9+'Financial analysis'!P8+'Financial analysis'!P7 -> 4447100 | R17: =-'Financial analysis'!Q5-'Financial analysis'!Q6*(1+$C$17)-'Financial analysis'!Q9+'Financial analysis'!Q8+'Financial analysis'!Q7 -> 6175100 | S17: =-'Financial analysis'!R5-'Financial analysis'!R6*(1+$C$17)-'Financial analysis'!R9+'Financial analysis'!R8+'Financial analysis'!R7 -> 7903100 | T17: =-'Financial analysis'!S5-'Financial analysis'!S6*(1+$C$17)-'Financial analysis'!S9+'Financial analysis'!S8+'Financial analysis'!S7 -> 9631100 | U17: =-'Financial analysis'!T5-'Financial analysis'!T6*(1+$C$17)-'Financial analysis'!T9+'Financial analysis'!T8+'Financial analysis'!T7 -> 11359100 | V17: =-'Financial analysis'!U5-'Financial analysis'!U6*(1+$C$17)-'Financial analysis'!U9+'Financial analysis'!U8+'Financial analysis'!U7 -> 11359100 | W17: =-'Financial analysis'!V5-'Financial analysis'!V6*(1+$C$17)-'Financial analysis'!V9+'Financial analysis'!V8+'Financial analysis'!V7 -> 11359100 | X17: =-'Financial analysis'!W5-'Financial analysis'!W6*(1+$C$17)-'Financial analysis'!W9+'Financial analysis'!W8+'Financial analysis'!W7 -> 16359100 | Z17: =NPV(Inputs!$D$10,E17:X17) -> -17667732.89 | AA17: 0.01667099491 | AC17: =IF('Financial analysis'!$D$20<0,(-(Z17-'Financial analysis'!$D$20)/'Financial analysis'!$D$20),(Z17-'Financial analysis'!$D$20)/'Financial analysis'!$D$20) -> 0.0765978762 | AD17: =AA17-'Financial analysis'!$D$21 -> 0.002050978002
B18: Revenue with 1% increase | C18: 0.009999999776 | D18: EUR | E18: =-'Financial analysis'!D5-'Financial analysis'!D6-'Financial analysis'!D9+'Financial analysis'!D8+'Financial analysis'!D7*(1+$C18) -> -8200000 | F18: =-'Financial analysis'!E5-'Financial analysis'!E6-'Financial analysis'!E9+'Financial analysis'!E8+'Financial analysis'!E7*(1+$C18) -> -24725511 | G18: =-'Financial analysis'!F5-'Financial analysis'!F6-'Financial analysis'!F9+'Financial analysis'!F8+'Financial analysis'!F7*(1+$C18) -> -30268443.87 | H18: =-'Financial analysis'!G5-'Financial analysis'!G6-'Financial analysis'!G9+'Financial analysis'!G8+'Financial analysis'!G7*(1+$C18) -> -17359448 | I18: =-'Financial analysis'!H5-'Financial analysis'!H6-'Financial analysis'!H9+'Financial analysis'!H8+'Financial analysis'!H7*(1+$C18) -> 1641443.998 | J18: =-'Financial analysis'!I5-'Financial analysis'!I6-'Financial analysis'!I9+'Financial analysis'!I8+'Financial analysis'!I7*(1+$C18) -> 3356442.027 | K18: =-'Financial analysis'!J5-'Financial analysis'!J6-'Financial analysis'!J9+'Financial analysis'!J8+'Financial analysis'!J7*(1+$C18) -> 1929827.446 | L18: =-'Financial analysis'!K5-'Financial analysis'!K6-'Financial analysis'!K9+'Financial analysis'!K8+'Financial analysis'!K7*(1+$C18) -> 2871134.432 | M18: =-'Financial analysis'!L5-'Financial analysis'!L6-'Financial analysis'!L9+'Financial analysis'!L8+'Financial analysis'!L7*(1+$C18) -> 2543950.663 | N18: =-'Financial analysis'!M5-'Financial analysis'!M6-'Financial analysis'!M9+'Financial analysis'!M8+'Financial analysis'!M7*(1+$C18) -> 2799647.329 | O18: =-'Financial analysis'!N5-'Financial analysis'!N6-'Financial analysis'!N9+'Financial analysis'!N8+'Financial analysis'!N7*(1+$C18) -> 3055343.996 | P18: =-'Financial analysis'!O5-'Financial analysis'!O6-'Financial analysis'!O9+'Financial analysis'!O8+'Financial analysis'!O7*(1+$C18) -> 2765023.995 | Q18: =-'Financial analysis'!P5-'Financial analysis'!P6-'Financial analysis'!P9+'Financial analysis'!P8+'Financial analysis'!P7*(1+$C18) -> 4510303.995 | R18: =-'Financial analysis'!Q5-'Financial analysis'!Q6-'Financial analysis'!Q9+'Financial analysis'!Q8+'Financial analysis'!Q7*(1+$C18) -> 6255583.995 | S18: =-'Financial analysis'!R5-'Financial analysis'!R6-'Financial analysis'!R9+'Financial analysis'!R8+'Financial analysis'!R7*(1+$C18) -> 8000863.994 | T18: =-'Financial analysis'!S5-'Financial analysis'!S6-'Financial analysis'!S9+'Financial analysis'!S8+'Financial analysis'!S7*(1+$C18) -> 9746143.994 | U18: =-'Financial analysis'!T5-'Financial analysis'!T6-'Financial analysis'!T9+'Financial analysis'!T8+'Financial analysis'!T7*(1+$C18) -> 11491423.99 | V18: =-'Financial analysis'!U5-'Financial analysis'!U6-'Financial analysis'!U9+'Financial analysis'!U8+'Financial analysis'!U7*(1+$C18) -> 11491423.99 | W18: =-'Financial analysis'!V5-'Financial analysis'!V6-'Financial analysis'!V9+'Financial analysis'!V8+'Financial analysis'!V7*(1+$C18) -> 11491423.99 | X18: =-'Financial analysis'!W5-'Financial analysis'!W6-'Financial analysis'!W9+'Financial analysis'!W8+'Financial analysis'!W7*(1+$C18) -> 16491423.99 | Z18: =NPV(Inputs!$D$10,E18:X18) -> -17015561.83 | AA18: 0.01761849345 | AC18: =IF('Financial analysis'!$D$20<0,(-(Z18-'Financial analysis'!$D$20)/'Financial analysis'!$D$20),(Z18-'Financial analysis'!$D$20)/'Financial analysis'!$D$20) -> 0.1106835254 | AD18: =AA18-'Financial analysis'!$D$21 -> 0.002998476545
B19: Revenue with 1% decrease | C19: -0.01 | D19: EUR | E19: =+'Financial analysis'!D7*(1+$C19)+'Financial analysis'!D8-'Financial analysis'!D9-'Financial analysis'!D5-'Financial analysis'!D6 -> -8200000 | F19: =+'Financial analysis'!E7*(1+$C19)+'Financial analysis'!E8-'Financial analysis'!E9-'Financial analysis'!E5-'Financial analysis'!E6 -> -24770439 | G19: =+'Financial analysis'!F7*(1+$C19)+'Financial analysis'!F8-'Financial analysis'!F9-'Financial analysis'!F5-'Financial analysis'!F6 -> -30363829.47 | H19: =+'Financial analysis'!G7*(1+$C19)+'Financial analysis'!G8-'Financial analysis'!G9-'Financial analysis'!G5-'Financial analysis'!G6 -> -17520152 | I19: =+'Financial analysis'!H7*(1+$C19)+'Financial analysis'!H8-'Financial analysis'!H9-'Financial analysis'!H5-'Financial analysis'!H6 -> 1432356 | J19: =+'Financial analysis'!I7*(1+$C19)+'Financial analysis'!I8-'Financial analysis'!I9-'Financial analysis'!I5-'Financial analysis'!I6 -> 3140442.029 | K19: =+'Financial analysis'!J7*(1+$C19)+'Financial analysis'!J8-'Financial analysis'!J9-'Financial analysis'!J5-'Financial analysis'!J6 -> 1686179.448 | L19: =+'Financial analysis'!K7*(1+$C19)+'Financial analysis'!K8-'Financial analysis'!K9-'Financial analysis'!K5-'Financial analysis'!K6 -> 2592926.435 | M19: =+'Financial analysis'!L7*(1+$C19)+'Financial analysis'!L8-'Financial analysis'!L9-'Financial analysis'!L5-'Financial analysis'!L6 -> 2231182.667 | N19: =+'Financial analysis'!M7*(1+$C19)+'Financial analysis'!M8-'Financial analysis'!M9-'Financial analysis'!M5-'Financial analysis'!M6 -> 2452319.333 | O19: =+'Financial analysis'!N7*(1+$C19)+'Financial analysis'!N8-'Financial analysis'!N9-'Financial analysis'!N5-'Financial analysis'!N6 -> 2673456 | P19: =+'Financial analysis'!O7*(1+$C19)+'Financial analysis'!O8-'Financial analysis'!O9-'Financial analysis'!O5-'Financial analysis'!O6 -> 2348576 | Q19: =+'Financial analysis'!P7*(1+$C19)+'Financial analysis'!P8-'Financial analysis'!P9-'Financial analysis'!P5-'Financial analysis'!P6 -> 4059296 | R19: =+'Financial analysis'!Q7*(1+$C19)+'Financial analysis'!Q8-'Financial analysis'!Q9-'Financial analysis'!Q5-'Financial analysis'!Q6 -> 5770016 | S19: =+'Financial analysis'!R7*(1+$C19)+'Financial analysis'!R8-'Financial analysis'!R9-'Financial analysis'!R5-'Financial analysis'!R6 -> 7480736 | T19: =+'Financial analysis'!S7*(1+$C19)+'Financial analysis'!S8-'Financial analysis'!S9-'Financial analysis'!S5-'Financial analysis'!S6 -> 9191456 | U19: =+'Financial analysis'!T7*(1+$C19)+'Financial analysis'!T8-'Financial analysis'!T9-'Financial analysis'!T5-'Financial analysis'!T6 -> 10902176 | V19: =+'Financial analysis'!U7*(1+$C19)+'Financial analysis'!U8-'Financial analysis'!U9-'Financial analysis'!U5-'Financial analysis'!U6 -> 10902176 | W19: =+'Financial analysis'!V7*(1+$C19)+'Financial analysis'!V8-'Financial analysis'!V9-'Financial analysis'!V5-'Financial analysis'!V6 -> 10902176 | X19: =+'Financial analysis'!W7*(1+$C19)+'Financial analysis'!W8-'Financial analysis'!W9-'Financial analysis'!W5-'Financial analysis'!W6 -> 15902176 | Z19: =NPV(Inputs!$D$10,E19:X19) -> -21251044.8 | AA19: 0.01156659708 | AC19: =IF('Financial analysis'!$D$20<0,(-(Z19-'Financial analysis'!$D$20)/'Financial analysis'!$D$20),(Z19-'Financial analysis'!$D$20)/'Financial analysis'!$D$20) -> -0.1106835279 | AD19: =AA19-'Financial analysis'!$D$21 -> -0.00305341983
B22: Net socio-economic benefits
B23: Sensitivity analysis on ENPV and ERR | C23: % change | D23: Unit | E23: =Inputs!$D$4 -> 2019 | F23: =E23+1 -> 2020 | G23: =F23+1 -> 2021 | H23: =G23+1 -> 2022 | I23: =H23+1 -> 2023 | J23: =I23+1 -> 2024 | K23: =J23+1 -> 2025 | L23: =K23+1 -> 2026 | M23: =L23+1 -> 2027 | N23: =M23+1 -> 2028 | O23: =N23+1 -> 2029 | P23: =O23+1 -> 2030 | Q23: =P23+1 -> 2031 | R23: =Q23+1 -> 2032 | S23: =R23+1 -> 2033 | T23: =S23+1 -> 2034 | U23: =T23+1 -> 2035 | V23: =U23+1 -> 2036 | W23: =V23+1 -> 2037 | X23: =W23+1 -> 2038 | Z23: ENPV | AA23: ERR | AC23: Change in ENPV | AD23: Change in ERR
B24: Capital expenditure with 1% increase | C24: 0.009999999776 | D24: =Currency -> EUR | E24: ='Economic analysis'!D11 + 'Economic analysis'!D6 - 'Economic analysis'!D4*(1+$C24) - 'Economic analysis'!D5 - 'Economic analysis'!D7 -> -8281999.998 | F24: ='Economic analysis'!E11 + 'Economic analysis'!E6 - 'Economic analysis'!E4*(1+$C24) - 'Economic analysis'!E5 - 'Economic analysis'!E7 -> -25694974.99 | G24: ='Economic analysis'!F11 + 'Economic analysis'!F6 - 'Economic analysis'!F4*(1+$C24) - 'Economic analysis'!F5 - 'Economic analysis'!F7 -> -31732416.66 | H24: ='Economic analysis'!G11 + 'Economic analysis'!G6 - 'Economic analysis'!G4*(1+$C24) - 'Economic analysis'!G5 - 'Economic analysis'!G7 -> -18561000 | I24: ='Economic analysis'!H11 + 'Economic analysis'!H6 - 'Economic analysis'!H4*(1+$C24) - 'Economic analysis'!H5 - 'Economic analysis'!H7 -> 1354500 | J24: ='Economic analysis'!I11 + 'Economic analysis'!I6 - 'Economic analysis'!I4*(1+$C24) - 'Economic analysis'!I5 - 'Economic analysis'!I7 -> 4364442.029 | K24: ='Economic analysis'!J11 + 'Economic analysis'!J6 - 'Economic analysis'!J4*(1+$C24) - 'Economic analysis'!J5 - 'Economic analysis'!J7 -> 4307603.448 | L24: ='Economic analysis'!K11 + 'Economic analysis'!K6 - 'Economic analysis'!K4*(1+$C24) - 'Economic analysis'!K5 - 'Economic analysis'!K7 -> 6893630.435 | M24: ='Economic analysis'!L11 + 'Economic analysis'!L6 - 'Economic analysis'!L4*(1+$C24) - 'Economic analysis'!L5 - 'Economic analysis'!L7 -> 8511166.667 | N24: ='Economic analysis'!M11 + 'Economic analysis'!M6 - 'Economic analysis'!M4*(1+$C24) - 'Economic analysis'!M5 - 'Economic analysis'!M7 -> 11011583.33 | O24: ='Economic analysis'!N11 + 'Economic analysis'!N6 - 'Economic analysis'!N4*(1+$C24) - 'Economic analysis'!N5 - 'Economic analysis'!N7 -> 11742000 | P24: ='Economic analysis'!O11 + 'Economic analysis'!O6 - 'Economic analysis'!O4*(1+$C24) - 'Economic analysis'!O5 - 'Economic analysis'!O7 -> 11926400 | Q24: ='Economic analysis'!P11 + 'Economic analysis'!P6 - 'Economic analysis'!P4*(1+$C24) - 'Economic analysis'!P5 - 'Economic analysis'!P7 -> 14146400 | R24: ='Economic analysis'!Q11 + 'Economic analysis'!Q6 - 'Economic analysis'!Q4*(1+$C24) - 'Economic analysis'!Q5 - 'Economic analysis'!Q7 -> 16366400 | S24: ='Economic analysis'!R11 + 'Economic analysis'!R6 - 'Economic analysis'!R4*(1+$C24) - 'Economic analysis'!R5 - 'Economic analysis'!R7 -> 18586400 | T24: ='Economic analysis'!S11 + 'Economic analysis'!S6 - 'Economic analysis'!S4*(1+$C24) - 'Economic analysis'!S5 - 'Economic analysis'!S7 -> 20806400 | U24: ='Economic analysis'!T11 + 'Economic analysis'!T6 - 'Economic analysis'!T4*(1+$C24) - 'Economic analysis'!T5 - 'Economic analysis'!T7 -> 23026400 | V24: ='Economic analysis'!U11 + 'Economic analysis'!U6 - 'Economic analysis'!U4*(1+$C24) - 'Economic analysis'!U5 - 'Economic analysis'!U7 -> 23026400 | W24: ='Economic analysis'!V11 + 'Economic analysis'!V6 - 'Economic analysis'!V4*(1+$C24) - 'Economic analysis'!V5 - 'Economic analysis'!V7 -> 23026400 | X24: ='Economic analysis'!W11 + 'Economic analysis'!W6 - 'Economic analysis'!W4*(1+$C24) - 'Economic analysis'!W5 - 'Economic analysis'!W7 -> 23026400 | Z24: =NPV(Inputs!$D$11,E24:X24) -> 66227286.63 | AA24: =IRR(E24:X24) -> 0.08761485079 | AC24: =IF('Economic analysis'!$D$17<0,(-(Z24-'Economic analysis'!$D$17)/'Economic analysis'!$D$17),((Z24-'Economic analysis'!$D$17)/'Economic analysis'!$D$17)) -> -0.01176230232 | AD24: =AA24-'Economic analysis'!$D$18 -> -0.001018446934
B25: Capital expenditure with 1% decrease | C25: -0.01 | D25: EUR | E25: ='Economic analysis'!D11+'Economic analysis'!D6-'Economic analysis'!D4*(1+$C25)-'Economic analysis'!D5-'Economic analysis'!D7 -> -8118000 | F25: ='Economic analysis'!E11+'Economic analysis'!E6-'Economic analysis'!E4*(1+$C25)-'Economic analysis'!E5-'Economic analysis'!E7 -> -25168975 | G25: ='Economic analysis'!F11+'Economic analysis'!F6-'Economic analysis'!F4*(1+$C25)-'Economic analysis'!F5-'Economic analysis'!F7 -> -31094416.67 | H25: ='Economic analysis'!G11+'Economic analysis'!G6-'Economic analysis'!G4*(1+$C25)-'Economic analysis'!G5-'Economic analysis'!G7 -> -18181000 | I25: ='Economic analysis'!H11+'Economic analysis'!H6-'Economic analysis'!H4*(1+$C25)-'Economic analysis'!H5-'Economic analysis'!H7 -> 1354500 | J25: ='Economic analysis'!I11+'Economic analysis'!I6-'Economic analysis'!I4*(1+$C25)-'Economic analysis'!I5-'Economic analysis'!I7 -> 4364442.029 | K25: ='Economic analysis'!J11+'Economic analysis'!J6-'Economic analysis'!J4*(1+$C25)-'Economic analysis'!J5-'Economic analysis'!J7 -> 4307603.448 | L25: ='Economic analysis'!K11+'Economic analysis'!K6-'Economic analysis'!K4*(1+$C25)-'Economic analysis'!K5-'Economic analysis'!K7 -> 6893630.435 | M25: ='Economic analysis'!L11+'Economic analysis'!L6-'Economic analysis'!L4*(1+$C25)-'Economic analysis'!L5-'Economic analysis'!L7 -> 8511166.667 | N25: ='Economic analysis'!M11+'Economic analysis'!M6-'Economic analysis'!M4*(1+$C25)-'Economic analysis'!M5-'Economic analysis'!M7 -> 11011583.33 | O25: ='Economic analysis'!N11+'Economic analysis'!N6-'Economic analysis'!N4*(1+$C25)-'Economic analysis'!N5-'Economic analysis'!N7 -> 11742000 | P25: ='Economic analysis'!O11+'Economic analysis'!O6-'Economic analysis'!O4*(1+$C25)-'Economic analysis'!O5-'Economic analysis'!O7 -> 11926400 | Q25: ='Economic analysis'!P11+'Economic analysis'!P6-'Economic analysis'!P4*(1+$C25)-'Economic analysis'!P5-'Economic analysis'!P7 -> 14146400 | R25: ='Economic analysis'!Q11+'Economic analysis'!Q6-'Economic analysis'!Q4*(1+$C25)-'Economic analysis'!Q5-'Economic analysis'!Q7 -> 16366400 | S25: ='Economic analysis'!R11+'Economic analysis'!R6-'Economic analysis'!R4*(1+$C25)-'Economic analysis'!R5-'Economic analysis'!R7 -> 18586400 | T25: ='Economic analysis'!S11+'Economic analysis'!S6-'Economic analysis'!S4*(1+$C25)-'Economic analysis'!S5-'Economic analysis'!S7 -> 20806400 | U25: ='Economic analysis'!T11+'Economic analysis'!T6-'Economic analysis'!T4*(1+$C25)-'Economic analysis'!T5-'Economic analysis'!T7 -> 23026400 | V25: ='Economic analysis'!U11+'Economic analysis'!U6-'Economic analysis'!U4*(1+$C25)-'Economic analysis'!U5-'Economic analysis'!U7 -> 23026400 | W25: ='Economic analysis'!V11+'Economic analysis'!V6-'Economic analysis'!V4*(1+$C25)-'Economic analysis'!V5-'Economic analysis'!V7 -> 23026400 | X25: ='Economic analysis'!W11+'Economic analysis'!W6-'Economic analysis'!W4*(1+$C25)-'Economic analysis'!W5-'Economic analysis'!W7 -> 23026400 | Z25: =NPV(Inputs!$D$11,E25:X25) -> 67803800.82 | AA25: 0.08966462059 | AC25: =IF('Economic analysis'!$D$17<0,(-(Z25-'Economic analysis'!$D$17)/'Economic analysis'!$D$17),((Z25-'Economic analysis'!$D$17)/'Economic analysis'!$D$17)) -> 0.01176230258 | AD25: =AA25-'Economic analysis'!$D$18 -> 0.001031322869
B26: Operational expenditure with 1% increase | C26: 0.009999999776 | D26: EUR | E26: ='Economic analysis'!D11+'Economic analysis'!D6-'Economic analysis'!D4-'Economic analysis'!D7-'Economic analysis'!D5*(1+$C26) -> -8200000 | F26: ='Economic analysis'!E11+'Economic analysis'!E6-'Economic analysis'!E4-'Economic analysis'!E7-'Economic analysis'!E5*(1+$C26) -> -25438918.75 | G26: ='Economic analysis'!F11+'Economic analysis'!F6-'Economic analysis'!F4-'Economic analysis'!F7-'Economic analysis'!F5*(1+$C26) -> -31445270.83 | H26: ='Economic analysis'!G11+'Economic analysis'!G6-'Economic analysis'!G4-'Economic analysis'!G7-'Economic analysis'!G5*(1+$C26) -> -18435750 | I26: ='Economic analysis'!H11+'Economic analysis'!H6-'Economic analysis'!H4-'Economic analysis'!H7-'Economic analysis'!H5*(1+$C26) -> 1265325.002 | J26: ='Economic analysis'!I11+'Economic analysis'!I6-'Economic analysis'!I4-'Economic analysis'!I7-'Economic analysis'!I5*(1+$C26) -> 4288926.451 | K26: ='Economic analysis'!J11+'Economic analysis'!J6-'Economic analysis'!J4-'Economic analysis'!J7-'Economic analysis'!J5*(1+$C26) -> 4203859.485 | L26: ='Economic analysis'!K11+'Economic analysis'!K6-'Economic analysis'!K4-'Economic analysis'!K7-'Economic analysis'!K5*(1+$C26) -> 6781846.742 | M26: ='Economic analysis'!L11+'Economic analysis'!L6-'Economic analysis'!L4-'Economic analysis'!L7-'Economic analysis'!L5*(1+$C26) -> 8378658.336 | N26: ='Economic analysis'!M11+'Economic analysis'!M6-'Economic analysis'!M4-'Economic analysis'!M7-'Economic analysis'!M5*(1+$C26) -> 10864179.17 | O26: ='Economic analysis'!N11+'Economic analysis'!N6-'Economic analysis'!N4-'Economic analysis'!N7-'Economic analysis'!N5*(1+$C26) -> 11579700 | P26: ='Economic analysis'!O11+'Economic analysis'!O6-'Economic analysis'!O4-'Economic analysis'!O7-'Economic analysis'!O5*(1+$C26) -> 11764100 | Q26: ='Economic analysis'!P11+'Economic analysis'!P6-'Economic analysis'!P4-'Economic analysis'!P7-'Economic analysis'!P5*(1+$C26) -> 13984100 | R26: ='Economic analysis'!Q11+'Economic analysis'!Q6-'Economic analysis'!Q4-'Economic analysis'!Q7-'Economic analysis'!Q5*(1+$C26) -> 16204100 | S26: ='Economic analysis'!R11+'Economic analysis'!R6-'Economic analysis'!R4-'Economic analysis'!R7-'Economic analysis'!R5*(1+$C26) -> 18424100 | T26: ='Economic analysis'!S11+'Economic analysis'!S6-'Economic analysis'!S4-'Economic analysis'!S7-'Economic analysis'!S5*(1+$C26) -> 20644100 | U26: ='Economic analysis'!T11+'Economic analysis'!T6-'Economic analysis'!T4-'Economic analysis'!T7-'Economic analysis'!T5*(1+$C26) -> 22864100 | V26: ='Economic analysis'!U11+'Economic analysis'!U6-'Economic analysis'!U4-'Economic analysis'!U7-'Economic analysis'!U5*(1+$C26) -> 22864100 | W26: ='Economic analysis'!V11+'Economic analysis'!V6-'Economic analysis'!V4-'Economic analysis'!V7-'Economic analysis'!V5*(1+$C26) -> 22864100 | X26: ='Economic analysis'!W11+'Economic analysis'!W6-'Economic analysis'!W4-'Economic analysis'!W7-'Economic analysis'!W5*(1+$C26) -> 22864100 | Z26: =NPV(Inputs!$D$11,E26:X26) -> 65368153.93 | AA26: =IRR(E26:X26) -> 0.08732324717 | AC26: =IF('Economic analysis'!$D$17<0,(-(Z26-'Economic analysis'!$D$17)/'Economic analysis'!$D$17),((Z26-'Economic analysis'!$D$17)/'Economic analysis'!$D$17)) -> -0.02458220432 | AD26: =AA26-'Economic analysis'!$D$18 -> -0.00131005056
B27: Operational expenditure with 1% decrease | C27: -0.01 | D27: EUR | E27: ='Economic analysis'!D11+'Economic analysis'!D6-'Economic analysis'!D4-'Economic analysis'!D7-'Economic analysis'!D5*(1+$C27) -> -8200000 | F27: ='Economic analysis'!E11+'Economic analysis'!E6-'Economic analysis'!E4-'Economic analysis'!E7-'Economic analysis'!E5*(1+$C27) -> -25425031.25 | G27: ='Economic analysis'!F11+'Economic analysis'!F6-'Economic analysis'!F4-'Economic analysis'!F7-'Economic analysis'!F5*(1+$C27) -> -31381562.5 | H27: ='Economic analysis'!G11+'Economic analysis'!G6-'Economic analysis'!G4-'Economic analysis'!G7-'Economic analysis'!G5*(1+$C27) -> -18306250 | I27: ='Economic analysis'!H11+'Economic analysis'!H6-'Economic analysis'!H4-'Economic analysis'!H7-'Economic analysis'!H5*(1+$C27) -> 1443675 | J27: ='Economic analysis'!I11+'Economic analysis'!I6-'Economic analysis'!I4-'Economic analysis'!I7-'Economic analysis'!I5*(1+$C27) -> 4439957.609 | K27: ='Economic analysis'!J11+'Economic analysis'!J6-'Economic analysis'!J4-'Economic analysis'!J7-'Economic analysis'!J5*(1+$C27) -> 4411347.414 | L27: ='Economic analysis'!K11+'Economic analysis'!K6-'Economic analysis'!K4-'Economic analysis'!K7-'Economic analysis'!K5*(1+$C27) -> 7005414.13 | M27: ='Economic analysis'!L11+'Economic analysis'!L6-'Economic analysis'!L4-'Economic analysis'!L7-'Economic analysis'!L5*(1+$C27) -> 8643675 | N27: ='Economic analysis'!M11+'Economic analysis'!M6-'Economic analysis'!M4-'Economic analysis'!M7-'Economic analysis'!M5*(1+$C27) -> 11158987.5 | O27: ='Economic analysis'!N11+'Economic analysis'!N6-'Economic analysis'!N4-'Economic analysis'!N7-'Economic analysis'!N5*(1+$C27) -> 11904300 | P27: ='Economic analysis'!O11+'Economic analysis'!O6-'Economic analysis'!O4-'Economic analysis'!O7-'Economic analysis'!O5*(1+$C27) -> 12088700 | Q27: ='Economic analysis'!P11+'Economic analysis'!P6-'Economic analysis'!P4-'Economic analysis'!P7-'Economic analysis'!P5*(1+$C27) -> 14308700 | R27: ='Economic analysis'!Q11+'Economic analysis'!Q6-'Economic analysis'!Q4-'Economic analysis'!Q7-'Economic analysis'!Q5*(1+$C27) -> 16528700 | S27: ='Economic analysis'!R11+'Economic analysis'!R6-'Economic analysis'!R4-'Economic analysis'!R7-'Economic analysis'!R5*(1+$C27) -> 18748700 | T27: ='Economic analysis'!S11+'Economic analysis'!S6-'Economic analysis'!S4-'Economic analysis'!S7-'Economic analysis'!S5*(1+$C27) -> 20968700 | U27: ='Economic analysis'!T11+'Economic analysis'!T6-'Economic analysis'!T4-'Economic analysis'!T7-'Economic analysis'!T5*(1+$C27) -> 23188700 | V27: ='Economic analysis'!U11+'Economic analysis'!U6-'Economic analysis'!U4-'Economic analysis'!U7-'Economic analysis'!U5*(1+$C27) -> 23188700 | W27: ='Economic analysis'!V11+'Economic analysis'!V6-'Economic analysis'!V4-'Economic analysis'!V7-'Economic analysis'!V5*(1+$C27) -> 23188700 | X27: ='Economic analysis'!W11+'Economic analysis'!W6-'Economic analysis'!W4-'Economic analysis'!W7-'Economic analysis'!W5*(1+$C27) -> 23188700 | Z27: =NPV(Inputs!$D$11,E27:X27) -> 68662933.54 | AA27: 0.0899381862 | AC27: =IF('Economic analysis'!$D$17<0,(-(Z27-'Economic analysis'!$D$17)/'Economic analysis'!$D$17),((Z27-'Economic analysis'!$D$17)/'Economic analysis'!$D$17)) -> 0.02458220487 | AD27: =AA27-'Economic analysis'!$D$18 -> 0.001304888471
B28: Benefits with 1% increase | C28: 0.009999999776 | D28: EUR | E28: ='Economic analysis'!D11*(1+$C28)+'Economic analysis'!D6-'Economic analysis'!D4-'Economic analysis'!D5-'Economic analysis'!D7 -> -8200000 | F28: ='Economic analysis'!E11*(1+$C28)+'Economic analysis'!E6-'Economic analysis'!E4-'Economic analysis'!E5-'Economic analysis'!E7 -> -25416351 | G28: ='Economic analysis'!F11*(1+$C28)+'Economic analysis'!F6-'Economic analysis'!F4-'Economic analysis'!F5-'Economic analysis'!F7 -> -31376696.67 | H28: ='Economic analysis'!G11*(1+$C28)+'Economic analysis'!G6-'Economic analysis'!G4-'Economic analysis'!G5-'Economic analysis'!G7 -> -18299960 | I28: ='Economic analysis'!H11*(1+$C28)+'Economic analysis'!H6-'Economic analysis'!H4-'Economic analysis'!H5-'Economic analysis'!H7 -> 1457219.998 | J28: ='Economic analysis'!I11*(1+$C28)+'Economic analysis'!I6-'Economic analysis'!I4-'Economic analysis'!I5-'Economic analysis'!I7 -> 4483602.026 | K28: ='Economic analysis'!J11*(1+$C28)+'Economic analysis'!J6-'Economic analysis'!J4-'Economic analysis'!J5-'Economic analysis'!J7 -> 4454423.445 | L28: ='Economic analysis'!K11*(1+$C28)+'Economic analysis'!K6-'Economic analysis'!K4-'Economic analysis'!K5-'Economic analysis'!K7 -> 7074350.431 | M28: ='Economic analysis'!L11*(1+$C28)+'Economic analysis'!L6-'Economic analysis'!L4-'Economic analysis'!L5-'Economic analysis'!L7 -> 8728786.662 | N28: ='Economic analysis'!M11*(1+$C28)+'Economic analysis'!M6-'Economic analysis'!M4-'Economic analysis'!M5-'Economic analysis'!M7 -> 11269103.33 | O28: ='Economic analysis'!N11*(1+$C28)+'Economic analysis'!N6-'Economic analysis'!N4-'Economic analysis'!N5-'Economic analysis'!N7 -> 12021719.99 | P28: ='Economic analysis'!O11*(1+$C28)+'Economic analysis'!O6-'Economic analysis'!O4-'Economic analysis'!O5-'Economic analysis'!O7 -> 12228319.99 | Q28: ='Economic analysis'!P11*(1+$C28)+'Economic analysis'!P6-'Economic analysis'!P4-'Economic analysis'!P5-'Economic analysis'!P7 -> 14470519.99 | R28: ='Economic analysis'!Q11*(1+$C28)+'Economic analysis'!Q6-'Economic analysis'!Q4-'Economic analysis'!Q5-'Economic analysis'!Q7 -> 16712719.99 | S28: ='Economic analysis'!R11*(1+$C28)+'Economic analysis'!R6-'Economic analysis'!R4-'Economic analysis'!R5-'Economic analysis'!R7 -> 18954919.99 | T28: ='Economic analysis'!S11*(1+$C28)+'Economic analysis'!S6-'Economic analysis'!S4-'Economic analysis'!S5-'Economic analysis'!S7 -> 21197119.99 | U28: ='Economic analysis'!T11*(1+$C28)+'Economic analysis'!T6-'Economic analysis'!T4-'Economic analysis'!T5-'Economic analysis'!T7 -> 23439319.99 | V28: ='Economic analysis'!U11*(1+$C28)+'Economic analysis'!U6-'Economic analysis'!U4-'Economic analysis'!U5-'Economic analysis'!U7 -> 23439319.99 | W28: ='Economic analysis'!V11*(1+$C28)+'Economic analysis'!V6-'Economic analysis'!V4-'Economic analysis'!V5-'Economic analysis'!V7 -> 23439319.99 | X28: ='Economic analysis'!W11*(1+$C28)+'Economic analysis'!W6-'Economic analysis'!W4-'Economic analysis'!W5-'Economic analysis'!W7 -> 23439319.99 | Z28: =NPV(Inputs!$D$11,E28:X28) -> 70235845.47 | AA28: 0.09102378534 | AC28: =IF('Economic analysis'!$D$17<0,(-(Z28-'Economic analysis'!$D$17)/'Economic analysis'!$D$17),((Z28-'Economic analysis'!$D$17)/'Economic analysis'!$D$17)) -> 0.0480530572 | AD28: =AA28-'Economic analysis'!$D$18 -> 0.002390487615
B29: Benefits with 1% decrease | C29: -0.01 | D29: EUR | E29: ='Economic analysis'!D11*(1+$C29)+'Economic analysis'!D6-'Economic analysis'!D4-'Economic analysis'!D5-'Economic analysis'!D7 -> -8200000 | F29: ='Economic analysis'!E11*(1+$C29)+'Economic analysis'!E6-'Economic analysis'!E4-'Economic analysis'!E5-'Economic analysis'!E7 -> -25447599 | G29: ='Economic analysis'!F11*(1+$C29)+'Economic analysis'!F6-'Economic analysis'!F4-'Economic analysis'!F5-'Economic analysis'!F7 -> -31450136.67 | H29: ='Economic analysis'!G11*(1+$C29)+'Economic analysis'!G6-'Economic analysis'!G4-'Economic analysis'!G5-'Economic analysis'!G7 -> -18442040 | I29: ='Economic analysis'!H11*(1+$C29)+'Economic analysis'!H6-'Economic analysis'!H4-'Economic analysis'!H5-'Economic analysis'!H7 -> 1251780 | J29: ='Economic analysis'!I11*(1+$C29)+'Economic analysis'!I6-'Economic analysis'!I4-'Economic analysis'!I5-'Economic analysis'!I7 -> 4245282.029 | K29: ='Economic analysis'!J11*(1+$C29)+'Economic analysis'!J6-'Economic analysis'!J4-'Economic analysis'!J5-'Economic analysis'!J7 -> 4160783.448 | L29: ='Economic analysis'!K11*(1+$C29)+'Economic analysis'!K6-'Economic analysis'!K4-'Economic analysis'!K5-'Economic analysis'!K7 -> 6712910.435 | M29: ='Economic analysis'!L11*(1+$C29)+'Economic analysis'!L6-'Economic analysis'!L4-'Economic analysis'!L5-'Economic analysis'!L7 -> 8293546.667 | N29: ='Economic analysis'!M11*(1+$C29)+'Economic analysis'!M6-'Economic analysis'!M4-'Economic analysis'!M5-'Economic analysis'!M7 -> 10754063.33 | O29: ='Economic analysis'!N11*(1+$C29)+'Economic analysis'!N6-'Economic analysis'!N4-'Economic analysis'!N5-'Economic analysis'!N7 -> 11462280 | P29: ='Economic analysis'!O11*(1+$C29)+'Economic analysis'!O6-'Economic analysis'!O4-'Economic analysis'!O5-'Economic analysis'!O7 -> 11624480 | Q29: ='Economic analysis'!P11*(1+$C29)+'Economic analysis'!P6-'Economic analysis'!P4-'Economic analysis'!P5-'Economic analysis'!P7 -> 13822280 | R29: ='Economic analysis'!Q11*(1+$C29)+'Economic analysis'!Q6-'Economic analysis'!Q4-'Economic analysis'!Q5-'Economic analysis'!Q7 -> 16020080 | S29: ='Economic analysis'!R11*(1+$C29)+'Economic analysis'!R6-'Economic analysis'!R4-'Economic analysis'!R5-'Economic analysis'!R7 -> 18217880 | T29: ='Economic analysis'!S11*(1+$C29)+'Economic analysis'!S6-'Economic analysis'!S4-'Economic analysis'!S5-'Economic analysis'!S7 -> 20415680 | U29: ='Economic analysis'!T11*(1+$C29)+'Economic analysis'!T6-'Economic analysis'!T4-'Economic analysis'!T5-'Economic analysis'!T7 -> 22613480 | V29: ='Economic analysis'!U11*(1+$C29)+'Economic analysis'!U6-'Economic analysis'!U4-'Economic analysis'!U5-'Economic analysis'!U7 -> 22613480 | W29: ='Economic analysis'!V11*(1+$C29)+'Economic analysis'!V6-'Economic analysis'!V4-'Economic analysis'!V5-'Economic analysis'!V7 -> 22613480 | X29: ='Economic analysis'!W11*(1+$C29)+'Economic analysis'!W6-'Economic analysis'!W4-'Economic analysis'!W5-'Economic analysis'!W7 -> 22613480 | Z29: =NPV(Inputs!$D$11,E29:X29) -> 63795241.89 | AA29: 0.08621346007 | AC29: =IF('Economic analysis'!$D$17<0,(-(Z29-'Economic analysis'!$D$17)/'Economic analysis'!$D$17),((Z29-'Economic analysis'!$D$17)/'Economic analysis'!$D$17)) -> -0.04805305827 | AD29: =AA29-'Economic analysis'!$D$18 -> -0.002419837655
B30: Business employee benefits with 1% increase | C30: 0.009999999776 | D30: EUR | E30: =(SUM('Economic analysis'!D10))+'Economic analysis'!D9*(1+$C$30)+'Economic analysis'!D6-'Economic analysis'!D4-'Economic analysis'!D5-'Economic analysis'!D7 -> -8200000 | F30: =(SUM('Economic analysis'!E10))+'Economic analysis'!E9*(1+$C$30)+'Economic analysis'!E6-'Economic analysis'!E4-'Economic analysis'!E5-'Economic analysis'!E7 -> -25422975 | G30: =(SUM('Economic analysis'!F10))+'Economic analysis'!F9*(1+$C$30)+'Economic analysis'!F6-'Economic analysis'!F4-'Economic analysis'!F5-'Economic analysis'!F7 -> -31391096.67 | H30: =(SUM('Economic analysis'!G10))+'Economic analysis'!G9*(1+$C$30)+'Economic analysis'!G6-'Economic analysis'!G4-'Economic analysis'!G5-'Economic analysis'!G7 -> -18326600 | I30: =(SUM('Economic analysis'!H10))+'Economic analysis'!H9*(1+$C$30)+'Economic analysis'!H6-'Economic analysis'!H4-'Economic analysis'!H5-'Economic analysis'!H7 -> 1420499.999 | J30: =(SUM('Economic analysis'!I10))+'Economic analysis'!I9*(1+$C$30)+'Economic analysis'!I6-'Economic analysis'!I4-'Economic analysis'!I5-'Economic analysis'!I7 -> 4445442.027 | K30: =(SUM('Economic analysis'!J10))+'Economic analysis'!J9*(1+$C$30)+'Economic analysis'!J6-'Economic analysis'!J4-'Economic analysis'!J5-'Economic analysis'!J7 -> 4410503.446 | L30: =(SUM('Economic analysis'!K10))+'Economic analysis'!K9*(1+$C$30)+'Economic analysis'!K6-'Economic analysis'!K4-'Economic analysis'!K5-'Economic analysis'!K7 -> 7023230.432 | M30: =(SUM('Economic analysis'!L10))+'Economic analysis'!L9*(1+$C$30)+'Economic analysis'!L6-'Economic analysis'!L4-'Economic analysis'!L5-'Economic analysis'!L7 -> 8670466.663 | N30: =(SUM('Economic analysis'!M10))+'Economic analysis'!M9*(1+$C$30)+'Economic analysis'!M6-'Economic analysis'!M4-'Economic analysis'!M5-'Economic analysis'!M7 -> 11203583.33 | O30: =(SUM('Economic analysis'!N10))+'Economic analysis'!N9*(1+$C$30)+'Economic analysis'!N6-'Economic analysis'!N4-'Economic analysis'!N5-'Economic analysis'!N7 -> 11949000 | P30: =(SUM('Economic analysis'!O10))+'Economic analysis'!O9*(1+$C$30)+'Economic analysis'!O6-'Economic analysis'!O4-'Economic analysis'!O5-'Economic analysis'!O7 -> 12148400 | Q30: =(SUM('Economic analysis'!P10))+'Economic analysis'!P9*(1+$C$30)+'Economic analysis'!P6-'Economic analysis'!P4-'Economic analysis'!P5-'Economic analysis'!P7 -> 14383399.99 | R30: =(SUM('Economic analysis'!Q10))+'Economic analysis'!Q9*(1+$C$30)+'Economic analysis'!Q6-'Economic analysis'!Q4-'Economic analysis'!Q5-'Economic analysis'!Q7 -> 16618399.99 | S30: =(SUM('Economic analysis'!R10))+'Economic analysis'!R9*(1+$C$30)+'Economic analysis'!R6-'Economic analysis'!R4-'Economic analysis'!R5-'Economic analysis'!R7 -> 18853399.99 | T30: =(SUM('Economic analysis'!S10))+'Economic analysis'!S9*(1+$C$30)+'Economic analysis'!S6-'Economic analysis'!S4-'Economic analysis'!S5-'Economic analysis'!S7 -> 21088399.99 | U30: =(SUM('Economic analysis'!T10))+'Economic analysis'!T9*(1+$C$30)+'Economic analysis'!T6-'Economic analysis'!T4-'Economic analysis'!T5-'Economic analysis'!T7 -> 23323399.99 | V30: =(SUM('Economic analysis'!U10))+'Economic analysis'!U9*(1+$C$30)+'Economic analysis'!U6-'Economic analysis'!U4-'Economic analysis'!U5-'Economic analysis'!U7 -> 23323399.99 | W30: =(SUM('Economic analysis'!V10))+'Economic analysis'!V9*(1+$C$30)+'Economic analysis'!V6-'Economic analysis'!V4-'Economic analysis'!V5-'Economic analysis'!V7 -> 23323399.99 | X30: =(SUM('Economic analysis'!W10))+'Economic analysis'!W9*(1+$C$30)+'Economic analysis'!W6-'Economic analysis'!W4-'Economic analysis'!W5-'Economic analysis'!W7 -> 23323399.99 | Z30: =NPV(Inputs!$D$11,E30:X30) -> 69327908.63 | AA30: =IRR(E30:X30) -> 0.09034282569 | AC30: =IF('Economic analysis'!$D$17<0,(-(Z30-'Economic analysis'!$D$17)/'Economic analysis'!$D$17),((Z30-'Economic analysis'!$D$17)/'Economic analysis'!$D$17)) -> 0.03450490418 | AD30: =AA30-'Economic analysis'!$D$18 -> 0.00170952796
B31: Business employee benefits with 1% decrease | C31: -0.01 | D31: EUR | E31: =(SUM('Economic analysis'!D10))+'Economic analysis'!D9*(1+$C$31)+'Economic analysis'!D6-'Economic analysis'!D4-'Economic analysis'!D5-'Economic analysis'!D7 -> -8200000 | F31: =(SUM('Economic analysis'!E10))+'Economic analysis'!E9*(1+$C$31)+'Economic analysis'!E6-'Economic analysis'!E4-'Economic analysis'!E5-'Economic analysis'!E7 -> -25440975 | G31: =(SUM('Economic analysis'!F10))+'Economic analysis'!F9*(1+$C$31)+'Economic analysis'!F6-'Economic analysis'!F4-'Economic analysis'!F5-'Economic analysis'!F7 -> -31435736.67 | H31: =(SUM('Economic analysis'!G10))+'Economic analysis'!G9*(1+$C$31)+'Economic analysis'!G6-'Economic analysis'!G4-'Economic analysis'!G5-'Economic analysis'!G7 -> -18415400 | I31: =(SUM('Economic analysis'!H10))+'Economic analysis'!H9*(1+$C$31)+'Economic analysis'!H6-'Economic analysis'!H4-'Economic analysis'!H5-'Economic analysis'!H7 -> 1288500 | J31: =(SUM('Economic analysis'!I10))+'Economic analysis'!I9*(1+$C$31)+'Economic analysis'!I6-'Economic analysis'!I4-'Economic analysis'!I5-'Economic analysis'!I7 -> 4283442.029 | K31: =(SUM('Economic analysis'!J10))+'Economic analysis'!J9*(1+$C$31)+'Economic analysis'!J6-'Economic analysis'!J4-'Economic analysis'!J5-'Economic analysis'!J7 -> 4204703.448 | L31: =(SUM('Economic analysis'!K10))+'Economic analysis'!K9*(1+$C$31)+'Economic analysis'!K6-'Economic analysis'!K4-'Economic analysis'!K5-'Economic analysis'!K7 -> 6764030.435 | M31: =(SUM('Economic analysis'!L10))+'Economic analysis'!L9*(1+$C$31)+'Economic analysis'!L6-'Economic analysis'!L4-'Economic analysis'!L5-'Economic analysis'!L7 -> 8351866.667 | N31: =(SUM('Economic analysis'!M10))+'Economic analysis'!M9*(1+$C$31)+'Economic analysis'!M6-'Economic analysis'!M4-'Economic analysis'!M5-'Economic analysis'!M7 -> 10819583.33 | O31: =(SUM('Economic analysis'!N10))+'Economic analysis'!N9*(1+$C$31)+'Economic analysis'!N6-'Economic analysis'!N4-'Economic analysis'!N5-'Economic analysis'!N7 -> 11535000 | P31: =(SUM('Economic analysis'!O10))+'Economic analysis'!O9*(1+$C$31)+'Economic analysis'!O6-'Economic analysis'!O4-'Economic analysis'!O5-'Economic analysis'!O7 -> 11704400 | Q31: =(SUM('Economic analysis'!P10))+'Economic analysis'!P9*(1+$C$31)+'Economic analysis'!P6-'Economic analysis'!P4-'Economic analysis'!P5-'Economic analysis'!P7 -> 13909400 | R31: =(SUM('Economic analysis'!Q10))+'Economic analysis'!Q9*(1+$C$31)+'Economic analysis'!Q6-'Economic analysis'!Q4-'Economic analysis'!Q5-'Economic analysis'!Q7 -> 16114400 | S31: =(SUM('Economic analysis'!R10))+'Economic analysis'!R9*(1+$C$31)+'Economic analysis'!R6-'Economic analysis'!R4-'Economic analysis'!R5-'Economic analysis'!R7 -> 18319400 | T31: =(SUM('Economic analysis'!S10))+'Economic analysis'!S9*(1+$C$31)+'Economic analysis'!S6-'Economic analysis'!S4-'Economic analysis'!S5-'Economic analysis'!S7 -> 20524400 | U31: =(SUM('Economic analysis'!T10))+'Economic analysis'!T9*(1+$C$31)+'Economic analysis'!T6-'Economic analysis'!T4-'Economic analysis'!T5-'Economic analysis'!T7 -> 22729400 | V31: =(SUM('Economic analysis'!U10))+'Economic analysis'!U9*(1+$C$31)+'Economic analysis'!U6-'Economic analysis'!U4-'Economic analysis'!U5-'Economic analysis'!U7 -> 22729400 | W31: =(SUM('Economic analysis'!V10))+'Economic analysis'!V9*(1+$C$31)+'Economic analysis'!V6-'Economic analysis'!V4-'Economic analysis'!V5-'Economic analysis'!V7 -> 22729400 | X31: =(SUM('Economic analysis'!W10))+'Economic analysis'!W9*(1+$C$31)+'Economic analysis'!W6-'Economic analysis'!W4-'Economic analysis'!W5-'Economic analysis'!W7 -> 22729400 | Z31: =NPV(Inputs!$D$11,E31:X31) -> 64703178.75 | AA31: =IRR(E31:X31) -> 0.0869081342 | AC31: =IF('Economic analysis'!$D$17<0,(-(Z31-'Economic analysis'!$D$17)/'Economic analysis'!$D$17),((Z31-'Economic analysis'!$D$17)/'Economic analysis'!$D$17)) -> -0.03450490495 | AD31: =AA31-'Economic analysis'!$D$18 -> -0.001725163526
B32: Household consumer surplus with 1% increase | C32: 0.009999999776 | D32: EUR | E32: =(SUM('Economic analysis'!D9))+'Economic analysis'!D10*(1+$C$32)+'Economic analysis'!D6-'Economic analysis'!D4-'Economic analysis'!D5-'Economic analysis'!D7 -> -8200000 | F32: =(SUM('Economic analysis'!E9))+'Economic analysis'!E10*(1+$C$32)+'Economic analysis'!E6-'Economic analysis'!E4-'Economic analysis'!E5-'Economic analysis'!E7 -> -25425351 | G32: =(SUM('Economic analysis'!F9))+'Economic analysis'!F10*(1+$C$32)+'Economic analysis'!F6-'Economic analysis'!F4-'Economic analysis'!F5-'Economic analysis'!F7 -> -31399016.67 | H32: =(SUM('Economic analysis'!G9))+'Economic analysis'!G10*(1+$C$32)+'Economic analysis'!G6-'Economic analysis'!G4-'Economic analysis'!G5-'Economic analysis'!G7 -> -18344360 | I32: =(SUM('Economic analysis'!H9))+'Economic analysis'!H10*(1+$C$32)+'Economic analysis'!H6-'Economic analysis'!H4-'Economic analysis'!H5-'Economic analysis'!H7 -> 1391219.999 | J32: =(SUM('Economic analysis'!I9))+'Economic analysis'!I10*(1+$C$32)+'Economic analysis'!I6-'Economic analysis'!I4-'Economic analysis'!I5-'Economic analysis'!I7 -> 4402602.028 | K32: =(SUM('Economic analysis'!J9))+'Economic analysis'!J10*(1+$C$32)+'Economic analysis'!J6-'Economic analysis'!J4-'Economic analysis'!J5-'Economic analysis'!J7 -> 4351523.447 | L32: =(SUM('Economic analysis'!K9))+'Economic analysis'!K10*(1+$C$32)+'Economic analysis'!K6-'Economic analysis'!K4-'Economic analysis'!K5-'Economic analysis'!K7 -> 6944750.434 | M32: =(SUM('Economic analysis'!L9))+'Economic analysis'!L10*(1+$C$32)+'Economic analysis'!L6-'Economic analysis'!L4-'Economic analysis'!L5-'Economic analysis'!L7 -> 8569486.665 | N32: =(SUM('Economic analysis'!M9))+'Economic analysis'!M10*(1+$C$32)+'Economic analysis'!M6-'Economic analysis'!M4-'Economic analysis'!M5-'Economic analysis'!M7 -> 11077103.33 | O32: =(SUM('Economic analysis'!N9))+'Economic analysis'!N10*(1+$C$32)+'Economic analysis'!N6-'Economic analysis'!N4-'Economic analysis'!N5-'Economic analysis'!N7 -> 11814720 | P32: =(SUM('Economic analysis'!O9))+'Economic analysis'!O10*(1+$C$32)+'Economic analysis'!O6-'Economic analysis'!O4-'Economic analysis'!O5-'Economic analysis'!O7 -> 12006320 | Q32: =(SUM('Economic analysis'!P9))+'Economic analysis'!P10*(1+$C$32)+'Economic analysis'!P6-'Economic analysis'!P4-'Economic analysis'!P5-'Economic analysis'!P7 -> 14233520 | R32: =(SUM('Economic analysis'!Q9))+'Economic analysis'!Q10*(1+$C$32)+'Economic analysis'!Q6-'Economic analysis'!Q4-'Economic analysis'!Q5-'Economic analysis'!Q7 -> 16460720 | S32: =(SUM('Economic analysis'!R9))+'Economic analysis'!R10*(1+$C$32)+'Economic analysis'!R6-'Economic analysis'!R4-'Economic analysis'!R5-'Economic analysis'!R7 -> 18687920 | T32: =(SUM('Economic analysis'!S9))+'Economic analysis'!S10*(1+$C$32)+'Economic analysis'!S6-'Economic analysis'!S4-'Economic analysis'!S5-'Economic analysis'!S7 -> 20915120 | U32: =(SUM('Economic analysis'!T9))+'Economic analysis'!T10*(1+$C$32)+'Economic analysis'!T6-'Economic analysis'!T4-'Economic analysis'!T5-'Economic analysis'!T7 -> 23142320 | V32: =(SUM('Economic analysis'!U9))+'Economic analysis'!U10*(1+$C$32)+'Economic analysis'!U6-'Economic analysis'!U4-'Economic analysis'!U5-'Economic analysis'!U7 -> 23142320 | W32: =(SUM('Economic analysis'!V9))+'Economic analysis'!V10*(1+$C$32)+'Economic analysis'!V6-'Economic analysis'!V4-'Economic analysis'!V5-'Economic analysis'!V7 -> 23142320 | X32: =(SUM('Economic analysis'!W9))+'Economic analysis'!W10*(1+$C$32)+'Economic analysis'!W6-'Economic analysis'!W4-'Economic analysis'!W5-'Economic analysis'!W7 -> 23142320 | Z32: =NPV(Inputs!$D$11,E32:X32) -> 67923480.55 | AA32: =IRR(E32:X32) -> 0.08931994393 | AC32: =IF('Economic analysis'!$D$17<0,(-(Z32-'Economic analysis'!$D$17)/'Economic analysis'!$D$17),((Z32-'Economic analysis'!$D$17)/'Economic analysis'!$D$17)) -> 0.01354815302 | AD32: =AA32-'Economic analysis'!$D$18 -> 0.0006866462083
B33: Household consumer surplus with 1% decrease | C33: -0.01 | D33: EUR | E33: =(SUM('Economic analysis'!D9))+'Economic analysis'!D10*(1+$C$33)+'Economic analysis'!D6-'Economic analysis'!D4-'Economic analysis'!D5-'Economic analysis'!D7 -> -8200000 | F33: =(SUM('Economic analysis'!E9))+'Economic analysis'!E10*(1+$C$33)+'Economic analysis'!E6-'Economic analysis'!E4-'Economic analysis'!E5-'Economic analysis'!E7 -> -25438599 | G33: =(SUM('Economic analysis'!F9))+'Economic analysis'!F10*(1+$C$33)+'Economic analysis'!F6-'Economic analysis'!F4-'Economic analysis'!F5-'Economic analysis'!F7 -> -31427816.67 | H33: =(SUM('Economic analysis'!G9))+'Economic analysis'!G10*(1+$C$33)+'Economic analysis'!G6-'Economic analysis'!G4-'Economic analysis'!G5-'Economic analysis'!G7 -> -18397640 | I33: =(SUM('Economic analysis'!H9))+'Economic analysis'!H10*(1+$C$33)+'Economic analysis'!H6-'Economic analysis'!H4-'Economic analysis'!H5-'Economic analysis'!H7 -> 1317780 | J33: =(SUM('Economic analysis'!I9))+'Economic analysis'!I10*(1+$C$33)+'Economic analysis'!I6-'Economic analysis'!I4-'Economic analysis'!I5-'Economic analysis'!I7 -> 4326282.029 | K33: =(SUM('Economic analysis'!J9))+'Economic analysis'!J10*(1+$C$33)+'Economic analysis'!J6-'Economic analysis'!J4-'Economic analysis'!J5-'Economic analysis'!J7 -> 4263683.448 | L33: =(SUM('Economic analysis'!K9))+'Economic analysis'!K10*(1+$C$33)+'Economic analysis'!K6-'Economic analysis'!K4-'Economic analysis'!K5-'Economic analysis'!K7 -> 6842510.435 | M33: =(SUM('Economic analysis'!L9))+'Economic analysis'!L10*(1+$C$33)+'Economic analysis'!L6-'Economic analysis'!L4-'Economic analysis'!L5-'Economic analysis'!L7 -> 8452846.667 | N33: =(SUM('Economic analysis'!M9))+'Economic analysis'!M10*(1+$C$33)+'Economic analysis'!M6-'Economic analysis'!M4-'Economic analysis'!M5-'Economic analysis'!M7 -> 10946063.33 | O33: =(SUM('Economic analysis'!N9))+'Economic analysis'!N10*(1+$C$33)+'Economic analysis'!N6-'Economic analysis'!N4-'Economic analysis'!N5-'Economic analysis'!N7 -> 11669280 | P33: =(SUM('Economic analysis'!O9))+'Economic analysis'!O10*(1+$C$33)+'Economic analysis'!O6-'Economic analysis'!O4-'Economic analysis'!O5-'Economic analysis'!O7 -> 11846480 | Q33: =(SUM('Economic analysis'!P9))+'Economic analysis'!P10*(1+$C$33)+'Economic analysis'!P6-'Economic analysis'!P4-'Economic analysis'!P5-'Economic analysis'!P7 -> 14059280 | R33: =(SUM('Economic analysis'!Q9))+'Economic analysis'!Q10*(1+$C$33)+'Economic analysis'!Q6-'Economic analysis'!Q4-'Economic analysis'!Q5-'Economic analysis'!Q7 -> 16272080 | S33: =(SUM('Economic analysis'!R9))+'Economic analysis'!R10*(1+$C$33)+'Economic analysis'!R6-'Economic analysis'!R4-'Economic analysis'!R5-'Economic analysis'!R7 -> 18484880 | T33: =(SUM('Economic analysis'!S9))+'Economic analysis'!S10*(1+$C$33)+'Economic analysis'!S6-'Economic analysis'!S4-'Economic analysis'!S5-'Economic analysis'!S7 -> 20697680 | U33: =(SUM('Economic analysis'!T9))+'Economic analysis'!T10*(1+$C$33)+'Economic analysis'!T6-'Economic analysis'!T4-'Economic analysis'!T5-'Economic analysis'!T7 -> 22910480 | V33: =(SUM('Economic analysis'!U9))+'Economic analysis'!U10*(1+$C$33)+'Economic analysis'!U6-'Economic analysis'!U4-'Economic analysis'!U5-'Economic analysis'!U7 -> 22910480 | W33: =(SUM('Economic analysis'!V9))+'Economic analysis'!V10*(1+$C$33)+'Economic analysis'!V6-'Economic analysis'!V4-'Economic analysis'!V5-'Economic analysis'!V7 -> 22910480 | X33: =(SUM('Economic analysis'!W9))+'Economic analysis'!W10*(1+$C$33)+'Economic analysis'!W6-'Economic analysis'!W4-'Economic analysis'!W5-'Economic analysis'!W7 -> 22910480 | Z33: =NPV(Inputs!$D$11,E33:X33) -> 66107606.85 | AA33: =IRR(E33:X33) -> 0.08794452112 | AC33: =IF('Economic analysis'!$D$17<0,(-(Z33-'Economic analysis'!$D$17)/'Economic analysis'!$D$17),((Z33-'Economic analysis'!$D$17)/'Economic analysis'!$D$17)) -> -0.01354815332 | AD33: =AA33-'Economic analysis'!$D$18 -> -0.0006887766064

Sheet Output-economic
C4: SOCIO-ECONOMIC ANALYSIS
C6: E.2.2 Detail of economic benefits and costs
D7: Benefit | F7: Unit value (where applicable) | G7: Total value (in euro, discounted) | H7: % of total benefits
C9: 1 | D9: ='Economic analysis'!B9 -> Business employee benefits | F9: N/A | G9: =NPV(Inputs!$D$11,'Economic analysis'!D9:W9) -> 231236496.6 | H9: =G9/SUM($G$9:$G$11) -> 0.7180584585
C10: 2 | D10: ='Economic analysis'!B10 -> Household consumer surplus | F10: N/A | G10: =NPV(Inputs!$D$11,'Economic analysis'!D10:W10) -> 90793686.13 | H10: =G10/SUM($G$9:$G$11) -> 0.2819415415
C11: 3 | D11: ='Financial analysis'!B61 -> Residual value | F11: N/A | G11: =NPV(Inputs!$D$11,'Economic analysis'!$D$6:$W$6) -> 0 | H11: =G11/SUM($G$9:$G$11) -> 0
C12: 4 | D12: Total | F12: N/A | G12: =SUM(G9:G11) -> 322030182.7 | H12: =SUM(H9:H11) -> 1
D14: Cost | F14: Unit value (where applicable) | G14: Total value (in euro, discounted) | H14: % of total cost
C16: 1 | D16: ='Financial analysis'!B5 -> Capital expenditure | F16: N/A | G16: =NPV(Inputs!$D$11,'Financial analysis'!D5:W5) -> 78825710.3 | H16: =G16/SUM($G$16:$G$18) -> 0.3091026876
C17: 2 | D17: ='Financial analysis'!B59 -> Operational expenditure | F17: N/A | G17: =NPV(Inputs!$D$11,'Financial analysis'!D6:W6) -> 164738982.5 | H17: =G17/SUM($G$16:$G$18) -> 0.6459981402
C18: 3 | D18: ='Financial analysis'!B9 -> Replacement costs | F18: N/A | G18: =NPV(Inputs!D11,'Financial analysis'!D9:W9) -> 11449946.18 | H18: =G18/SUM($G$16:$G$18) -> 0.04489917216
C19: 4 | D19: Total | F19: N/A | G19: =SUM(G16:G18) -> 255014639 | H19: =SUM(H16:H18) -> 1
C22: E.2.3 Main indicators of the economic analysis
D23: Main parameters and indicators | G23: Values | H23: Reference to CBA document
C25: 1 | D25: Social discount rate (%) | G25: =Inputs!$D$11 -> 0.03 | H25: [indicate]
C26: 2 | D26: Economic rate of return (ERR) (%) | G26: ='Economic analysis'!D18 -> 0.08863329773 | H26: [indicate]
C27: 3 | D27: ="Economic net present value (ENPV) ("&Inputs!$D$6&")" -> Economic net present value (ENPV) (EUR) | G27: ='Economic analysis'!D17 -> 67015543.71 | H27: [indicate]
C28: 4 | D28: Benefit-cost ratio | G28: ='Economic analysis'!D19 -> 1.262790968 | H28: [indicate]
C35: SENSITIVITY ANALYSIS
C37: E.3.2 Sensitivity analysis - variables tested
D38: Variable tested | F38: Financial net present value (FNPV/K) variation | G38: Financial net present value (FNPV/C) variation | H38: Economic rate of return (ERR) variation | I38: Economic net present value (ENPV) variation | J38: Critical variable*
J40: 0.01
C42: 1 | D42: Capital expenditure with 1% increase | F42: =Sensitivity!AC4 -> -0.08554322635 | G42: =Sensitivity!AC14 -> -0.0401398046 | H42: =Sensitivity!AD24 -> -0.001018446934 | I42: =Sensitivity!AC24 -> -0.01176230232 | J42: =IF(OR(F42>=$J$40,I42>=$J$40,F42<=-$J$40,I42<=-$J$40),"YES", "NO") -> YES
C43: 2 | D43: Capital expenditure with 1% decrease | F43: =Sensitivity!AC5 -> 0.08554322826 | G43: =Sensitivity!AC15 -> 0.0401398055 | H43: =Sensitivity!AD25 -> 0.001031322869 | I43: =Sensitivity!AC25 -> 0.01176230258 | J43: =IF(OR(F43>=$J$40,I43>=$J$40,F43<=-$J$40,I43<=-$J$40),"YES", "NO") -> YES
C44: 3 | D44: Operational expenditure with 1% increase | F44: =Sensitivity!AC6 -> -0.1940116386 | G44: =Sensitivity!AC16 -> -0.07659787448 | H44: =Sensitivity!AD26 -> -0.00131005056 | I44: =Sensitivity!AC26 -> -0.02458220432 | J44: YES
C45: 4 | D45: Operational expenditure with 1% decrease | F45: =Sensitivity!AC7 -> 0.1940116429 | G45: =Sensitivity!AC17 -> 0.0765978762 | H45: =Sensitivity!AD27 -> 0.001304888471 | I45: =Sensitivity!AC27 -> 0.02458220487 | J45: YES
C46: 5 | D46: Revenues with 1% change | F46: =Sensitivity!AC8 -> 0.2803457964 | G46: =Sensitivity!AC18 -> 0.1106835254 | J46: =IF(OR(F46>=$J$40,I48>=$J$40,F46<=-$J$40,I48<=-$J$40),"YES", "NO") -> YES
C47: 6 | D47: Revenues with -1% change | F47: =Sensitivity!AC9 -> -0.2803458027 | G47: =Sensitivity!AC19 -> -0.1106835279 | J47: =IF(OR(F47>=$J$40,I49>=$J$40,F47<=-$J$40,I49<=-$J$40),"YES", "NO") -> YES
C48: 7 | D48: Benefits with 1% change | H48: =Sensitivity!$AD$28 -> 0.002390487615 | I48: =Sensitivity!$AC$28 -> 0.0480530572 | J48: YES
C49: 8 | D49: Benefits with -1% change | H49: =Sensitivity!$AD$29 -> -0.002419837655 | I49: =Sensitivity!$AC$29 -> -0.04805305827 | J49: YES
C50: 9 | D50: Business employee benefits with 1% increase | H50: =Sensitivity!AD30 -> 0.00170952796 | I50: =Sensitivity!AC30 -> 0.03450490418 | J50: YES
C51: 10 | D51: Business employee benefits with 1% decrease | H51: =Sensitivity!AD31 -> -0.001725163526 | I51: =Sensitivity!AC31 -> -0.03450490495 | J51: YES
C52: 11 | D52: Household consumer surplus with 1% increase | H52: =Sensitivity!AD32 -> 0.0006866462083 | I52: =Sensitivity!AC32 -> 0.01354815302 | J52: YES
C53: 12 | D53: Household consumer surplus with 1% decrease | H53: =Sensitivity!AD33 -> -0.0006887766064 | I53: =Sensitivity!AC33 -> -0.01354815332 | J53: =IF(OR(F53>=$J$40,I53>=$J$40,F53<=-$J$40,I53<=-$J$40),"YES", "NO") -> YES
C55: E.3.2 Sensitivity analysis - switching values for critical variables *
D56: Critical variable | F56: Switching value
C58: 1 | D58: Benefits | F58: Maximum change before ENPV turns zero (%) | I58: -0.2081033
C59: 2 | D59: Capital expenditure | F59: Maximum change before ENPV turns zero (%) | I59: 0.8501736737
C60: 3 | D60: Operational expenditure | F60: Maximum change before ENPV turns zero (%) | I60: 0.4067983345
C61: 4 | D61: Capital expenditure | F61: Maximum change before FNPV/K turns zero (%) | I61: -0.1168999604
C62: 5 | D62: Operational expenditure | F62: Maximum change before FNPV/K turns zero (%) | I62: -0.05154329838
C63: 6 | D63: Revenues | F63: Maximum change before FNPV/K turns zero (%) | I63: 0.03567023263
C64: * - Critical variables are those for which a change of 1% in value results in a change of at least 1% in FNPV/K or ENPV

Sheet Output-financial
C2: FINANCING PLAN
C4: C.1 Cost breakdown
C5: Euro | F5: Total project costs (A) | G5: Ineligible costs (B) | H5: Eligible costs (C)=(A)-(B) | I5: Percentage of total eligible costs
C6: 1. Planning/design fees | F6: =G6+H6 -> 9000000 | G6: =SUM(Inputs!D272:W272) -> 0 | H6: =SUM(Inputs!D253:I253) -> 9000000 | I6: =+H6/$H$17 -> 0.1098901099
C7: 2. Land purchase | F7: =G7+H7 -> 0 | G7: =SUM(Inputs!D273:W273) -> 0 | H7: =SUM(Inputs!D254:I254) -> 0 | I7: =+H7/$H$17 -> 0
C8: 3. Building and construction | F8: 68500000 | G8: =SUM(Inputs!D275:W275)+SUM(Inputs!D276:W276) -> 3500000 | H8: =SUM(Inputs!D256:I256)+SUM(Inputs!D257:I257) -> 65000000 | I8: 0.7936507937
C9: 4. Plant and machinery | F9: 0 | G9: =SUM(Inputs!D278:W278)+SUM(Inputs!D279:W279) -> 0 | H9: =SUM(Inputs!D259:I259)+SUM(Inputs!D260:I260) -> 0 | I9: 0
C10: 5. Contingencies | F10: 0 | G10: =SUM(Inputs!D280:W280) -> 0 | H10: =SUM(Inputs!D261:I261) -> 0 | I10: 0
C11: 6. Price adjustment (if applicable) | F11: 0 | G11: =SUM(Inputs!D281:W281) -> 0 | H11: =SUM(Inputs!D262:I262) -> 0 | I11: 0
C12: 7. Publicity | F12: 1400000 | G12: =SUM(Inputs!D282:W282) -> 0 | H12: =SUM(Inputs!D263:I263) -> 1400000 | I12: 0.01709401709
C13: 8. Supervision during construction implementation | F13: 6500000 | G13: =SUM(Inputs!D283:W283) -> 0 | H13: =SUM(Inputs!D264:I264) -> 6500000 | I13: 0.07936507937
C14: 9. Technical assistance | F14: 0 | G14: =SUM(Inputs!D284:W284) -> 0 | H14: =SUM(Inputs!D265:I265) -> 0 | I14: 0
C15: 10. Sub-TOTAL | F15: =SUM(F6:F14) -> 85400000 | G15: =SUM(Inputs!D285:W285) -> 3500000 | H15: =SUM(Inputs!D266:I266) -> 81900000 | I15: 1
C16: 11. VAT | F16: 16380000 | G16: =SUM(Inputs!D286:W286) -> 16380000 | H16: =SUM(Inputs!D267:I267) -> 0 | I16: 0
C17: 12. TOTAL | F17: =F15+F16 -> 101780000 | G17: =SUM(Inputs!D287:W287) -> 19880000 | H17: =SUM(Inputs!D268:I268) -> 81900000 | I17: 1
C20: C.3 Calculation of the discounted net revenue
C22: 1. Total eligible cost before taking into account of the requirements set out in Article 61 of Regulation (EU) No 1303/2013 (in EUR, not discounted) (Section C.1.12 C) | G22: =$H$17 -> 81900000
C23: 2. Pro-rata application of discounted net revenue (%) (if applicable) = (E.1.2.9) | G23: =$E$39 -> 0.1795386383
C24: 3. Total eligble cost after taking into account of the requirements set out in Article 61 of Regulation (EU) No 1303/2013 (in EUR, not discounted) = (1)*(2) | G24: =G22*G23 -> 14704214.48
C26: E.1.2. Main elements and parameters used in the CBA for financial analysis
C28: Main elements and parameters | E28: Value (EUR)
C29: 1. Reference period (years) | E29: =Inputs!D15 -> 20
C30: 2. Financial discount rate (%) (1) | E30: =Inputs!D10 -> 0.04
C31: Main elements and parameters | E31: Value not discounted | G31: Value discounted (net present value) | I31: Reference to CBA document
C32: 3. Total investment cost excluding contingencies | E32: =F15-F10 -> 85400000 | G32: =NPV($E$30,Inputs!D294:W294) -> 76800707.26 | I32: [indicate]
C33: 4. Residual value | E33: ='Financial analysis'!Y8 -> 5000000 | G33: =NPV($E$30,'Financial analysis'!D8:W8) -> 2281934.731 | I33: [indicate]
C34: 5. Revenues | G34: =NPV($E$30,'Financial analysis'!D7:W7) -> 211774150.8 | I34: [indicate]
C35: 6. Operating and replacement costs (2) | G35: =NPV($E$30,'Financial analysis'!D6:W6,'Financial analysis'!D9:W9) -> 151044072.7 | I35: [indicate]
C36: Pro-rata application of discounted net revenue (3)
C37: 7. Net revenue = revenues - operating and replacement costs + residual value = (5) - (6) + (4) | G37: =G34-G35+G33 -> 63012012.86 | I37: [indicate]
C38: 8. Total investment cost - net revenue = (3) - (7) | G38: =G32-G37 -> 13788694.4 | I38: [indicate]
C39: 9. Pro-rata application of discounted net revenue (%) = (8) / (3) | E39: =G38/G32 -> 0.1795386383 | I39: [indicate]
C40: Where VAT is recoverable, the costs and revenues should be based on figures excluding VAT. (1) Preferably in real terms (2) In the meaning of Article 17 of Commission Delegated Regulation (EU) No 480/2014 (3) This does not apply: 1) for projects subject to the rules on State aids in the meaning of Article 107 of the Treaty (see point G1), pursuant to Article 61(8) of Regulation (EU) No 1303/2013; 2) if flat rate (Article 61(3)(a) of Regulation (EU) No 1303/2013) or decreased co financing rate (Article 61(5) of Regulation (EU) No 1303/2013) is used; and 3) if the sum of the present values of operating and replacement costs are higher than the present value of revenues the project is not considered as revenue generating, in which case items 7 and 8 can be ignored and pro-rata application of discounted net revenue should be set at 100%.
C42: E.1.3. Main indicators of the financial analysis in accordance with the CBA document
E44: Without Union support (A) | G44: With Union support (B) | I44: Reference to CBA document
C45: 1. Financial rate of return (%) | E45: ='Financial analysis'!D21 -> 0.01462001691 | F45: FRR(C)(1) | G45: ='Financial analysis'!D24 -> 0.02841567459 | H45: FRR(K)(2) | I45: [indicate]
C46: 2. Net present value (EUR) | E46: ='Financial analysis'!D20 -> -19133303.29 | F46: FNPV(C) | G46: ='Financial analysis'!D23 -> -7554033.225 | H46: FNPV(K) | I46: [indicate]
C47: (1) FRR(C) stands for the financial profitability of an investment (2) FRR(K) stands for the financial profitability of national capital
C50: G.1.1. Sources of co-financing
C52: Sources of financing total investment costs (EUR) | I52: Of which (for information)
C53: Total cost [C.1.12.(A)] | D53: Union support | E53: National public (or equivalent) | F53: National private | G53: Other sources (specify) | I53: EIB/EIF loans
C54: (a) = (b)+(c)+(d)+(e) | D54: (b) | E54: (c) | F54: (d) | G54: (e) | I54: (f)
C55: =IFERROR(D55+E55+F55+G55,"") ->  | D55: [indicate] | E55: [indicate] | F55: [indicate] | G55: [indicate] | I55: =SUM(Inputs!D184:W184)+SUM(Inputs!D202:W202) -> 0

Sheet Estimated job created
C1: Employment associated with network
C3: =Inputs!$D$4 -> 2019 | D3: =C3+1 -> 2020 | E3: =D3+1 -> 2021 | F3: 2022 | G3: 2023 | H3: 2024 | I3: 2025 | J3: 2026 | K3: 2027 | L3: 2028 | M3: 2029 | N3: 2030 | O3: 2031 | P3: 2032 | Q3: 2033 | R3: 2034 | S3: 2035 | T3: 2036 | U3: 2037 | V3: 2038
B4: No. of estimated jobs created | C4: =ROUND((Inputs!D293+Inputs!D315)/Inputs!$D$7/million * (IF(Inputs!$D$9="Cohesion",Parameters!$D$23,Parameters!$D$22)),0) -> 146 | D4: =ROUND((Inputs!E293+Inputs!E315)/Inputs!$D$7/million * (IF(Inputs!$D$9="Cohesion",Parameters!$D$23,Parameters!$D$22)),0) -> 481 | E4: =ROUND((Inputs!F293+Inputs!F315)/Inputs!$D$7/million * (IF(Inputs!$D$9="Cohesion",Parameters!$D$23,Parameters!$D$22)),0) -> 619 | F4: =ROUND((Inputs!G293+Inputs!G315)/Inputs!$D$7/million * (IF(Inputs!$D$9="Cohesion",Parameters!$D$23,Parameters!$D$22)),0) -> 436 | G4: =ROUND((Inputs!H293+Inputs!H315)/Inputs!$D$7/million * (IF(Inputs!$D$9="Cohesion",Parameters!$D$23,Parameters!$D$22)),0) -> 134 | H4: =ROUND((Inputs!I293+Inputs!I315)/Inputs!$D$7/million * (IF(Inputs!$D$9="Cohesion",Parameters!$D$23,Parameters!$D$22)),0) -> 113 | I4: =ROUND((Inputs!J293+Inputs!J315)/Inputs!$D$7/million * (IF(Inputs!$D$9="Cohesion",Parameters!$D$23,Parameters!$D$22)),0) -> 156 | J4: =ROUND((Inputs!K293+Inputs!K315)/Inputs!$D$7/million * (IF(Inputs!$D$9="Cohesion",Parameters!$D$23,Parameters!$D$22)),0) -> 168 | K4: =ROUND((Inputs!L293+Inputs!L315)/Inputs!$D$7/million * (IF(Inputs!$D$9="Cohesion",Parameters!$D$23,Parameters!$D$22)),0) -> 199 | L4: =ROUND((Inputs!M293+Inputs!M315)/Inputs!$D$7/million * (IF(Inputs!$D$9="Cohesion",Parameters!$D$23,Parameters!$D$22)),0) -> 221 | M4: =ROUND((Inputs!N293+Inputs!N315)/Inputs!$D$7/million * (IF(Inputs!$D$9="Cohesion",Parameters!$D$23,Parameters!$D$22)),0) -> 243 | N4: =ROUND((Inputs!O293+Inputs!O315)/Inputs!$D$7/million * (IF(Inputs!$D$9="Cohesion",Parameters!$D$23,Parameters!$D$22)),0) -> 243 | O4: =ROUND((Inputs!P293+Inputs!P315)/Inputs!$D$7/million * (IF(Inputs!$D$9="Cohesion",Parameters!$D$23,Parameters!$D$22)),0) -> 243 | P4: =ROUND((Inputs!Q293+Inputs!Q315)/Inputs!$D$7/million * (IF(Inputs!$D$9="Cohesion",Parameters!$D$23,Parameters!$D$22)),0) -> 243 | Q4: =ROUND((Inputs!R293+Inputs!R315)/Inputs!$D$7/million * (IF(Inputs!$D$9="Cohesion",Parameters!$D$23,Parameters!$D$22)),0) -> 243 | R4: =ROUND((Inputs!S293+Inputs!S315)/Inputs!$D$7/million * (IF(Inputs!$D$9="Cohesion",Parameters!$D$23,Parameters!$D$22)),0) -> 243 | S4: =ROUND((Inputs!T293+Inputs!T315)/Inputs!$D$7/million * (IF(Inputs!$D$9="Cohesion",Parameters!$D$23,Parameters!$D$22)),0) -> 243 | T4: =ROUND((Inputs!U293+Inputs!U315)/Inputs!$D$7/million * (IF(Inputs!$D$9="Cohesion",Parameters!$D$23,Parameters!$D$22)),0) -> 243 | U4: =ROUND((Inputs!V293+Inputs!V315)/Inputs!$D$7/million * (IF(Inputs!$D$9="Cohesion",Parameters!$D$23,Parameters!$D$22)),0) -> 243 | V4: =ROUND((Inputs!W293+Inputs!W315)/Inputs!$D$7/million * (IF(Inputs!$D$9="Cohesion",Parameters!$D$23,Parameters!$D$22)),0) -> 243
B6: Note | C6: The network, as a major piece of infrastructure investment, generates employment in its establishment and in its on-going operations. This direct network associated employment is projected within the model. It should be noted that the major contribution of the network to employment is in the way it transforms the economy and aids businesses, and this impact is gathered in the assessment of impact on the economy.

Sheet Qualitative risk
D1: Qualitative risk analysis
C2: Refer to Table 2.16 in the CBA Guidance Document for qualitative risk assessment examples
C3: Risk description | D3: Variable | E3: Causes | F3: Effect | G3: Timing | H3: Effect on cash flows | I3: Probability (P) | J3: Severity (S) | K3: Risk Level (R = P * S) | L3: Risk prevention / mitigation measures | M3: Residual risk
C4: Context and regulatory risks
B5: 1 | C5: Change of orientation of the strategic policy
B6: 2 | C6: Change in expected behaviour of fututre private investors
B7: 3 | C7: Change in regulations in the retail market
B8: 4 | C8: Unsuccessful State-aid application
C9: Demand risks
B10: 5 | C10: Lower than estimated service take-up from retail- and/or wholesale providers
B11: 6 | C11: Low investments in 'last mile' network by service providers
C12: Design risks
B13: 7 | C13: Inadequate design cost estimates
C14: Administrative and procurement risks
B15: 8 | C15: Delays in project procurement
B16: 9 | C16: Risk of not obtaining required property rights
C17: Operational and financial risks
B18: 10 | C18: Increase in operational costs
B19: 11 | C19: Insufficient committed funding on a national/regional level during the operational phase
B20: 12 | C20: Loss of key personnel during project operation
C24: Evaulation | D24: Description
C25: Probability | D25: A - Very unlikely; B - Unlikely; C - About as likely as not; D - Likely; E - Very likely
C26: Severity | D26: I - No effect; II - Minor; III - Moderate; IV - Critical; V - Catastrophic
C27: Risk level | D27: Low; Moderate; High; Unacceptable
